Department Family,Entity,Date,Expense Type,Expense Area,Supplier,Transaction Number, Amount , Item Description 
BEIS,UKRI - AHRC,08/11/2018,Recruitment Costs,HR,Agenda Resource Management Ltd,98326767,154.97,Recruitment Costs
BEIS,UKRI - AHRC,08/11/2018,Recruitment Costs,HR,Agenda Resource Management Ltd,98326772,154.97,Recruitment Costs
BEIS,UKRI - AHRC,14/11/2018,Recruitment Costs,Corporate Services,Agenda Resource Management Ltd,98333398,155.91,Recruitment Costs
BEIS,UKRI - AHRC,14/11/2018,Recruitment Costs,Corporate Services,Agenda Resource Management Ltd,98333408,155.91,Recruitment Costs
BEIS,UKRI - AHRC,15/11/2018,Recruitment Costs,HR,Agenda Resource Management Ltd,98333411,155.91,Recruitment Costs
BEIS,UKRI - AHRC,15/11/2018,Recruitment Costs,HR,Agenda Resource Management Ltd,98335277,155.91,Recruitment Costs
BEIS,UKRI - AHRC,21/11/2018,Recruitment Costs,HR,Agenda Resource Management Ltd,98340382,56.11,Recruitment Costs
BEIS,UKRI - AHRC,26/11/2018,Recruitment Costs,Corporate Services,Agenda Resource Management Ltd,98340385,155.91,Recruitment Costs
BEIS,UKRI - AHRC,29/11/2018,Recruitment Costs,Corporate Services,Agenda Resource Management Ltd,98344397,155.91,Recruitment Costs
BEIS,UKRI - AHRC,29/11/2018,Recruitment Costs,HR,Agenda Resource Management Ltd,98344398,99.80,Recruitment Costs
BEIS,UKRI - AHRC,13/11/2018,Contract Staff,PSU JRS,Alexander Mann Solutions Limited,98305090,18121.64,Contract Staff
BEIS,UKRI - AHRC,13/11/2018,Contract Staff,PSU JRS,Alexander Mann Solutions Limited,98321190,2684.69,Contract Staff
BEIS,UKRI - AHRC,13/11/2018,Contract Staff,PSU JRS,Alexander Mann Solutions Limited,98323278,-6944.58,Contract Staff
BEIS,UKRI - AHRC,13/11/2018,Contract Staff,PSU JRS,Alexander Mann Solutions Limited,98323280,-1851.89,Contract Staff
BEIS,UKRI - AHRC,13/11/2018,Contract Staff,PSU JRS,Alexander Mann Solutions Limited,98327156,2684.69,Contract Staff
BEIS,UKRI - AHRC,13/11/2018,Contract Staff,PSU Project Office,Alexander Mann Solutions Limited,98327159,3766.62,Contract Staff
BEIS,UKRI - AHRC,13/11/2018,Agency Staff,PSU Project Office,Alexander Mann Solutions Limited,98327161,585.19,Agency Staff
BEIS,UKRI - AHRC,13/11/2018,Contract Staff,PSU JRS,Alexander Mann Solutions Limited,98331238,2684.69,Contract Staff
BEIS,UKRI - AHRC,13/11/2018,Agency Staff,PSU Project Office,Alexander Mann Solutions Limited,98332231,585.19,Agency Staff
BEIS,UKRI - AHRC,19/11/2018,Contract Staff,PSU JRS,Alexander Mann Solutions Limited,98337412,2684.69,Contract Staff
BEIS,UKRI - AHRC,30/11/2018,Agency Staff,PSU Project Office,Alexander Mann Solutions Limited,98347790,424.43,Agency Staff
BEIS,UKRI - AHRC,30/11/2018,Contract Staff,PSU JRS,Alexander Mann Solutions Limited,98347887,2684.69,Contract Staff
BEIS,UKRI - AHRC,27/11/2018,Health & Safety (inc. Medicals & Opticians),Corporate Services,AM Health & Safety Ltd,98334612,90.00,Health & Safety (inc. Medicals & Opticians)
BEIS,UKRI - AHRC,19/11/2018,Provisions ( Food etc),HR,Arco Limited,98336196,186.84,Provisions ( Food etc)
BEIS,UKRI - AHRC,19/11/2018,Provisions ( Food etc),HR,Arco Limited,98336196,1.20,Provisions ( Food etc)
BEIS,UKRI - AHRC,01/11/2018,Provisions ( Food etc),HR,Banner Group Ltd,98323237,20.59,Provisions ( Food etc)
BEIS,UKRI - AHRC,01/11/2018,Provisions ( Food etc),HR,Banner Group Ltd,98323238,3.74,Provisions ( Food etc)
BEIS,UKRI - AHRC,01/11/2018,Purchase of non capital equipment,HR,Banner Group Ltd,98323238,11.65,Purchase of non capital equipment
BEIS,UKRI - AHRC,13/11/2018,Printing & Stationery,PSU Project Office,Banner Group Ltd,98213732,47.16,Printing & Stationery
BEIS,UKRI - AHRC,14/11/2018,Provisions ( Food etc),HR,Banner Group Ltd,98330990,7.48,Provisions ( Food etc)
BEIS,UKRI - AHRC,14/11/2018,Provisions ( Food etc),HR,Banner Group Ltd,98330990,41.18,Provisions ( Food etc)
BEIS,UKRI - AHRC,26/11/2018,Printing & Stationery,Corporate Services,Banner Group Ltd,98340737,13.92,Printing & Stationery
BEIS,UKRI - AHRC,26/11/2018,Printing & Stationery,Corporate Services,Banner Group Ltd,98340738,7.68,Printing & Stationery
BEIS,UKRI - AHRC,30/11/2018,Printing & Stationery,HR,Banner Group Ltd,98342568,5.74,Printing & Stationery
BEIS,UKRI - AHRC,05/11/2018,T&S UK - Vehicle Hire,PSU Project Office,Barnes Coaches Ltd,98324629,370.00,T&S UK - Vehicle Hire
BEIS,UKRI - AHRC,27/11/2018,Meetings & Catering,GCRF - Programme Delivery,Baxter Storey Ltd,98343726,279.12,Meetings & Catering
BEIS,UKRI - AHRC,27/11/2018,Meetings & Catering,SMT,Baxter Storey Ltd,98343726,767.04,Meetings & Catering
BEIS,UKRI - AHRC,28/11/2018,Advertising & Promotion,Communications,Benjamin Ward Communications Ltd,98309176,2000.00,Advertising & Promotion
BEIS,UKRI - AHRC,06/11/2018,Secondments,Communications,Biotechnology and Biological Sciences Research Council (BBSRC),98325266,3549.55,Secondments
BEIS,UKRI - AHRC,02/11/2018,Legal & Professional Services,Corporate Services,C3 Marketing Ltd,98324257,234.00,Legal & Professional Services
BEIS,UKRI - AHRC,01/11/2018,Conferences & Seminars,Secretariat,Calder Conference Ltd,98322595,1483.50,Conferences & Seminars
BEIS,UKRI - AHRC,15/11/2018,Voluntary Deductions,Balance Sheet,Chargive,98328130,7.00,Voluntary Deductions
BEIS,UKRI - AHRC,05/11/2018,Legal & Professional Services,Corporate Services,Chilcotts Law Ltd,98325881,600.00,Legal & Professional Services
BEIS,UKRI - AHRC,13/11/2018,International Subscriptions,Communications,Cision Group Ltd,98327670,3058.80,International Subscriptions
BEIS,UKRI - AHRC,15/11/2018,Voluntary Deductions,Balance Sheet,Civil Service Benevolent Fund,98328129,3.00,Voluntary Deductions
BEIS,UKRI - AHRC,05/11/2018,Non-staff travel and subsistance,GCRF - Programme Delivery,Corporate Travel Management (North) Ltd,98324774,0.50,Non-staff travel and subsistance
BEIS,UKRI - AHRC,05/11/2018,Non-staff travel and subsistance,GCRF - Programme Delivery,Corporate Travel Management (North) Ltd,98324774,75.00,Non-staff travel and subsistance
BEIS,UKRI - AHRC,05/11/2018,Non-staff travel and subsistance,GCRF - Programme Delivery,Corporate Travel Management (North) Ltd,98324774,0.50,Non-staff travel and subsistance
BEIS,UKRI - AHRC,05/11/2018,Non-staff travel and subsistance,GCRF - Programme Delivery,Corporate Travel Management (North) Ltd,98324774,75.00,Non-staff travel and subsistance
BEIS,UKRI - AHRC,05/11/2018,Non-staff travel and subsistance,GCRF - Programme Delivery,Corporate Travel Management (North) Ltd,98324774,0.50,Non-staff travel and subsistance
BEIS,UKRI - AHRC,05/11/2018,Non-staff travel and subsistance,GCRF - Programme Delivery,Corporate Travel Management (North) Ltd,98324774,75.00,Non-staff travel and subsistance
BEIS,UKRI - AHRC,05/11/2018,Non-staff travel and subsistance,GCRF - Programme Delivery,Corporate Travel Management (North) Ltd,98324774,0.30,Non-staff travel and subsistance
BEIS,UKRI - AHRC,05/11/2018,Non-staff travel and subsistance,"Histories,Culture & Heritage",Corporate Travel Management (North) Ltd,98324774,0.50,Non-staff travel and subsistance
BEIS,UKRI - AHRC,05/11/2018,Non-staff travel and subsistance,"Histories,Culture & Heritage",Corporate Travel Management (North) Ltd,98324774,75.00,Non-staff travel and subsistance
BEIS,UKRI - AHRC,05/11/2018,Non-staff travel and subsistance,"Histories,Culture & Heritage",Corporate Travel Management (North) Ltd,98324774,0.50,Non-staff travel and subsistance
BEIS,UKRI - AHRC,05/11/2018,Non-staff travel and subsistance,"Histories,Culture & Heritage",Corporate Travel Management (North) Ltd,98324774,75.00,Non-staff travel and subsistance
BEIS,UKRI - AHRC,05/11/2018,Non-staff travel and subsistance,"Histories,Culture & Heritage",Corporate Travel Management (North) Ltd,98324774,0.50,Non-staff travel and subsistance
BEIS,UKRI - AHRC,05/11/2018,Non-staff travel and subsistance,"Histories,Culture & Heritage",Corporate Travel Management (North) Ltd,98324774,75.00,Non-staff travel and subsistance
BEIS,UKRI - AHRC,05/11/2018,Non-staff travel and subsistance,"Histories,Culture & Heritage",Corporate Travel Management (North) Ltd,98324774,0.50,Non-staff travel and subsistance
BEIS,UKRI - AHRC,05/11/2018,Non-staff travel and subsistance,"Histories,Culture & Heritage",Corporate Travel Management (North) Ltd,98324774,75.00,Non-staff travel and subsistance
BEIS,UKRI - AHRC,05/11/2018,Non-staff travel and subsistance,"Histories,Culture & Heritage",Corporate Travel Management (North) Ltd,98324774,0.50,Non-staff travel and subsistance
BEIS,UKRI - AHRC,05/11/2018,Non-staff travel and subsistance,"Histories,Culture & Heritage",Corporate Travel Management (North) Ltd,98324774,75.00,Non-staff travel and subsistance
BEIS,UKRI - AHRC,05/11/2018,Non-staff travel and subsistance,"Histories,Culture & Heritage",Corporate Travel Management (North) Ltd,98324774,0.50,Non-staff travel and subsistance
BEIS,UKRI - AHRC,05/11/2018,Non-staff travel and subsistance,"Histories,Culture & Heritage",Corporate Travel Management (North) Ltd,98324774,75.00,Non-staff travel and subsistance
BEIS,UKRI - AHRC,05/11/2018,Non-staff travel and subsistance,"Histories,Culture & Heritage",Corporate Travel Management (North) Ltd,98324774,0.60,Non-staff travel and subsistance
BEIS,UKRI - AHRC,05/11/2018,Non-staff travel and subsistance,"Languages,Literature & International Engagement",Corporate Travel Management (North) Ltd,98324774,0.50,Non-staff travel and subsistance
BEIS,UKRI - AHRC,05/11/2018,Non-staff travel and subsistance,"Languages,Literature & International Engagement",Corporate Travel Management (North) Ltd,98324774,41.50,Non-staff travel and subsistance
BEIS,UKRI - AHRC,05/11/2018,Non-staff travel and subsistance,"Languages,Literature & International Engagement",Corporate Travel Management (North) Ltd,98324774,0.50,Non-staff travel and subsistance
BEIS,UKRI - AHRC,05/11/2018,Non-staff travel and subsistance,"Languages,Literature & International Engagement",Corporate Travel Management (North) Ltd,98324774,41.50,Non-staff travel and subsistance
BEIS,UKRI - AHRC,05/11/2018,Non-staff travel and subsistance,"Languages,Literature & International Engagement",Corporate Travel Management (North) Ltd,98324774,0.50,Non-staff travel and subsistance
BEIS,UKRI - AHRC,05/11/2018,Non-staff travel and subsistance,"Languages,Literature & International Engagement",Corporate Travel Management (North) Ltd,98324774,41.50,Non-staff travel and subsistance
BEIS,UKRI - AHRC,05/11/2018,Non-staff travel and subsistance,"Languages,Literature & International Engagement",Corporate Travel Management (North) Ltd,98324774,0.50,Non-staff travel and subsistance
BEIS,UKRI - AHRC,05/11/2018,Non-staff travel and subsistance,"Languages,Literature & International Engagement",Corporate Travel Management (North) Ltd,98324774,41.50,Non-staff travel and subsistance
BEIS,UKRI - AHRC,05/11/2018,Non-staff travel and subsistance,"Languages,Literature & International Engagement",Corporate Travel Management (North) Ltd,98324774,0.50,Non-staff travel and subsistance
BEIS,UKRI - AHRC,05/11/2018,Non-staff travel and subsistance,"Languages,Literature & International Engagement",Corporate Travel Management (North) Ltd,98324774,41.50,Non-staff travel and subsistance
BEIS,UKRI - AHRC,05/11/2018,Non-staff travel and subsistance,"Languages,Literature & International Engagement",Corporate Travel Management (North) Ltd,98324774,0.50,Non-staff travel and subsistance
BEIS,UKRI - AHRC,05/11/2018,Non-staff travel and subsistance,"Languages,Literature & International Engagement",Corporate Travel Management (North) Ltd,98324774,41.50,Non-staff travel and subsistance
BEIS,UKRI - AHRC,05/11/2018,Non-staff travel and subsistance,"Languages,Literature & International Engagement",Corporate Travel Management (North) Ltd,98324774,0.50,Non-staff travel and subsistance
BEIS,UKRI - AHRC,05/11/2018,Non-staff travel and subsistance,"Languages,Literature & International Engagement",Corporate Travel Management (North) Ltd,98324774,41.50,Non-staff travel and subsistance
BEIS,UKRI - AHRC,05/11/2018,Non-staff travel and subsistance,"Languages,Literature & International Engagement",Corporate Travel Management (North) Ltd,98324774,0.70,Non-staff travel and subsistance
BEIS,UKRI - AHRC,05/11/2018,Non-staff travel and subsistance,PSU Project Office,Corporate Travel Management (North) Ltd,98324774,0.50,Non-staff travel and subsistance
BEIS,UKRI - AHRC,05/11/2018,Non-staff travel and subsistance,PSU Project Office,Corporate Travel Management (North) Ltd,98324774,0.10,Non-staff travel and subsistance
BEIS,UKRI - AHRC,05/11/2018,T&S Overseas - Accommodation,International,Corporate Travel Management (North) Ltd,98324774,0.50,T&S Overseas - Accommodation
BEIS,UKRI - AHRC,05/11/2018,T&S Overseas - Accommodation,International,Corporate Travel Management (North) Ltd,98324774,0.10,T&S Overseas - Accommodation
BEIS,UKRI - AHRC,05/11/2018,T&S Overseas - Accommodation,"Languages,Literature & International Engagement",Corporate Travel Management (North) Ltd,98324774,0.50,T&S Overseas - Accommodation
BEIS,UKRI - AHRC,05/11/2018,T&S Overseas - Accommodation,"Languages,Literature & International Engagement",Corporate Travel Management (North) Ltd,98324774,0.10,T&S Overseas - Accommodation
BEIS,UKRI - AHRC,05/11/2018,T&S Overseas - Accommodation,SMT,Corporate Travel Management (North) Ltd,98324774,0.50,T&S Overseas - Accommodation
BEIS,UKRI - AHRC,05/11/2018,T&S Overseas - Accommodation,SMT,Corporate Travel Management (North) Ltd,98324774,1.44,T&S Overseas - Accommodation
BEIS,UKRI - AHRC,05/11/2018,T&S Overseas - Accommodation,SMT,Corporate Travel Management (North) Ltd,98324774,0.50,T&S Overseas - Accommodation
BEIS,UKRI - AHRC,05/11/2018,T&S Overseas - Accommodation,SMT,Corporate Travel Management (North) Ltd,98324774,1.44,T&S Overseas - Accommodation
BEIS,UKRI - AHRC,05/11/2018,T&S Overseas - Accommodation,SMT,Corporate Travel Management (North) Ltd,98324774,6.75,T&S Overseas - Accommodation
BEIS,UKRI - AHRC,05/11/2018,T&S Overseas - Accommodation,SMT,Corporate Travel Management (North) Ltd,98324774,432.60,T&S Overseas - Accommodation
BEIS,UKRI - AHRC,05/11/2018,T&S Overseas - Accommodation,SMT,Corporate Travel Management (North) Ltd,98324774,2.13,T&S Overseas - Accommodation
BEIS,UKRI - AHRC,05/11/2018,T&S Overseas - Flights,"AHRC - Strategic Planning, Evidence & Impact",Corporate Travel Management (North) Ltd,98324774,487.41,T&S Overseas - Flights
BEIS,UKRI - AHRC,05/11/2018,T&S Overseas - Flights,"AHRC - Strategic Planning, Evidence & Impact",Corporate Travel Management (North) Ltd,98324774,6.75,T&S Overseas - Flights
BEIS,UKRI - AHRC,05/11/2018,T&S Overseas - Flights,"AHRC - Strategic Planning, Evidence & Impact",Corporate Travel Management (North) Ltd,98324774,201.45,T&S Overseas - Flights
BEIS,UKRI - AHRC,05/11/2018,T&S Overseas - Flights,"AHRC - Strategic Planning, Evidence & Impact",Corporate Travel Management (North) Ltd,98324774,100.00,T&S Overseas - Flights
BEIS,UKRI - AHRC,05/11/2018,T&S Overseas - Flights,"AHRC - Strategic Planning, Evidence & Impact",Corporate Travel Management (North) Ltd,98324774,157.60,T&S Overseas - Flights
BEIS,UKRI - AHRC,05/11/2018,T&S Overseas - Flights,"AHRC - Strategic Planning, Evidence & Impact",Corporate Travel Management (North) Ltd,98324774,529.20,T&S Overseas - Flights
BEIS,UKRI - AHRC,05/11/2018,T&S Overseas - Flights,"AHRC - Strategic Planning, Evidence & Impact",Corporate Travel Management (North) Ltd,98324774,41.64,T&S Overseas - Flights
BEIS,UKRI - AHRC,05/11/2018,T&S Overseas - Flights,Creative Arts & Digital Humanities,Corporate Travel Management (North) Ltd,98324774,2.16,T&S Overseas - Flights
BEIS,UKRI - AHRC,05/11/2018,T&S Overseas - Flights,Creative Arts & Digital Humanities,Corporate Travel Management (North) Ltd,98324774,2250.91,T&S Overseas - Flights
BEIS,UKRI - AHRC,05/11/2018,T&S Overseas - Flights,Creative Arts & Digital Humanities,Corporate Travel Management (North) Ltd,98324774,6.75,T&S Overseas - Flights
BEIS,UKRI - AHRC,05/11/2018,T&S Overseas - Flights,Creative Arts & Digital Humanities,Corporate Travel Management (North) Ltd,98324774,186.45,T&S Overseas - Flights
BEIS,UKRI - AHRC,05/11/2018,T&S Overseas - Flights,Creative Arts & Digital Humanities,Corporate Travel Management (North) Ltd,98324774,85.00,T&S Overseas - Flights
BEIS,UKRI - AHRC,05/11/2018,T&S Overseas - Flights,Creative Arts & Digital Humanities,Corporate Travel Management (North) Ltd,98324774,6.75,T&S Overseas - Flights
BEIS,UKRI - AHRC,05/11/2018,T&S Overseas - Flights,Creative Arts & Digital Humanities,Corporate Travel Management (North) Ltd,98324774,216.45,T&S Overseas - Flights
BEIS,UKRI - AHRC,05/11/2018,T&S Overseas - Flights,Creative Arts & Digital Humanities,Corporate Travel Management (North) Ltd,98324774,100.00,T&S Overseas - Flights
BEIS,UKRI - AHRC,05/11/2018,T&S Overseas - Flights,Creative Arts & Digital Humanities,Corporate Travel Management (North) Ltd,98324774,197.00,T&S Overseas - Flights
BEIS,UKRI - AHRC,05/11/2018,T&S Overseas - Flights,Creative Arts & Digital Humanities,Corporate Travel Management (North) Ltd,98324774,83.28,T&S Overseas - Flights
BEIS,UKRI - AHRC,05/11/2018,T&S Overseas - Flights,Fund for International Collaboration,Corporate Travel Management (North) Ltd,98324774,2.16,T&S Overseas - Flights
BEIS,UKRI - AHRC,05/11/2018,T&S Overseas - Flights,Fund for International Collaboration,Corporate Travel Management (North) Ltd,98324774,2649.91,T&S Overseas - Flights
BEIS,UKRI - AHRC,05/11/2018,T&S Overseas - Flights,Fund for International Collaboration,Corporate Travel Management (North) Ltd,98324774,2.16,T&S Overseas - Flights
BEIS,UKRI - AHRC,05/11/2018,T&S Overseas - Flights,Fund for International Collaboration,Corporate Travel Management (North) Ltd,98324774,2649.81,T&S Overseas - Flights
BEIS,UKRI - AHRC,05/11/2018,T&S Overseas - Flights,Fund for International Collaboration,Corporate Travel Management (North) Ltd,98324774,2.16,T&S Overseas - Flights
BEIS,UKRI - AHRC,05/11/2018,T&S Overseas - Flights,Fund for International Collaboration,Corporate Travel Management (North) Ltd,98324774,4225.81,T&S Overseas - Flights
BEIS,UKRI - AHRC,05/11/2018,T&S Overseas - Flights,Fund for International Collaboration,Corporate Travel Management (North) Ltd,98324774,6.75,T&S Overseas - Flights
BEIS,UKRI - AHRC,05/11/2018,T&S Overseas - Flights,Fund for International Collaboration,Corporate Travel Management (North) Ltd,98324774,449.45,T&S Overseas - Flights
BEIS,UKRI - AHRC,05/11/2018,T&S Overseas - Flights,Fund for International Collaboration,Corporate Travel Management (North) Ltd,98324774,241.00,T&S Overseas - Flights
BEIS,UKRI - AHRC,05/11/2018,T&S Overseas - Flights,Fund for International Collaboration,Corporate Travel Management (North) Ltd,98324774,91.24,T&S Overseas - Flights
BEIS,UKRI - AHRC,05/11/2018,T&S Overseas - Flights,HERA JRP Project,Corporate Travel Management (North) Ltd,98324774,63.42,T&S Overseas - Flights
BEIS,UKRI - AHRC,05/11/2018,T&S Overseas - Flights,HERA JRP Project,Corporate Travel Management (North) Ltd,98324774,183.50,T&S Overseas - Flights
BEIS,UKRI - AHRC,05/11/2018,T&S Overseas - Flights,HR,Corporate Travel Management (North) Ltd,98324774,744.90,T&S Overseas - Flights
BEIS,UKRI - AHRC,05/11/2018,T&S Overseas - Flights,"Histories,Culture & Heritage",Corporate Travel Management (North) Ltd,98324774,117.80,T&S Overseas - Flights
BEIS,UKRI - AHRC,05/11/2018,T&S Overseas - Flights,International,Corporate Travel Management (North) Ltd,98324774,2478.41,T&S Overseas - Flights
BEIS,UKRI - AHRC,05/11/2018,T&S Overseas - Flights,International,Corporate Travel Management (North) Ltd,98324774,2.16,T&S Overseas - Flights
BEIS,UKRI - AHRC,05/11/2018,T&S Overseas - Flights,International,Corporate Travel Management (North) Ltd,98324774,2241.61,T&S Overseas - Flights
BEIS,UKRI - AHRC,05/11/2018,T&S Overseas - Flights,International,Corporate Travel Management (North) Ltd,98324774,358.71,T&S Overseas - Flights
BEIS,UKRI - AHRC,05/11/2018,T&S Overseas - Flights,"Languages,Literature & International Engagement",Corporate Travel Management (North) Ltd,98324774,63.42,T&S Overseas - Flights
BEIS,UKRI - AHRC,05/11/2018,T&S Overseas - Flights,"Languages,Literature & International Engagement",Corporate Travel Management (North) Ltd,98324774,183.50,T&S Overseas - Flights
BEIS,UKRI - AHRC,05/11/2018,T&S Overseas - Flights,SMT,Corporate Travel Management (North) Ltd,98324774,240.30,T&S Overseas - Flights
BEIS,UKRI - AHRC,05/11/2018,T&S Overseas - Flights,SMT,Corporate Travel Management (North) Ltd,98324774,6.75,T&S Overseas - Flights
BEIS,UKRI - AHRC,05/11/2018,T&S Overseas - Flights,SMT,Corporate Travel Management (North) Ltd,98324774,201.45,T&S Overseas - Flights
BEIS,UKRI - AHRC,05/11/2018,T&S Overseas - Flights,SMT,Corporate Travel Management (North) Ltd,98324774,100.00,T&S Overseas - Flights
BEIS,UKRI - AHRC,05/11/2018,T&S Overseas - Flights,SMT,Corporate Travel Management (North) Ltd,98324774,115.60,T&S Overseas - Flights
BEIS,UKRI - AHRC,05/11/2018,T&S Overseas - Flights,SMT,Corporate Travel Management (North) Ltd,98324774,158.70,T&S Overseas - Flights
BEIS,UKRI - AHRC,05/11/2018,T&S Overseas - Flights,SMT,Corporate Travel Management (North) Ltd,98324774,2701.20,T&S Overseas - Flights
BEIS,UKRI - AHRC,05/11/2018,T&S Overseas - Flights,SMT,Corporate Travel Management (North) Ltd,98324774,41.64,T&S Overseas - Flights
BEIS,UKRI - AHRC,05/11/2018,T&S Overseas - Other Charges,Creative Arts & Digital Humanities,Corporate Travel Management (North) Ltd,98324774,23.00,T&S Overseas - Other Charges
BEIS,UKRI - AHRC,05/11/2018,T&S Overseas - Other Charges,Creative Arts & Digital Humanities,Corporate Travel Management (North) Ltd,98324774,139.60,T&S Overseas - Other Charges
BEIS,UKRI - AHRC,05/11/2018,T&S Overseas - Other Charges,"Languages,Literature & International Engagement",Corporate Travel Management (North) Ltd,98324774,178.00,T&S Overseas - Other Charges
BEIS,UKRI - AHRC,05/11/2018,T&S Overseas - Public Transport,Creative Arts & Digital Humanities,Corporate Travel Management (North) Ltd,98324774,37.30,T&S Overseas - Public Transport
BEIS,UKRI - AHRC,05/11/2018,T&S UK - Accommodation,Business Process & Analysis,Corporate Travel Management (North) Ltd,98324774,0.50,T&S UK - Accommodation
BEIS,UKRI - AHRC,05/11/2018,T&S UK - Accommodation,Business Process & Analysis,Corporate Travel Management (North) Ltd,98324774,315.00,T&S UK - Accommodation
BEIS,UKRI - AHRC,05/11/2018,T&S UK - Accommodation,Business Process & Analysis,Corporate Travel Management (North) Ltd,98324774,0.50,T&S UK - Accommodation
BEIS,UKRI - AHRC,05/11/2018,T&S UK - Accommodation,Business Process & Analysis,Corporate Travel Management (North) Ltd,98324774,286.00,T&S UK - Accommodation
BEIS,UKRI - AHRC,05/11/2018,T&S UK - Accommodation,Business Process & Analysis,Corporate Travel Management (North) Ltd,98324774,0.50,T&S UK - Accommodation
BEIS,UKRI - AHRC,05/11/2018,T&S UK - Accommodation,Business Process & Analysis,Corporate Travel Management (North) Ltd,98324774,143.00,T&S UK - Accommodation
BEIS,UKRI - AHRC,05/11/2018,T&S UK - Accommodation,Business Process & Analysis,Corporate Travel Management (North) Ltd,98324774,0.30,T&S UK - Accommodation
BEIS,UKRI - AHRC,05/11/2018,T&S UK - Accommodation,Communications,Corporate Travel Management (North) Ltd,98324774,0.50,T&S UK - Accommodation
BEIS,UKRI - AHRC,05/11/2018,T&S UK - Accommodation,Communications,Corporate Travel Management (North) Ltd,98324774,64.00,T&S UK - Accommodation
BEIS,UKRI - AHRC,05/11/2018,T&S UK - Accommodation,Communications,Corporate Travel Management (North) Ltd,98324774,0.10,T&S UK - Accommodation
BEIS,UKRI - AHRC,05/11/2018,T&S UK - Accommodation,Creative Arts & Digital Humanities,Corporate Travel Management (North) Ltd,98324774,0.50,T&S UK - Accommodation
BEIS,UKRI - AHRC,05/11/2018,T&S UK - Accommodation,Creative Arts & Digital Humanities,Corporate Travel Management (North) Ltd,98324774,155.00,T&S UK - Accommodation
BEIS,UKRI - AHRC,05/11/2018,T&S UK - Accommodation,Creative Arts & Digital Humanities,Corporate Travel Management (North) Ltd,98324774,0.10,T&S UK - Accommodation
BEIS,UKRI - AHRC,05/11/2018,T&S UK - Accommodation,"Histories,Culture & Heritage",Corporate Travel Management (North) Ltd,98324774,0.50,T&S UK - Accommodation
BEIS,UKRI - AHRC,05/11/2018,T&S UK - Accommodation,"Histories,Culture & Heritage",Corporate Travel Management (North) Ltd,98324774,75.00,T&S UK - Accommodation
BEIS,UKRI - AHRC,05/11/2018,T&S UK - Accommodation,"Histories,Culture & Heritage",Corporate Travel Management (North) Ltd,98324774,0.50,T&S UK - Accommodation
BEIS,UKRI - AHRC,05/11/2018,T&S UK - Accommodation,"Histories,Culture & Heritage",Corporate Travel Management (North) Ltd,98324774,75.00,T&S UK - Accommodation
BEIS,UKRI - AHRC,05/11/2018,T&S UK - Accommodation,"Histories,Culture & Heritage",Corporate Travel Management (North) Ltd,98324774,0.50,T&S UK - Accommodation
BEIS,UKRI - AHRC,05/11/2018,T&S UK - Accommodation,"Histories,Culture & Heritage",Corporate Travel Management (North) Ltd,98324774,112.50,T&S UK - Accommodation
BEIS,UKRI - AHRC,05/11/2018,T&S UK - Accommodation,"Histories,Culture & Heritage",Corporate Travel Management (North) Ltd,98324774,0.50,T&S UK - Accommodation
BEIS,UKRI - AHRC,05/11/2018,T&S UK - Accommodation,"Histories,Culture & Heritage",Corporate Travel Management (North) Ltd,98324774,75.00,T&S UK - Accommodation
BEIS,UKRI - AHRC,05/11/2018,T&S UK - Accommodation,"Histories,Culture & Heritage",Corporate Travel Management (North) Ltd,98324774,0.50,T&S UK - Accommodation
BEIS,UKRI - AHRC,05/11/2018,T&S UK - Accommodation,"Histories,Culture & Heritage",Corporate Travel Management (North) Ltd,98324774,334.00,T&S UK - Accommodation
BEIS,UKRI - AHRC,05/11/2018,T&S UK - Accommodation,"Histories,Culture & Heritage",Corporate Travel Management (North) Ltd,98324774,0.50,T&S UK - Accommodation
BEIS,UKRI - AHRC,05/11/2018,T&S UK - Accommodation,IS,Corporate Travel Management (North) Ltd,98324774,0.50,T&S UK - Accommodation
BEIS,UKRI - AHRC,05/11/2018,T&S UK - Accommodation,IS,Corporate Travel Management (North) Ltd,98324774,99.00,T&S UK - Accommodation
BEIS,UKRI - AHRC,05/11/2018,T&S UK - Accommodation,IS,Corporate Travel Management (North) Ltd,98324774,0.50,T&S UK - Accommodation
BEIS,UKRI - AHRC,05/11/2018,T&S UK - Accommodation,IS,Corporate Travel Management (North) Ltd,98324774,145.99,T&S UK - Accommodation
BEIS,UKRI - AHRC,05/11/2018,T&S UK - Accommodation,IS,Corporate Travel Management (North) Ltd,98324774,0.20,T&S UK - Accommodation
BEIS,UKRI - AHRC,05/11/2018,T&S UK - Accommodation,SMT,Corporate Travel Management (North) Ltd,98324774,0.50,T&S UK - Accommodation
BEIS,UKRI - AHRC,05/11/2018,T&S UK - Accommodation,SMT,Corporate Travel Management (North) Ltd,98324774,65.00,T&S UK - Accommodation
BEIS,UKRI - AHRC,05/11/2018,T&S UK - Accommodation,SMT,Corporate Travel Management (North) Ltd,98324774,0.50,T&S UK - Accommodation
BEIS,UKRI - AHRC,05/11/2018,T&S UK - Accommodation,SMT,Corporate Travel Management (North) Ltd,98324774,1.44,T&S UK - Accommodation
BEIS,UKRI - AHRC,05/11/2018,T&S UK - Accommodation,SMT,Corporate Travel Management (North) Ltd,98324774,145.64,T&S UK - Accommodation
BEIS,UKRI - AHRC,05/11/2018,T&S UK - Accommodation,SMT,Corporate Travel Management (North) Ltd,98324774,0.50,T&S UK - Accommodation
BEIS,UKRI - AHRC,05/11/2018,T&S UK - Accommodation,SMT,Corporate Travel Management (North) Ltd,98324774,169.50,T&S UK - Accommodation
BEIS,UKRI - AHRC,05/11/2018,T&S UK - Accommodation,SMT,Corporate Travel Management (North) Ltd,98324774,0.50,T&S UK - Accommodation
BEIS,UKRI - AHRC,05/11/2018,T&S UK - Accommodation,SMT,Corporate Travel Management (North) Ltd,98324774,1.00,T&S UK - Accommodation
BEIS,UKRI - AHRC,05/11/2018,T&S UK - Accommodation,SMT,Corporate Travel Management (North) Ltd,98324774,258.00,T&S UK - Accommodation
BEIS,UKRI - AHRC,05/11/2018,T&S UK - Accommodation,SMT,Corporate Travel Management (North) Ltd,98324774,0.50,T&S UK - Accommodation
BEIS,UKRI - AHRC,05/11/2018,T&S UK - Accommodation,SMT,Corporate Travel Management (North) Ltd,98324774,169.50,T&S UK - Accommodation
BEIS,UKRI - AHRC,05/11/2018,T&S UK - Accommodation,SMT,Corporate Travel Management (North) Ltd,98324774,0.99,T&S UK - Accommodation
BEIS,UKRI - AHRC,05/11/2018,T&S UK - Accommodation,Secretariat,Corporate Travel Management (North) Ltd,98324774,0.50,T&S UK - Accommodation
BEIS,UKRI - AHRC,05/11/2018,T&S UK - Accommodation,Secretariat,Corporate Travel Management (North) Ltd,98324774,140.00,T&S UK - Accommodation
BEIS,UKRI - AHRC,05/11/2018,T&S UK - Accommodation,Secretariat,Corporate Travel Management (North) Ltd,98324774,0.50,T&S UK - Accommodation
BEIS,UKRI - AHRC,05/11/2018,T&S UK - Accommodation,Secretariat,Corporate Travel Management (North) Ltd,98324774,0.50,T&S UK - Accommodation
BEIS,UKRI - AHRC,05/11/2018,T&S UK - Accommodation,Secretariat,Corporate Travel Management (North) Ltd,98324774,139.80,T&S UK - Accommodation
BEIS,UKRI - AHRC,05/11/2018,T&S UK - Accommodation,Secretariat,Corporate Travel Management (North) Ltd,98324774,0.50,T&S UK - Accommodation
BEIS,UKRI - AHRC,05/11/2018,T&S UK - Accommodation,Secretariat,Corporate Travel Management (North) Ltd,98324774,140.00,T&S UK - Accommodation
BEIS,UKRI - AHRC,05/11/2018,T&S UK - Accommodation,Secretariat,Corporate Travel Management (North) Ltd,98324774,0.50,T&S UK - Accommodation
BEIS,UKRI - AHRC,05/11/2018,T&S UK - Accommodation,Secretariat,Corporate Travel Management (North) Ltd,98324774,280.01,T&S UK - Accommodation
BEIS,UKRI - AHRC,05/11/2018,T&S UK - Accommodation,Secretariat,Corporate Travel Management (North) Ltd,98324774,0.50,T&S UK - Accommodation
BEIS,UKRI - AHRC,05/11/2018,T&S UK - Accommodation,Secretariat,Corporate Travel Management (North) Ltd,98324774,140.00,T&S UK - Accommodation
BEIS,UKRI - AHRC,05/11/2018,T&S UK - Accommodation,Secretariat,Corporate Travel Management (North) Ltd,98324774,0.50,T&S UK - Accommodation
BEIS,UKRI - AHRC,05/11/2018,T&S UK - Accommodation,Secretariat,Corporate Travel Management (North) Ltd,98324774,161.10,T&S UK - Accommodation
BEIS,UKRI - AHRC,05/11/2018,T&S UK - Accommodation,Secretariat,Corporate Travel Management (North) Ltd,98324774,0.50,T&S UK - Accommodation
BEIS,UKRI - AHRC,05/11/2018,T&S UK - Accommodation,Secretariat,Corporate Travel Management (North) Ltd,98324774,140.00,T&S UK - Accommodation
BEIS,UKRI - AHRC,05/11/2018,T&S UK - Accommodation,Secretariat,Corporate Travel Management (North) Ltd,98324774,0.80,T&S UK - Accommodation
BEIS,UKRI - AHRC,05/11/2018,T&S UK - Flights,Creative Arts & Digital Humanities,Corporate Travel Management (North) Ltd,98324774,6.75,T&S UK - Flights
BEIS,UKRI - AHRC,05/11/2018,T&S UK - Flights,Creative Arts & Digital Humanities,Corporate Travel Management (North) Ltd,98324774,186.45,T&S UK - Flights
BEIS,UKRI - AHRC,05/11/2018,T&S UK - Flights,Creative Arts & Digital Humanities,Corporate Travel Management (North) Ltd,98324774,85.00,T&S UK - Flights
BEIS,UKRI - AHRC,05/11/2018,T&S UK - Flights,Creative Arts & Digital Humanities,Corporate Travel Management (North) Ltd,98324774,38.64,T&S UK - Flights
BEIS,UKRI - AHRC,05/11/2018,T&S UK - Flights,SMT,Corporate Travel Management (North) Ltd,98324774,6.75,T&S UK - Flights
BEIS,UKRI - AHRC,05/11/2018,T&S UK - Flights,SMT,Corporate Travel Management (North) Ltd,98324774,267.40,T&S UK - Flights
BEIS,UKRI - AHRC,05/11/2018,T&S UK - Flights,SMT,Corporate Travel Management (North) Ltd,98324774,141.00,T&S UK - Flights
BEIS,UKRI - AHRC,05/11/2018,T&S UK - Flights,SMT,Corporate Travel Management (North) Ltd,98324774,83.37,T&S UK - Flights
BEIS,UKRI - AHRC,05/11/2018,T&S UK - Flights,SMT,Corporate Travel Management (North) Ltd,98324774,54.83,T&S UK - Flights
BEIS,UKRI - AHRC,05/11/2018,T&S UK - Other Charges,Industrial Strategy Challenge Fund (ISCF) - Creative Clusters,Corporate Travel Management (North) Ltd,98324774,139.60,T&S UK - Other Charges
BEIS,UKRI - AHRC,05/11/2018,T&S UK - Other Charges,Industrial Strategy Challenge Fund (ISCF) - Creative Clusters,Corporate Travel Management (North) Ltd,98324774,139.60,T&S UK - Other Charges
BEIS,UKRI - AHRC,05/11/2018,T&S UK - Parking Tolls Congestion Charges,HR,Corporate Travel Management (North) Ltd,98324774,60.99,T&S UK - Parking Tolls Congestion Charges
BEIS,UKRI - AHRC,05/11/2018,T&S UK - Public Transport,"AHRC - Strategic Planning, Evidence & Impact",Corporate Travel Management (North) Ltd,98324774,217.40,T&S UK - Public Transport
BEIS,UKRI - AHRC,05/11/2018,T&S UK - Public Transport,"AHRC - Strategic Planning, Evidence & Impact",Corporate Travel Management (North) Ltd,98324774,59.60,T&S UK - Public Transport
BEIS,UKRI - AHRC,05/11/2018,T&S UK - Public Transport,"AHRC - Strategic Planning, Evidence & Impact",Corporate Travel Management (North) Ltd,98324774,65.90,T&S UK - Public Transport
BEIS,UKRI - AHRC,05/11/2018,T&S UK - Public Transport,"AHRC - Strategic Planning, Evidence & Impact",Corporate Travel Management (North) Ltd,98324774,139.60,T&S UK - Public Transport
BEIS,UKRI - AHRC,05/11/2018,T&S UK - Public Transport,"AHRC - Strategic Planning, Evidence & Impact",Corporate Travel Management (North) Ltd,98324774,44.10,T&S UK - Public Transport
BEIS,UKRI - AHRC,05/11/2018,T&S UK - Public Transport,"AHRC - Strategic Planning, Evidence & Impact",Corporate Travel Management (North) Ltd,98324774,39.60,T&S UK - Public Transport
BEIS,UKRI - AHRC,05/11/2018,T&S UK - Public Transport,"AHRC - Strategic Planning, Evidence & Impact",Corporate Travel Management (North) Ltd,98324774,1.00,T&S UK - Public Transport
BEIS,UKRI - AHRC,05/11/2018,T&S UK - Public Transport,"AHRC - Strategic Planning, Evidence & Impact",Corporate Travel Management (North) Ltd,98324774,88.20,T&S UK - Public Transport
BEIS,UKRI - AHRC,05/11/2018,T&S UK - Public Transport,Business Process & Analysis,Corporate Travel Management (North) Ltd,98324774,-134.60,T&S UK - Public Transport
BEIS,UKRI - AHRC,05/11/2018,T&S UK - Public Transport,Business Process & Analysis,Corporate Travel Management (North) Ltd,98324774,69.20,T&S UK - Public Transport
BEIS,UKRI - AHRC,05/11/2018,T&S UK - Public Transport,Business Process & Analysis,Corporate Travel Management (North) Ltd,98324774,135.90,T&S UK - Public Transport
BEIS,UKRI - AHRC,05/11/2018,T&S UK - Public Transport,Business Process & Analysis,Corporate Travel Management (North) Ltd,98324774,140.20,T&S UK - Public Transport
BEIS,UKRI - AHRC,05/11/2018,T&S UK - Public Transport,Communications,Corporate Travel Management (North) Ltd,98324774,18.10,T&S UK - Public Transport
BEIS,UKRI - AHRC,05/11/2018,T&S UK - Public Transport,Communications,Corporate Travel Management (North) Ltd,98324774,1.00,T&S UK - Public Transport
BEIS,UKRI - AHRC,05/11/2018,T&S UK - Public Transport,Communications,Corporate Travel Management (North) Ltd,98324774,153.00,T&S UK - Public Transport
BEIS,UKRI - AHRC,05/11/2018,T&S UK - Public Transport,Communications,Corporate Travel Management (North) Ltd,98324774,69.20,T&S UK - Public Transport
BEIS,UKRI - AHRC,05/11/2018,T&S UK - Public Transport,Communications,Corporate Travel Management (North) Ltd,98324774,1.00,T&S UK - Public Transport
BEIS,UKRI - AHRC,05/11/2018,T&S UK - Public Transport,Communications,Corporate Travel Management (North) Ltd,98324774,217.40,T&S UK - Public Transport
BEIS,UKRI - AHRC,05/11/2018,T&S UK - Public Transport,Creative Arts & Digital Humanities,Corporate Travel Management (North) Ltd,98324774,217.40,T&S UK - Public Transport
BEIS,UKRI - AHRC,05/11/2018,T&S UK - Public Transport,Creative Arts & Digital Humanities,Corporate Travel Management (North) Ltd,98324774,217.40,T&S UK - Public Transport
BEIS,UKRI - AHRC,05/11/2018,T&S UK - Public Transport,Creative Arts & Digital Humanities,Corporate Travel Management (North) Ltd,98324774,165.60,T&S UK - Public Transport
BEIS,UKRI - AHRC,05/11/2018,T&S UK - Public Transport,Creative Arts & Digital Humanities,Corporate Travel Management (North) Ltd,98324774,69.80,T&S UK - Public Transport
BEIS,UKRI - AHRC,05/11/2018,T&S UK - Public Transport,Creative Arts & Digital Humanities,Corporate Travel Management (North) Ltd,98324774,100.70,T&S UK - Public Transport
BEIS,UKRI - AHRC,05/11/2018,T&S UK - Public Transport,Creative Arts & Digital Humanities,Corporate Travel Management (North) Ltd,98324774,61.80,T&S UK - Public Transport
BEIS,UKRI - AHRC,05/11/2018,T&S UK - Public Transport,Creative Arts & Digital Humanities,Corporate Travel Management (North) Ltd,98324774,116.00,T&S UK - Public Transport
BEIS,UKRI - AHRC,05/11/2018,T&S UK - Public Transport,Creative Arts & Digital Humanities,Corporate Travel Management (North) Ltd,98324774,139.60,T&S UK - Public Transport
BEIS,UKRI - AHRC,05/11/2018,T&S UK - Public Transport,Creative Arts & Digital Humanities,Corporate Travel Management (North) Ltd,98324774,166.20,T&S UK - Public Transport
BEIS,UKRI - AHRC,05/11/2018,T&S UK - Public Transport,Creative Arts & Digital Humanities,Corporate Travel Management (North) Ltd,98324774,54.40,T&S UK - Public Transport
BEIS,UKRI - AHRC,05/11/2018,T&S UK - Public Transport,Creative Arts & Digital Humanities,Corporate Travel Management (North) Ltd,98324774,42.40,T&S UK - Public Transport
BEIS,UKRI - AHRC,05/11/2018,T&S UK - Public Transport,Creative Arts & Digital Humanities,Corporate Travel Management (North) Ltd,98324774,139.60,T&S UK - Public Transport
BEIS,UKRI - AHRC,05/11/2018,T&S UK - Public Transport,Creative Arts & Digital Humanities,Corporate Travel Management (North) Ltd,98324774,1.00,T&S UK - Public Transport
BEIS,UKRI - AHRC,05/11/2018,T&S UK - Public Transport,Creative Arts & Digital Humanities,Corporate Travel Management (North) Ltd,98324774,171.60,T&S UK - Public Transport
BEIS,UKRI - AHRC,05/11/2018,T&S UK - Public Transport,Creative Arts & Digital Humanities,Corporate Travel Management (North) Ltd,98324774,160.30,T&S UK - Public Transport
BEIS,UKRI - AHRC,05/11/2018,T&S UK - Public Transport,Creative Arts & Digital Humanities,Corporate Travel Management (North) Ltd,98324774,160.20,T&S UK - Public Transport
BEIS,UKRI - AHRC,05/11/2018,T&S UK - Public Transport,Creative Arts & Digital Humanities,Corporate Travel Management (North) Ltd,98324774,37.30,T&S UK - Public Transport
BEIS,UKRI - AHRC,05/11/2018,T&S UK - Public Transport,Creative Arts & Digital Humanities,Corporate Travel Management (North) Ltd,98324774,84.50,T&S UK - Public Transport
BEIS,UKRI - AHRC,05/11/2018,T&S UK - Public Transport,Finance,Corporate Travel Management (North) Ltd,98324774,23.00,T&S UK - Public Transport
BEIS,UKRI - AHRC,05/11/2018,T&S UK - Public Transport,Finance,Corporate Travel Management (North) Ltd,98324774,23.00,T&S UK - Public Transport
BEIS,UKRI - AHRC,05/11/2018,T&S UK - Public Transport,Fund for International Collaboration,Corporate Travel Management (North) Ltd,98324774,41.20,T&S UK - Public Transport
BEIS,UKRI - AHRC,05/11/2018,T&S UK - Public Transport,GCRF - Programme Delivery,Corporate Travel Management (North) Ltd,98324774,1.00,T&S UK - Public Transport
BEIS,UKRI - AHRC,05/11/2018,T&S UK - Public Transport,GCRF - Programme Delivery,Corporate Travel Management (North) Ltd,98324774,143.70,T&S UK - Public Transport
BEIS,UKRI - AHRC,05/11/2018,T&S UK - Public Transport,HR,Corporate Travel Management (North) Ltd,98324774,23.00,T&S UK - Public Transport
BEIS,UKRI - AHRC,05/11/2018,T&S UK - Public Transport,HR,Corporate Travel Management (North) Ltd,98324774,18.80,T&S UK - Public Transport
BEIS,UKRI - AHRC,05/11/2018,T&S UK - Public Transport,HR,Corporate Travel Management (North) Ltd,98324774,139.60,T&S UK - Public Transport
BEIS,UKRI - AHRC,05/11/2018,T&S UK - Public Transport,HR,Corporate Travel Management (North) Ltd,98324774,117.70,T&S UK - Public Transport
BEIS,UKRI - AHRC,05/11/2018,T&S UK - Public Transport,HR,Corporate Travel Management (North) Ltd,98324774,23.00,T&S UK - Public Transport
BEIS,UKRI - AHRC,05/11/2018,T&S UK - Public Transport,HR,Corporate Travel Management (North) Ltd,98324774,23.00,T&S UK - Public Transport
BEIS,UKRI - AHRC,05/11/2018,T&S UK - Public Transport,HR,Corporate Travel Management (North) Ltd,98324774,34.90,T&S UK - Public Transport
BEIS,UKRI - AHRC,05/11/2018,T&S UK - Public Transport,HR,Corporate Travel Management (North) Ltd,98324774,23.00,T&S UK - Public Transport
BEIS,UKRI - AHRC,05/11/2018,T&S UK - Public Transport,HR,Corporate Travel Management (North) Ltd,98324774,113.90,T&S UK - Public Transport
BEIS,UKRI - AHRC,05/11/2018,T&S UK - Public Transport,HR,Corporate Travel Management (North) Ltd,98324774,23.00,T&S UK - Public Transport
BEIS,UKRI - AHRC,05/11/2018,T&S UK - Public Transport,HR,Corporate Travel Management (North) Ltd,98324774,23.00,T&S UK - Public Transport
BEIS,UKRI - AHRC,05/11/2018,T&S UK - Public Transport,HR,Corporate Travel Management (North) Ltd,98324774,23.00,T&S UK - Public Transport
BEIS,UKRI - AHRC,05/11/2018,T&S UK - Public Transport,HR,Corporate Travel Management (North) Ltd,98324774,77.30,T&S UK - Public Transport
BEIS,UKRI - AHRC,05/11/2018,T&S UK - Public Transport,HR,Corporate Travel Management (North) Ltd,98324774,46.80,T&S UK - Public Transport
BEIS,UKRI - AHRC,05/11/2018,T&S UK - Public Transport,HR,Corporate Travel Management (North) Ltd,98324774,34.90,T&S UK - Public Transport
BEIS,UKRI - AHRC,05/11/2018,T&S UK - Public Transport,HR,Corporate Travel Management (North) Ltd,98324774,140.30,T&S UK - Public Transport
BEIS,UKRI - AHRC,05/11/2018,T&S UK - Public Transport,HR,Corporate Travel Management (North) Ltd,98324774,10.50,T&S UK - Public Transport
BEIS,UKRI - AHRC,05/11/2018,T&S UK - Public Transport,HR,Corporate Travel Management (North) Ltd,98324774,23.00,T&S UK - Public Transport
BEIS,UKRI - AHRC,05/11/2018,T&S UK - Public Transport,"Histories,Culture & Heritage",Corporate Travel Management (North) Ltd,98324774,139.60,T&S UK - Public Transport
BEIS,UKRI - AHRC,05/11/2018,T&S UK - Public Transport,"Histories,Culture & Heritage",Corporate Travel Management (North) Ltd,98324774,84.30,T&S UK - Public Transport
BEIS,UKRI - AHRC,05/11/2018,T&S UK - Public Transport,"Histories,Culture & Heritage",Corporate Travel Management (North) Ltd,98324774,157.90,T&S UK - Public Transport
BEIS,UKRI - AHRC,05/11/2018,T&S UK - Public Transport,"Histories,Culture & Heritage",Corporate Travel Management (North) Ltd,98324774,157.90,T&S UK - Public Transport
BEIS,UKRI - AHRC,05/11/2018,T&S UK - Public Transport,"Histories,Culture & Heritage",Corporate Travel Management (North) Ltd,98324774,157.90,T&S UK - Public Transport
BEIS,UKRI - AHRC,05/11/2018,T&S UK - Public Transport,"Histories,Culture & Heritage",Corporate Travel Management (North) Ltd,98324774,139.60,T&S UK - Public Transport
BEIS,UKRI - AHRC,05/11/2018,T&S UK - Public Transport,"Histories,Culture & Heritage",Corporate Travel Management (North) Ltd,98324774,100.70,T&S UK - Public Transport
BEIS,UKRI - AHRC,05/11/2018,T&S UK - Public Transport,"Histories,Culture & Heritage",Corporate Travel Management (North) Ltd,98324774,213.60,T&S UK - Public Transport
BEIS,UKRI - AHRC,05/11/2018,T&S UK - Public Transport,"Histories,Culture & Heritage",Corporate Travel Management (North) Ltd,98324774,139.60,T&S UK - Public Transport
BEIS,UKRI - AHRC,05/11/2018,T&S UK - Public Transport,"Histories,Culture & Heritage",Corporate Travel Management (North) Ltd,98324774,139.60,T&S UK - Public Transport
BEIS,UKRI - AHRC,05/11/2018,T&S UK - Public Transport,"Histories,Culture & Heritage",Corporate Travel Management (North) Ltd,98324774,45.80,T&S UK - Public Transport
BEIS,UKRI - AHRC,05/11/2018,T&S UK - Public Transport,"Histories,Culture & Heritage",Corporate Travel Management (North) Ltd,98324774,67.90,T&S UK - Public Transport
BEIS,UKRI - AHRC,05/11/2018,T&S UK - Public Transport,"Histories,Culture & Heritage",Corporate Travel Management (North) Ltd,98324774,82.40,T&S UK - Public Transport
BEIS,UKRI - AHRC,05/11/2018,T&S UK - Public Transport,"Histories,Culture & Heritage",Corporate Travel Management (North) Ltd,98324774,116.00,T&S UK - Public Transport
BEIS,UKRI - AHRC,05/11/2018,T&S UK - Public Transport,"Histories,Culture & Heritage",Corporate Travel Management (North) Ltd,98324774,117.80,T&S UK - Public Transport
BEIS,UKRI - AHRC,05/11/2018,T&S UK - Public Transport,"Histories,Culture & Heritage",Corporate Travel Management (North) Ltd,98324774,117.80,T&S UK - Public Transport
BEIS,UKRI - AHRC,05/11/2018,T&S UK - Public Transport,"Histories,Culture & Heritage",Corporate Travel Management (North) Ltd,98324774,61.50,T&S UK - Public Transport
BEIS,UKRI - AHRC,05/11/2018,T&S UK - Public Transport,"Histories,Culture & Heritage",Corporate Travel Management (North) Ltd,98324774,105.80,T&S UK - Public Transport
BEIS,UKRI - AHRC,05/11/2018,T&S UK - Public Transport,"Histories,Culture & Heritage",Corporate Travel Management (North) Ltd,98324774,139.60,T&S UK - Public Transport
BEIS,UKRI - AHRC,05/11/2018,T&S UK - Public Transport,IS,Corporate Travel Management (North) Ltd,98324774,46.80,T&S UK - Public Transport
BEIS,UKRI - AHRC,05/11/2018,T&S UK - Public Transport,International,Corporate Travel Management (North) Ltd,98324774,108.70,T&S UK - Public Transport
BEIS,UKRI - AHRC,05/11/2018,T&S UK - Public Transport,International,Corporate Travel Management (North) Ltd,98324774,69.20,T&S UK - Public Transport
BEIS,UKRI - AHRC,05/11/2018,T&S UK - Public Transport,International,Corporate Travel Management (North) Ltd,98324774,84.90,T&S UK - Public Transport
BEIS,UKRI - AHRC,05/11/2018,T&S UK - Public Transport,International,Corporate Travel Management (North) Ltd,98324774,130.70,T&S UK - Public Transport
BEIS,UKRI - AHRC,05/11/2018,T&S UK - Public Transport,JPI Cultural Heritage Project,Corporate Travel Management (North) Ltd,98324774,64.75,T&S UK - Public Transport
BEIS,UKRI - AHRC,05/11/2018,T&S UK - Public Transport,JPI Cultural Heritage Project,Corporate Travel Management (North) Ltd,98324774,76.00,T&S UK - Public Transport
BEIS,UKRI - AHRC,05/11/2018,T&S UK - Public Transport,JPI Cultural Heritage Project,Corporate Travel Management (North) Ltd,98324774,84.28,T&S UK - Public Transport
BEIS,UKRI - AHRC,05/11/2018,T&S UK - Public Transport,"Languages,Literature & International Engagement",Corporate Travel Management (North) Ltd,98324774,146.00,T&S UK - Public Transport
BEIS,UKRI - AHRC,05/11/2018,T&S UK - Public Transport,"Languages,Literature & International Engagement",Corporate Travel Management (North) Ltd,98324774,146.00,T&S UK - Public Transport
BEIS,UKRI - AHRC,05/11/2018,T&S UK - Public Transport,"Languages,Literature & International Engagement",Corporate Travel Management (North) Ltd,98324774,30.10,T&S UK - Public Transport
BEIS,UKRI - AHRC,05/11/2018,T&S UK - Public Transport,"Languages,Literature & International Engagement",Corporate Travel Management (North) Ltd,98324774,46.80,T&S UK - Public Transport
BEIS,UKRI - AHRC,05/11/2018,T&S UK - Public Transport,"Languages,Literature & International Engagement",Corporate Travel Management (North) Ltd,98324774,139.60,T&S UK - Public Transport
BEIS,UKRI - AHRC,05/11/2018,T&S UK - Public Transport,"Languages,Literature & International Engagement",Corporate Travel Management (North) Ltd,98324774,69.20,T&S UK - Public Transport
BEIS,UKRI - AHRC,05/11/2018,T&S UK - Public Transport,"Languages,Literature & International Engagement",Corporate Travel Management (North) Ltd,98324774,69.20,T&S UK - Public Transport
BEIS,UKRI - AHRC,05/11/2018,T&S UK - Public Transport,"Languages,Literature & International Engagement",Corporate Travel Management (North) Ltd,98324774,53.90,T&S UK - Public Transport
BEIS,UKRI - AHRC,05/11/2018,T&S UK - Public Transport,Newton Programme Delivery,Corporate Travel Management (North) Ltd,98324774,139.60,T&S UK - Public Transport
BEIS,UKRI - AHRC,05/11/2018,T&S UK - Public Transport,PSU Project Office,Corporate Travel Management (North) Ltd,98324774,146.30,T&S UK - Public Transport
BEIS,UKRI - AHRC,05/11/2018,T&S UK - Public Transport,PSU Project Office,Corporate Travel Management (North) Ltd,98324774,146.30,T&S UK - Public Transport
BEIS,UKRI - AHRC,05/11/2018,T&S UK - Public Transport,PSU Project Office,Corporate Travel Management (North) Ltd,98324774,140.30,T&S UK - Public Transport
BEIS,UKRI - AHRC,05/11/2018,T&S UK - Public Transport,PSU Project Office,Corporate Travel Management (North) Ltd,98324774,140.30,T&S UK - Public Transport
BEIS,UKRI - AHRC,05/11/2018,T&S UK - Public Transport,PSU Project Office,Corporate Travel Management (North) Ltd,98324774,117.70,T&S UK - Public Transport
BEIS,UKRI - AHRC,05/11/2018,T&S UK - Public Transport,PSU Project Office,Corporate Travel Management (North) Ltd,98324774,1.00,T&S UK - Public Transport
BEIS,UKRI - AHRC,05/11/2018,T&S UK - Public Transport,PSU Project Office,Corporate Travel Management (North) Ltd,98324774,140.30,T&S UK - Public Transport
BEIS,UKRI - AHRC,05/11/2018,T&S UK - Public Transport,PSU Project Office,Corporate Travel Management (North) Ltd,98324774,183.20,T&S UK - Public Transport
BEIS,UKRI - AHRC,05/11/2018,T&S UK - Public Transport,PSU Project Office,Corporate Travel Management (North) Ltd,98324774,140.30,T&S UK - Public Transport
BEIS,UKRI - AHRC,05/11/2018,T&S UK - Public Transport,PSU Project Office,Corporate Travel Management (North) Ltd,98324774,140.30,T&S UK - Public Transport
BEIS,UKRI - AHRC,05/11/2018,T&S UK - Public Transport,PSU Project Office,Corporate Travel Management (North) Ltd,98324774,140.30,T&S UK - Public Transport
BEIS,UKRI - AHRC,05/11/2018,T&S UK - Public Transport,PSU Project Office,Corporate Travel Management (North) Ltd,98324774,139.60,T&S UK - Public Transport
BEIS,UKRI - AHRC,05/11/2018,T&S UK - Public Transport,PSU Project Office,Corporate Travel Management (North) Ltd,98324774,140.30,T&S UK - Public Transport
BEIS,UKRI - AHRC,05/11/2018,T&S UK - Public Transport,PSU Project Office,Corporate Travel Management (North) Ltd,98324774,153.90,T&S UK - Public Transport
BEIS,UKRI - AHRC,05/11/2018,T&S UK - Public Transport,PSU Project Office,Corporate Travel Management (North) Ltd,98324774,42.30,T&S UK - Public Transport
BEIS,UKRI - AHRC,05/11/2018,T&S UK - Public Transport,PSU Project Office,Corporate Travel Management (North) Ltd,98324774,9.30,T&S UK - Public Transport
BEIS,UKRI - AHRC,05/11/2018,T&S UK - Public Transport,PSU Project Office,Corporate Travel Management (North) Ltd,98324774,9.30,T&S UK - Public Transport
BEIS,UKRI - AHRC,05/11/2018,T&S UK - Public Transport,PSU Project Office,Corporate Travel Management (North) Ltd,98324774,74.80,T&S UK - Public Transport
BEIS,UKRI - AHRC,05/11/2018,T&S UK - Public Transport,SMT,Corporate Travel Management (North) Ltd,98324774,31.50,T&S UK - Public Transport
BEIS,UKRI - AHRC,05/11/2018,T&S UK - Public Transport,SMT,Corporate Travel Management (North) Ltd,98324774,27.90,T&S UK - Public Transport
BEIS,UKRI - AHRC,05/11/2018,T&S UK - Public Transport,SMT,Corporate Travel Management (North) Ltd,98324774,105.00,T&S UK - Public Transport
BEIS,UKRI - AHRC,05/11/2018,T&S UK - Public Transport,SMT,Corporate Travel Management (North) Ltd,98324774,1.00,T&S UK - Public Transport
BEIS,UKRI - AHRC,05/11/2018,T&S UK - Public Transport,SMT,Corporate Travel Management (North) Ltd,98324774,128.80,T&S UK - Public Transport
BEIS,UKRI - AHRC,05/11/2018,T&S UK - Public Transport,SMT,Corporate Travel Management (North) Ltd,98324774,15.20,T&S UK - Public Transport
BEIS,UKRI - AHRC,05/11/2018,T&S UK - Public Transport,SMT,Corporate Travel Management (North) Ltd,98324774,128.80,T&S UK - Public Transport
BEIS,UKRI - AHRC,05/11/2018,T&S UK - Public Transport,SMT,Corporate Travel Management (North) Ltd,98324774,1.00,T&S UK - Public Transport
BEIS,UKRI - AHRC,05/11/2018,T&S UK - Public Transport,SMT,Corporate Travel Management (North) Ltd,98324774,62.50,T&S UK - Public Transport
BEIS,UKRI - AHRC,05/11/2018,T&S UK - Public Transport,SMT,Corporate Travel Management (North) Ltd,98324774,1.00,T&S UK - Public Transport
BEIS,UKRI - AHRC,05/11/2018,T&S UK - Public Transport,SMT,Corporate Travel Management (North) Ltd,98324774,62.50,T&S UK - Public Transport
BEIS,UKRI - AHRC,05/11/2018,T&S UK - Public Transport,SMT,Corporate Travel Management (North) Ltd,98324774,1.00,T&S UK - Public Transport
BEIS,UKRI - AHRC,05/11/2018,T&S UK - Public Transport,SMT,Corporate Travel Management (North) Ltd,98324774,25.40,T&S UK - Public Transport
BEIS,UKRI - AHRC,05/11/2018,T&S UK - Public Transport,SMT,Corporate Travel Management (North) Ltd,98324774,94.70,T&S UK - Public Transport
BEIS,UKRI - AHRC,05/11/2018,T&S UK - Public Transport,SMT,Corporate Travel Management (North) Ltd,98324774,172.00,T&S UK - Public Transport
BEIS,UKRI - AHRC,05/11/2018,T&S UK - Public Transport,SMT,Corporate Travel Management (North) Ltd,98324774,1.00,T&S UK - Public Transport
BEIS,UKRI - AHRC,05/11/2018,T&S UK - Public Transport,SMT,Corporate Travel Management (North) Ltd,98324774,41.90,T&S UK - Public Transport
BEIS,UKRI - AHRC,05/11/2018,T&S UK - Public Transport,SMT,Corporate Travel Management (North) Ltd,98324774,1.00,T&S UK - Public Transport
BEIS,UKRI - AHRC,05/11/2018,T&S UK - Public Transport,SMT,Corporate Travel Management (North) Ltd,98324774,65.20,T&S UK - Public Transport
BEIS,UKRI - AHRC,05/11/2018,T&S UK - Public Transport,SMT,Corporate Travel Management (North) Ltd,98324774,1.00,T&S UK - Public Transport
BEIS,UKRI - AHRC,05/11/2018,T&S UK - Public Transport,SMT,Corporate Travel Management (North) Ltd,98324774,90.20,T&S UK - Public Transport
BEIS,UKRI - AHRC,05/11/2018,T&S UK - Public Transport,SMT,Corporate Travel Management (North) Ltd,98324774,1.00,T&S UK - Public Transport
BEIS,UKRI - AHRC,05/11/2018,T&S UK - Public Transport,SMT,Corporate Travel Management (North) Ltd,98324774,66.80,T&S UK - Public Transport
BEIS,UKRI - AHRC,05/11/2018,T&S UK - Public Transport,SMT,Corporate Travel Management (North) Ltd,98324774,1.00,T&S UK - Public Transport
BEIS,UKRI - AHRC,05/11/2018,T&S UK - Public Transport,SMT,Corporate Travel Management (North) Ltd,98324774,132.50,T&S UK - Public Transport
BEIS,UKRI - AHRC,05/11/2018,T&S UK - Public Transport,SMT,Corporate Travel Management (North) Ltd,98324774,2.16,T&S UK - Public Transport
BEIS,UKRI - AHRC,05/11/2018,T&S UK - Public Transport,SMT,Corporate Travel Management (North) Ltd,98324774,205.51,T&S UK - Public Transport
BEIS,UKRI - AHRC,05/11/2018,T&S UK - Public Transport,SMT,Corporate Travel Management (North) Ltd,98324774,16.90,T&S UK - Public Transport
BEIS,UKRI - AHRC,05/11/2018,T&S UK - Public Transport,SMT,Corporate Travel Management (North) Ltd,98324774,20.80,T&S UK - Public Transport
BEIS,UKRI - AHRC,05/11/2018,T&S UK - Public Transport,SMT,Corporate Travel Management (North) Ltd,98324774,3.00,T&S UK - Public Transport
BEIS,UKRI - AHRC,05/11/2018,T&S UK - Public Transport,SMT,Corporate Travel Management (North) Ltd,98324774,60.00,T&S UK - Public Transport
BEIS,UKRI - AHRC,05/11/2018,T&S UK - Public Transport,SMT,Corporate Travel Management (North) Ltd,98324774,24.40,T&S UK - Public Transport
BEIS,UKRI - AHRC,05/11/2018,T&S UK - Public Transport,SMT,Corporate Travel Management (North) Ltd,98324774,55.00,T&S UK - Public Transport
BEIS,UKRI - AHRC,05/11/2018,T&S UK - Public Transport,SMT,Corporate Travel Management (North) Ltd,98324774,94.70,T&S UK - Public Transport
BEIS,UKRI - AHRC,05/11/2018,T&S UK - Public Transport,SMT,Corporate Travel Management (North) Ltd,98324774,68.70,T&S UK - Public Transport
BEIS,UKRI - AHRC,05/11/2018,T&S UK - Public Transport,SMT,Corporate Travel Management (North) Ltd,98324774,1.00,T&S UK - Public Transport
BEIS,UKRI - AHRC,05/11/2018,T&S UK - Public Transport,SMT,Corporate Travel Management (North) Ltd,98324774,85.80,T&S UK - Public Transport
BEIS,UKRI - AHRC,05/11/2018,T&S UK - Public Transport,SMT,Corporate Travel Management (North) Ltd,98324774,2.00,T&S UK - Public Transport
BEIS,UKRI - AHRC,05/11/2018,T&S UK - Public Transport,SMT,Corporate Travel Management (North) Ltd,98324774,24.40,T&S UK - Public Transport
BEIS,UKRI - AHRC,05/11/2018,T&S UK - Public Transport,SMT,Corporate Travel Management (North) Ltd,98324774,27.90,T&S UK - Public Transport
BEIS,UKRI - AHRC,05/11/2018,T&S UK - Public Transport,SMT,Corporate Travel Management (North) Ltd,98324774,25.40,T&S UK - Public Transport
BEIS,UKRI - AHRC,05/11/2018,T&S UK - Public Transport,SMT,Corporate Travel Management (North) Ltd,98324774,2.00,T&S UK - Public Transport
BEIS,UKRI - AHRC,05/11/2018,T&S UK - Public Transport,SMT,Corporate Travel Management (North) Ltd,98324774,24.40,T&S UK - Public Transport
BEIS,UKRI - AHRC,05/11/2018,T&S UK - Public Transport,SMT,Corporate Travel Management (North) Ltd,98324774,45.00,T&S UK - Public Transport
BEIS,UKRI - AHRC,05/11/2018,T&S UK - Public Transport,SMT,Corporate Travel Management (North) Ltd,98324774,94.70,T&S UK - Public Transport
BEIS,UKRI - AHRC,05/11/2018,T&S UK - Public Transport,SMT,Corporate Travel Management (North) Ltd,98324774,128.80,T&S UK - Public Transport
BEIS,UKRI - AHRC,05/11/2018,T&S UK - Public Transport,SMT,Corporate Travel Management (North) Ltd,98324774,94.70,T&S UK - Public Transport
BEIS,UKRI - AHRC,05/11/2018,T&S UK - Public Transport,SMT,Corporate Travel Management (North) Ltd,98324774,72.90,T&S UK - Public Transport
BEIS,UKRI - AHRC,05/11/2018,T&S UK - Public Transport,SMT,Corporate Travel Management (North) Ltd,98324774,1.00,T&S UK - Public Transport
BEIS,UKRI - AHRC,05/11/2018,T&S UK - Public Transport,SMT,Corporate Travel Management (North) Ltd,98324774,155.00,T&S UK - Public Transport
BEIS,UKRI - AHRC,05/11/2018,T&S UK - Public Transport,SMT,Corporate Travel Management (North) Ltd,98324774,94.70,T&S UK - Public Transport
BEIS,UKRI - AHRC,05/11/2018,T&S UK - Public Transport,SMT,Corporate Travel Management (North) Ltd,98324774,48.80,T&S UK - Public Transport
BEIS,UKRI - AHRC,05/11/2018,T&S UK - Public Transport,SMT,Corporate Travel Management (North) Ltd,98324774,105.00,T&S UK - Public Transport
BEIS,UKRI - AHRC,05/11/2018,T&S UK - Public Transport,SMT,Corporate Travel Management (North) Ltd,98324774,94.70,T&S UK - Public Transport
BEIS,UKRI - AHRC,05/11/2018,T&S UK - Public Transport,SMT,Corporate Travel Management (North) Ltd,98324774,128.80,T&S UK - Public Transport
BEIS,UKRI - AHRC,05/11/2018,T&S UK - Public Transport,SMT,Corporate Travel Management (North) Ltd,98324774,1.00,T&S UK - Public Transport
BEIS,UKRI - AHRC,05/11/2018,T&S UK - Public Transport,SMT,Corporate Travel Management (North) Ltd,98324774,62.50,T&S UK - Public Transport
BEIS,UKRI - AHRC,05/11/2018,T&S UK - Public Transport,SMT,Corporate Travel Management (North) Ltd,98324774,105.00,T&S UK - Public Transport
BEIS,UKRI - AHRC,05/11/2018,T&S UK - Public Transport,SMT,Corporate Travel Management (North) Ltd,98324774,128.80,T&S UK - Public Transport
BEIS,UKRI - AHRC,05/11/2018,T&S UK - Public Transport,SMT,Corporate Travel Management (North) Ltd,98324774,59.00,T&S UK - Public Transport
BEIS,UKRI - AHRC,05/11/2018,T&S UK - Public Transport,SMT,Corporate Travel Management (North) Ltd,98324774,22.90,T&S UK - Public Transport
BEIS,UKRI - AHRC,05/11/2018,T&S UK - Public Transport,SMT,Corporate Travel Management (North) Ltd,98324774,63.20,T&S UK - Public Transport
BEIS,UKRI - AHRC,05/11/2018,T&S UK - Public Transport,Secretariat,Corporate Travel Management (North) Ltd,98324774,31.30,T&S UK - Public Transport
BEIS,UKRI - AHRC,05/11/2018,T&S UK - Public Transport,Secretariat,Corporate Travel Management (North) Ltd,98324774,1.00,T&S UK - Public Transport
BEIS,UKRI - AHRC,05/11/2018,T&S UK - Public Transport,Secretariat,Corporate Travel Management (North) Ltd,98324774,136.40,T&S UK - Public Transport
BEIS,UKRI - AHRC,05/11/2018,T&S UK - Public Transport,Skills,Corporate Travel Management (North) Ltd,98324774,157.90,T&S UK - Public Transport
BEIS,UKRI - AHRC,05/11/2018,T&S UK - Public Transport,Skills,Corporate Travel Management (North) Ltd,98324774,50.60,T&S UK - Public Transport
BEIS,UKRI - AHRC,05/11/2018,T&S UK - Public Transport,Skills,Corporate Travel Management (North) Ltd,98324774,70.60,T&S UK - Public Transport
BEIS,UKRI - AHRC,30/11/2018,T&S UK - Public Transport,SMT Strategic Leads,Corporate Travel Management (North) Ltd,98347291,0.50,T&S UK - Public Transport
BEIS,UKRI - AHRC,30/11/2018,T&S UK - Public Transport,SMT Strategic Leads,Corporate Travel Management (North) Ltd,98347291,1.44,T&S UK - Public Transport
BEIS,UKRI - AHRC,30/11/2018,T&S UK - Public Transport,SMT Strategic Leads,Corporate Travel Management (North) Ltd,98347291,313.03,T&S UK - Public Transport
BEIS,UKRI - AHRC,30/11/2018,T&S UK - Public Transport,SMT Strategic Leads,Corporate Travel Management (North) Ltd,98347291,0.42,T&S UK - Public Transport
BEIS,UKRI - AHRC,12/11/2018,Nursery Deductions,Balance Sheet,EDENRED (UK GROUP) LTD,98328964,4337.00,Nursery Deductions
BEIS,UKRI - AHRC,13/11/2018,Other Staff Benefits,Corporate Services,EDENRED (UK GROUP) LTD,98328977,9.37,Other Staff Benefits
BEIS,UKRI - AHRC,06/11/2018,Recharges From Councils - General,SMT,Engineering & Physical Sciences Research Council,98321779,6064.00,Recharges From Councils - General
BEIS,UKRI - AHRC,27/11/2018,Advertising & Promotion,Communications,Firebird Films Ltd,98334533,3030.00,Advertising & Promotion
BEIS,UKRI - AHRC,01/11/2018,Recruitment Costs,Finance,Hays Specialist Recruitment Ltd,98316804,1816.50,Recruitment Costs
BEIS,UKRI - AHRC,01/11/2018,Recruitment Costs,Finance,Hays Specialist Recruitment Ltd,98319013,1816.50,Recruitment Costs
BEIS,UKRI - AHRC,02/11/2018,Contract Staff,PSU Project Office,Hays Specialist Recruitment Ltd,98324380,3027.78,Contract Staff
BEIS,UKRI - AHRC,02/11/2018,Recruitment Costs,Finance,Hays Specialist Recruitment Ltd,98325337,1816.50,Recruitment Costs
BEIS,UKRI - AHRC,07/11/2018,Agency Staff,Finance,Hays Specialist Recruitment Ltd,98285693,1603.66,Agency Staff
BEIS,UKRI - AHRC,13/11/2018,Contract Staff,PSU Project Office,Hays Specialist Recruitment Ltd,98334447,3027.78,Contract Staff
BEIS,UKRI - AHRC,14/11/2018,Contract Staff,Finance,Hays Specialist Recruitment Ltd,98334450,1566.24,Contract Staff
BEIS,UKRI - AHRC,14/11/2018,Contract Staff,Finance,Hays Specialist Recruitment Ltd,98334456,1252.99,Contract Staff
BEIS,UKRI - AHRC,15/11/2018,Recruitment Costs,Finance,Hays Specialist Recruitment Ltd,98334078,1816.50,Recruitment Costs
BEIS,UKRI - AHRC,15/11/2018,Agency Staff,Finance,Hays Specialist Recruitment Ltd,98334443,2672.76,Agency Staff
BEIS,UKRI - AHRC,16/11/2018,Recruitment Costs,Finance,Hays Specialist Recruitment Ltd,98336109,1816.50,Recruitment Costs
BEIS,UKRI - AHRC,16/11/2018,Contract Staff,PSU Project Office,Hays Specialist Recruitment Ltd,98336118,3027.78,Contract Staff
BEIS,UKRI - AHRC,20/11/2018,Agency Staff,Finance,Hays Specialist Recruitment Ltd,98336121,2672.76,Agency Staff
BEIS,UKRI - AHRC,26/11/2018,Recruitment Costs,Finance,Hays Specialist Recruitment Ltd,98340914,1816.50,Recruitment Costs
BEIS,UKRI - AHRC,14/11/2018,NI Payable Salaries,Balance Sheet,HM Revenue & Customs,98328123,88232.87,NI Payable Salaries
BEIS,UKRI - AHRC,14/11/2018,PAYE Payable Salaries,Balance Sheet,HM Revenue & Customs,98328124,64557.95,PAYE Payable Salaries
BEIS,UKRI - AHRC,14/11/2018,Student Loans,Balance Sheet,HM Revenue & Customs,98328125,4217.00,Student Loans
BEIS,UKRI - AHRC,14/11/2018,Apprenticeship Levy,Corporate Services,HM Revenue & Customs,98328126,2372.00,Apprenticeship Levy
BEIS,UKRI - AHRC,12/11/2018,Catering Contracts,"Languages,Literature & International Engagement",House of Lords Catering and Retail Services,98331099,627.90,Catering Contracts
BEIS,UKRI - AHRC,08/11/2018,Hospitality,HR,Jurys Inns (UK) Ltd,98328093,324.00,Hospitality
BEIS,UKRI - AHRC,08/11/2018,Council & Committee Honoraria,"AHRC - Strategic Planning, Evidence & Impact",Martin Herbert Conway,98328262,500.00,Council & Committee Honoraria
BEIS,UKRI - AHRC,07/11/2018,Marketing & PR,Communications,Matthew Ford,98327049,3600.00,Marketing & PR
BEIS,UKRI - AHRC,05/11/2018,Non-staff travel and subsistance,"Languages,Literature & International Engagement",Non Employee Expenses Supplier,98324502,99.33,Non-staff travel and subsistance
BEIS,UKRI - AHRC,05/11/2018,Non-staff travel and subsistance,SMT,Non Employee Expenses Supplier,98324503,36.81,Non-staff travel and subsistance
BEIS,UKRI - AHRC,05/11/2018,Non-staff travel and subsistance,SMT,Non Employee Expenses Supplier,98324504,48.20,Non-staff travel and subsistance
BEIS,UKRI - AHRC,05/11/2018,Non-staff travel and subsistance,SMT,Non Employee Expenses Supplier,98324505,172.69,Non-staff travel and subsistance
BEIS,UKRI - AHRC,05/11/2018,Non-staff travel and subsistance,Newton Programme,Non Employee Expenses Supplier,98324506,691.44,Non-staff travel and subsistance
BEIS,UKRI - AHRC,05/11/2018,Non-staff travel and subsistance,International,Non Employee Expenses Supplier,98324507,69.50,Non-staff travel and subsistance
BEIS,UKRI - AHRC,05/11/2018,Non-staff travel and subsistance,International,Non Employee Expenses Supplier,98324508,71.00,Non-staff travel and subsistance
BEIS,UKRI - AHRC,05/11/2018,Non-staff travel and subsistance,International,Non Employee Expenses Supplier,98324509,11.60,Non-staff travel and subsistance
BEIS,UKRI - AHRC,05/11/2018,Non-staff travel and subsistance,GCRF - Programme Delivery,Non Employee Expenses Supplier,98324510,1179.05,Non-staff travel and subsistance
BEIS,UKRI - AHRC,05/11/2018,Non-staff travel and subsistance,GCRF - Programme Delivery,Non Employee Expenses Supplier,98324511,1120.65,Non-staff travel and subsistance
BEIS,UKRI - AHRC,05/11/2018,Non-staff travel and subsistance,Fund for International Collaboration,Non Employee Expenses Supplier,98324512,2291.91,Non-staff travel and subsistance
BEIS,UKRI - AHRC,05/11/2018,Non-staff travel and subsistance,Newton Programme,Non Employee Expenses Supplier,98324513,844.17,Non-staff travel and subsistance
BEIS,UKRI - AHRC,05/11/2018,Non-staff travel and subsistance,Newton Programme,Non Employee Expenses Supplier,98324514,840.61,Non-staff travel and subsistance
BEIS,UKRI - AHRC,05/11/2018,Non-staff travel and subsistance,"AHRC - Strategic Planning, Evidence & Impact",Non Employee Expenses Supplier,98324515,49.00,Non-staff travel and subsistance
BEIS,UKRI - AHRC,05/11/2018,Non-staff travel and subsistance,SMT,Non Employee Expenses Supplier,98324516,107.00,Non-staff travel and subsistance
BEIS,UKRI - AHRC,05/11/2018,Non-staff travel and subsistance,"AHRC - Strategic Planning, Evidence & Impact",Non Employee Expenses Supplier,98324517,153.57,Non-staff travel and subsistance
BEIS,UKRI - AHRC,13/11/2018,Non-staff travel and subsistance,"AHRC - Strategic Planning, Evidence & Impact",Non Employee Expenses Supplier,98333289,806.90,Non-staff travel and subsistance
BEIS,UKRI - AHRC,13/11/2018,Non-staff travel and subsistance,SMT,Non Employee Expenses Supplier,98333290,197.30,Non-staff travel and subsistance
BEIS,UKRI - AHRC,13/11/2018,Non-staff travel and subsistance,"AHRC - Strategic Planning, Evidence & Impact",Non Employee Expenses Supplier,98333291,200.00,Non-staff travel and subsistance
BEIS,UKRI - AHRC,13/11/2018,Non-staff travel and subsistance,"AHRC - Strategic Planning, Evidence & Impact",Non Employee Expenses Supplier,98333292,71.70,Non-staff travel and subsistance
BEIS,UKRI - AHRC,13/11/2018,Non-staff travel and subsistance,"AHRC - Strategic Planning, Evidence & Impact",Non Employee Expenses Supplier,98333293,126.74,Non-staff travel and subsistance
BEIS,UKRI - AHRC,13/11/2018,Non-staff travel and subsistance,"Histories,Culture & Heritage",Non Employee Expenses Supplier,98333294,164.35,Non-staff travel and subsistance
BEIS,UKRI - AHRC,27/11/2018,Non-staff travel and subsistance,"Languages,Literature & International Engagement",Non Employee Expenses Supplier,98339960,126.36,Non-staff travel and subsistance
BEIS,UKRI - AHRC,27/11/2018,Non-staff travel and subsistance,"Languages,Literature & International Engagement",Non Employee Expenses Supplier,98339961,210.60,Non-staff travel and subsistance
BEIS,UKRI - AHRC,27/11/2018,Non-staff travel and subsistance,GCRF - Programme Delivery,Non Employee Expenses Supplier,98339962,47.90,Non-staff travel and subsistance
BEIS,UKRI - AHRC,27/11/2018,Non-staff travel and subsistance,GCRF - Programme Delivery,Non Employee Expenses Supplier,98339963,93.40,Non-staff travel and subsistance
BEIS,UKRI - AHRC,27/11/2018,Non-staff travel and subsistance,GCRF - Programme Delivery,Non Employee Expenses Supplier,98339964,138.25,Non-staff travel and subsistance
BEIS,UKRI - AHRC,27/11/2018,Non-staff travel and subsistance,GCRF - Programme Delivery,Non Employee Expenses Supplier,98339965,106.00,Non-staff travel and subsistance
BEIS,UKRI - AHRC,27/11/2018,Non-staff travel and subsistance,"Histories,Culture & Heritage",Non Employee Expenses Supplier,98339966,131.65,Non-staff travel and subsistance
BEIS,UKRI - AHRC,27/11/2018,Non-staff travel and subsistance,"Histories,Culture & Heritage",Non Employee Expenses Supplier,98339967,138.90,Non-staff travel and subsistance
BEIS,UKRI - AHRC,27/11/2018,Non-staff travel and subsistance,GCRF - Programme Delivery,Non Employee Expenses Supplier,98339968,104.99,Non-staff travel and subsistance
BEIS,UKRI - AHRC,27/11/2018,Non-staff travel and subsistance,NPIF Research Talent (RCUK Innovation Fellowships),Non Employee Expenses Supplier,98339969,60.20,Non-staff travel and subsistance
BEIS,UKRI - AHRC,27/11/2018,Non-staff travel and subsistance,"Histories,Culture & Heritage",Non Employee Expenses Supplier,98339970,231.43,Non-staff travel and subsistance
BEIS,UKRI - AHRC,27/11/2018,Non-staff travel and subsistance,"Histories,Culture & Heritage",Non Employee Expenses Supplier,98339971,50.99,Non-staff travel and subsistance
BEIS,UKRI - AHRC,27/11/2018,Non-staff travel and subsistance,"Histories,Culture & Heritage",Non Employee Expenses Supplier,98339972,46.90,Non-staff travel and subsistance
BEIS,UKRI - AHRC,27/11/2018,Non-staff travel and subsistance,Creative Arts & Digital Humanities,Non Employee Expenses Supplier,98339973,94.40,Non-staff travel and subsistance
BEIS,UKRI - AHRC,27/11/2018,Non-staff travel and subsistance,GCRF - Programme Delivery,Non Employee Expenses Supplier,98339974,887.15,Non-staff travel and subsistance
BEIS,UKRI - AHRC,27/11/2018,Non-staff travel and subsistance,GCRF - Programme Delivery,Non Employee Expenses Supplier,98339975,293.90,Non-staff travel and subsistance
BEIS,UKRI - AHRC,27/11/2018,Non-staff travel and subsistance,Communications,Non Employee Expenses Supplier,98339976,59.80,Non-staff travel and subsistance
BEIS,UKRI - AHRC,27/11/2018,Non-staff travel and subsistance,HR,Non Employee Expenses Supplier,98339977,161.70,Non-staff travel and subsistance
BEIS,UKRI - AHRC,27/11/2018,Non-staff travel and subsistance,SMT,Non Employee Expenses Supplier,98339978,99.60,Non-staff travel and subsistance
BEIS,UKRI - AHRC,27/11/2018,Non-staff travel and subsistance,SMT,Non Employee Expenses Supplier,98339979,163.00,Non-staff travel and subsistance
BEIS,UKRI - AHRC,27/11/2018,Non-staff travel and subsistance,SMT,Non Employee Expenses Supplier,98339980,96.40,Non-staff travel and subsistance
BEIS,UKRI - AHRC,27/11/2018,Non-staff travel and subsistance,NPIF Research Talent (RCUK Innovation Fellowships),Non Employee Expenses Supplier,98339981,46.15,Non-staff travel and subsistance
BEIS,UKRI - AHRC,27/11/2018,Non-staff travel and subsistance,NPIF Research Talent (RCUK Innovation Fellowships),Non Employee Expenses Supplier,98339982,207.90,Non-staff travel and subsistance
BEIS,UKRI - AHRC,27/11/2018,Non-staff travel and subsistance,NPIF Research Talent (RCUK Innovation Fellowships),Non Employee Expenses Supplier,98339983,121.10,Non-staff travel and subsistance
BEIS,UKRI - AHRC,27/11/2018,Non-staff travel and subsistance,NPIF Research Talent (RCUK Innovation Fellowships),Non Employee Expenses Supplier,98339984,61.90,Non-staff travel and subsistance
BEIS,UKRI - AHRC,27/11/2018,Non-staff travel and subsistance,NPIF Research Talent (RCUK Innovation Fellowships),Non Employee Expenses Supplier,98339985,38.20,Non-staff travel and subsistance
BEIS,UKRI - AHRC,27/11/2018,Non-staff travel and subsistance,SMT,Non Employee Expenses Supplier,98339986,20.65,Non-staff travel and subsistance
BEIS,UKRI - AHRC,27/11/2018,Non-staff travel and subsistance,Communications,Non Employee Expenses Supplier,98339987,169.30,Non-staff travel and subsistance
BEIS,UKRI - AHRC,27/11/2018,Non-staff travel and subsistance,Creative Arts & Digital Humanities,Non Employee Expenses Supplier,98339988,158.50,Non-staff travel and subsistance
BEIS,UKRI - AHRC,27/11/2018,Non-staff travel and subsistance,SMT,Non Employee Expenses Supplier,98339989,260.65,Non-staff travel and subsistance
BEIS,UKRI - AHRC,27/11/2018,Non-staff travel and subsistance,SMT,Non Employee Expenses Supplier,98339990,4.96,Non-staff travel and subsistance
BEIS,UKRI - AHRC,27/11/2018,Non-staff travel and subsistance,SMT,Non Employee Expenses Supplier,98339991,312.40,Non-staff travel and subsistance
BEIS,UKRI - AHRC,27/11/2018,Non-staff travel and subsistance,SMT,Non Employee Expenses Supplier,98339992,223.90,Non-staff travel and subsistance
BEIS,UKRI - AHRC,27/11/2018,Non-staff travel and subsistance,SMT,Non Employee Expenses Supplier,98339993,57.60,Non-staff travel and subsistance
BEIS,UKRI - AHRC,27/11/2018,Non-staff travel and subsistance,SMT,Non Employee Expenses Supplier,98339994,153.22,Non-staff travel and subsistance
BEIS,UKRI - AHRC,27/11/2018,Catering Contracts,HR,Officedrop Ltd,98329933,192.00,Catering Contracts
BEIS,UKRI - AHRC,27/11/2018,Catering Contracts,HR,Officedrop Ltd,98329948,144.00,Catering Contracts
BEIS,UKRI - AHRC,08/11/2018,Recruitment Costs,HR,Onefix Recruitment Ltd,98328120,150.00,Recruitment Costs
BEIS,UKRI - AHRC,08/11/2018,Recruitment Costs,HR,Onefix Recruitment Ltd,98328122,150.00,Recruitment Costs
BEIS,UKRI - AHRC,15/11/2018,Recruitment Costs,HR,Onefix Recruitment Ltd,98334044,1512.00,Recruitment Costs
BEIS,UKRI - AHRC,15/11/2018,Recruitment Costs,HR,Onefix Recruitment Ltd,98334048,504.00,Recruitment Costs
BEIS,UKRI - AHRC,15/11/2018,Recruitment Costs,HR,Onefix Recruitment Ltd,98334051,504.00,Recruitment Costs
BEIS,UKRI - AHRC,26/11/2018,Staff Training,HR,Open University,98339762,5800.00,Staff Training
BEIS,UKRI - AHRC,15/11/2018,Union Deductions,Balance Sheet,PCS Union,98328132,178.88,Union Deductions
BEIS,UKRI - AHRC,13/11/2018,Advertising & Promotion,Communications,Rumba Graphic Design Ltd,98326467,2496.00,Advertising & Promotion
BEIS,UKRI - AHRC,16/11/2018,Advertising & Promotion,Communications,Rumba Graphic Design Ltd,98333739,2664.00,Advertising & Promotion
BEIS,UKRI - AHRC,06/11/2018,Marketing & PR,Communications,Siteimprove Ltd,98326200,2560.49,Marketing & PR
BEIS,UKRI - AHRC,09/11/2018,International Subscriptions,Business Process & Analysis,Smartsurvey Ltd,98328775,720.00,International Subscriptions
BEIS,UKRI - AHRC,15/11/2018,Advertising & Promotion,Communications,Sophie Toumazis T/A TPR Media Consultants,98328376,3720.00,Advertising & Promotion
BEIS,UKRI - AHRC,30/11/2018,Staff Training,Corporate Services,Swindon and Gloucestershire Mind,98342912,195.00,Staff Training
BEIS,UKRI - AHRC,13/11/2018,Health & Safety (inc. Medicals & Opticians),Corporate Services,Swindon Occupational Medical Services Ltd,98328538,600.00,Health & Safety (inc. Medicals & Opticians)
BEIS,UKRI - AHRC,26/11/2018,Voluntary Deductions,Balance Sheet,Swindon Office Sports and Social Club,98328131,96.00,Voluntary Deductions
BEIS,UKRI - AHRC,28/11/2018,Catering Contracts,Newton Programme,Tazweed Catering Services Ltd,98321166,2655.82,Catering Contracts
BEIS,UKRI - AHRC,14/11/2018,Hospitality,Fund for International Collaboration,The Portman Ritz-Carlton Shanghai,98335409,23334.69,Hospitality
BEIS,UKRI - AHRC,27/11/2018,Advertising & Promotion,Communications,Tim Stubbings Photography Ltd,98339304,834.00,Advertising & Promotion
BEIS,UKRI - AHRC,27/11/2018,Advertising & Promotion,Communications,Tim Stubbings Photography Ltd,98339308,750.00,Advertising & Promotion
BEIS,UKRI - AHRC,06/11/2018,Staff Training,Corporate Services,UK Shared Business Services Ltd,98322618,1233.69,Staff Training
BEIS,UKRI - AHRC,06/11/2018,Staff Training,Corporate Services,UK Shared Business Services Ltd,98322670,5.33,Staff Training
BEIS,UKRI - AHRC,06/11/2018,Staff Training,Corporate Services,UK Shared Business Services Ltd,98322740,1715.45,Staff Training
BEIS,UKRI - AHRC,02/11/2018,Secondments,SMT,University of Exeter,98288914,40132.00,Secondments
BEIS,UKRI - AHRC,09/11/2018,Secondments,SMT,University of Leicester,98259974,20467.31,Secondments
BEIS,UKRI - AHRC,09/11/2018,T&S UK - Other Charges,SMT,University of Leicester,98259974,1918.46,T&S UK - Other Charges
BEIS,UKRI - AHRC,27/11/2018,Secondments,SMT,University of Leicester,98339342,30826.03,Secondments
BEIS,UKRI - AHRC,27/11/2018,T&S UK - Other Charges,SMT,University of Leicester,98339342,2889.42,T&S UK - Other Charges
BEIS,UKRI - AHRC,01/11/2018,T&S UK - Public Transport,Creative Arts & Digital Humanities,Unspecified,98323055,43.37,T&S UK - Public Transport
BEIS,UKRI - AHRC,01/11/2018,T&S UK - Public Transport,Creative Arts & Digital Humanities,Unspecified,98323055,9.79,T&S UK - Public Transport
BEIS,UKRI - AHRC,01/11/2018,T&S UK - Subsistence,Creative Arts & Digital Humanities,Unspecified,98323055,4.40,T&S UK - Subsistence
BEIS,UKRI - AHRC,01/11/2018,T&S UK - Subsistence,Creative Arts & Digital Humanities,Unspecified,98323055,8.55,T&S UK - Subsistence
BEIS,UKRI - AHRC,01/11/2018,T&S UK - Public Transport,Creative Arts & Digital Humanities,Unspecified,98323056,8.90,T&S UK - Public Transport
BEIS,UKRI - AHRC,01/11/2018,T&S UK - Subsistence,Creative Arts & Digital Humanities,Unspecified,98323056,5.58,T&S UK - Subsistence
BEIS,UKRI - AHRC,01/11/2018,T&S UK - Subsistence,Creative Arts & Digital Humanities,Unspecified,98323056,3.75,T&S UK - Subsistence
BEIS,UKRI - AHRC,01/11/2018,T&S UK - Subsistence,Creative Arts & Digital Humanities,Unspecified,98323056,5.50,T&S UK - Subsistence
BEIS,UKRI - AHRC,01/11/2018,T&S UK - Subsistence,Creative Arts & Digital Humanities,Unspecified,98323056,10.00,T&S UK - Subsistence
BEIS,UKRI - AHRC,02/11/2018,T&S UK - Public Transport,IS,Unspecified,98325467,38.00,T&S UK - Public Transport
BEIS,UKRI - AHRC,06/11/2018,T&S UK - Public Transport,"AHRC - Strategic Planning, Evidence & Impact",Unspecified,98307597,221.40,T&S UK - Public Transport
BEIS,UKRI - AHRC,06/11/2018,T&S UK - Subsistence,Industrial Strategy Challenge Fund (ISCF) - Creative Clusters,Unspecified,98307597,13.00,T&S UK - Subsistence
BEIS,UKRI - AHRC,06/11/2018,T&S Overseas - Accommodation,International,Unspecified,98327440,375.36,T&S Overseas - Accommodation
BEIS,UKRI - AHRC,06/11/2018,T&S Overseas - Public Transport,International,Unspecified,98327440,17.59,T&S Overseas - Public Transport
BEIS,UKRI - AHRC,06/11/2018,T&S Overseas - Subsistence,International,Unspecified,98327440,15.00,T&S Overseas - Subsistence
BEIS,UKRI - AHRC,06/11/2018,T&S Overseas - Subsistence,International,Unspecified,98327440,33.25,T&S Overseas - Subsistence
BEIS,UKRI - AHRC,08/11/2018,Council & Committee Honoraria,"AHRC - Strategic Planning, Evidence & Impact",Unspecified,98328259,500.00,Council & Committee Honoraria
BEIS,UKRI - AHRC,08/11/2018,Council & Committee Honoraria,"AHRC - Strategic Planning, Evidence & Impact",Unspecified,98328260,500.00,Council & Committee Honoraria
BEIS,UKRI - AHRC,08/11/2018,Council & Committee Honoraria,"AHRC - Strategic Planning, Evidence & Impact",Unspecified,98328261,500.00,Council & Committee Honoraria
BEIS,UKRI - AHRC,08/11/2018,Council & Committee Honoraria,"AHRC - Strategic Planning, Evidence & Impact",Unspecified,98328263,500.00,Council & Committee Honoraria
BEIS,UKRI - AHRC,08/11/2018,Council & Committee Honoraria,"AHRC - Strategic Planning, Evidence & Impact",Unspecified,98328264,500.00,Council & Committee Honoraria
BEIS,UKRI - AHRC,08/11/2018,Council & Committee Honoraria,"AHRC - Strategic Planning, Evidence & Impact",Unspecified,98328265,500.00,Council & Committee Honoraria
BEIS,UKRI - AHRC,08/11/2018,Council & Committee Honoraria,"AHRC - Strategic Planning, Evidence & Impact",Unspecified,98328266,500.00,Council & Committee Honoraria
BEIS,UKRI - AHRC,08/11/2018,Council & Committee Honoraria,"AHRC - Strategic Planning, Evidence & Impact",Unspecified,98328267,500.00,Council & Committee Honoraria
BEIS,UKRI - AHRC,08/11/2018,Council & Committee Honoraria,"AHRC - Strategic Planning, Evidence & Impact",Unspecified,98328268,500.00,Council & Committee Honoraria
BEIS,UKRI - AHRC,08/11/2018,Council & Committee Honoraria,"AHRC - Strategic Planning, Evidence & Impact",Unspecified,98328269,500.00,Council & Committee Honoraria
BEIS,UKRI - AHRC,08/11/2018,Council & Committee Honoraria,"AHRC - Strategic Planning, Evidence & Impact",Unspecified,98328270,500.00,Council & Committee Honoraria
BEIS,UKRI - AHRC,08/11/2018,T&S UK - Subsistence,"Languages,Literature & International Engagement",Unspecified,98328632,248.81,T&S UK - Subsistence
BEIS,UKRI - AHRC,08/11/2018,T&S UK - Public Transport,"Languages,Literature & International Engagement",Unspecified,98328633,12.00,T&S UK - Public Transport
BEIS,UKRI - AHRC,08/11/2018,T&S UK - Subsistence,"Languages,Literature & International Engagement",Unspecified,98328633,4.10,T&S UK - Subsistence
BEIS,UKRI - AHRC,08/11/2018,T&S UK - Subsistence,"Languages,Literature & International Engagement",Unspecified,98328633,13.45,T&S UK - Subsistence
BEIS,UKRI - AHRC,08/11/2018,T&S UK - Subsistence,"Languages,Literature & International Engagement",Unspecified,98328633,7.28,T&S UK - Subsistence
BEIS,UKRI - AHRC,08/11/2018,T&S UK - Subsistence,Newton Programme Delivery,Unspecified,98328634,37.64,T&S UK - Subsistence
BEIS,UKRI - AHRC,08/11/2018,T&S UK - Subsistence,Newton Programme Delivery,Unspecified,98328634,24.04,T&S UK - Subsistence
BEIS,UKRI - AHRC,08/11/2018,T&S UK - Subsistence,Newton Programme Delivery,Unspecified,98328634,25.00,T&S UK - Subsistence
BEIS,UKRI - AHRC,09/11/2018,T&S UK - Mileage,HR,Unspecified,98329950,18.00,T&S UK - Mileage
BEIS,UKRI - AHRC,09/11/2018,T&S UK - Subsistence,HR,Unspecified,98329950,60.00,T&S UK - Subsistence
BEIS,UKRI - AHRC,13/11/2018,Marketing & PR,Communications,Unspecified,98334634,1500.00,Marketing & PR
BEIS,UKRI - AHRC,13/11/2018,T&S UK - Mileage,Creative Arts & Digital Humanities,Unspecified,98335018,59.85,T&S UK - Mileage
BEIS,UKRI - AHRC,14/11/2018,T&S UK - Subsistence,Communications,Unspecified,98335667,6.50,T&S UK - Subsistence
BEIS,UKRI - AHRC,14/11/2018,T&S UK - Subsistence,Communications,Unspecified,98335667,14.57,T&S UK - Subsistence
BEIS,UKRI - AHRC,15/11/2018,T&S UK - Public Transport,Business Process & Analysis,Unspecified,98335989,5.30,T&S UK - Public Transport
BEIS,UKRI - AHRC,15/11/2018,T&S UK - Subsistence,Creative Arts & Digital Humanities,Unspecified,98335990,20.76,T&S UK - Subsistence
BEIS,UKRI - AHRC,16/11/2018,T&S UK - Subsistence,Communications,Unspecified,98337283,17.61,T&S UK - Subsistence
BEIS,UKRI - AHRC,16/11/2018,T&S UK - Subsistence,Secretariat,Unspecified,98337283,11.64,T&S UK - Subsistence
BEIS,UKRI - AHRC,16/11/2018,T&S UK - Subsistence,Secretariat,Unspecified,98337283,5.00,T&S UK - Subsistence
BEIS,UKRI - AHRC,16/11/2018,T&S UK - Mileage,Creative Arts & Digital Humanities,Unspecified,98337284,11.70,T&S UK - Mileage
BEIS,UKRI - AHRC,16/11/2018,T&S UK - Other Charges,Creative Arts & Digital Humanities,Unspecified,98337284,17.64,T&S UK - Other Charges
BEIS,UKRI - AHRC,16/11/2018,T&S UK - Subsistence,Creative Arts & Digital Humanities,Unspecified,98337284,4.48,T&S UK - Subsistence
BEIS,UKRI - AHRC,16/11/2018,T&S UK - Subsistence,Creative Arts & Digital Humanities,Unspecified,98337284,4.78,T&S UK - Subsistence
BEIS,UKRI - AHRC,16/11/2018,T&S UK - Subsistence,Creative Arts & Digital Humanities,Unspecified,98337284,1.09,T&S UK - Subsistence
BEIS,UKRI - AHRC,16/11/2018,T&S UK - Subsistence,Creative Arts & Digital Humanities,Unspecified,98337284,20.00,T&S UK - Subsistence
BEIS,UKRI - AHRC,16/11/2018,T&S UK - Mileage,HR,Unspecified,98337285,39.88,T&S UK - Mileage
BEIS,UKRI - AHRC,16/11/2018,T&S UK - Other Charges,Fund for International Collaboration,Unspecified,98337286,34.54,T&S UK - Other Charges
BEIS,UKRI - AHRC,16/11/2018,T&S UK - Subsistence,Fund for International Collaboration,Unspecified,98337286,5.93,T&S UK - Subsistence
BEIS,UKRI - AHRC,16/11/2018,T&S UK - Subsistence,Fund for International Collaboration,Unspecified,98337286,4.28,T&S UK - Subsistence
BEIS,UKRI - AHRC,19/11/2018,T&S UK - Public Transport,Creative Arts & Digital Humanities,Unspecified,98338320,9.06,T&S UK - Public Transport
BEIS,UKRI - AHRC,19/11/2018,T&S UK - Subsistence,Creative Arts & Digital Humanities,Unspecified,98338320,49.80,T&S UK - Subsistence
BEIS,UKRI - AHRC,19/11/2018,T&S UK - Subsistence,Creative Arts & Digital Humanities,Unspecified,98338320,5.00,T&S UK - Subsistence
BEIS,UKRI - AHRC,19/11/2018,T&S UK - Subsistence,"Histories,Culture & Heritage",Unspecified,98338321,20.76,T&S UK - Subsistence
BEIS,UKRI - AHRC,19/11/2018,T&S UK - Public Transport,Communications,Unspecified,98338322,7.30,T&S UK - Public Transport
BEIS,UKRI - AHRC,19/11/2018,T&S UK - Public Transport,Communications,Unspecified,98338322,84.50,T&S UK - Public Transport
BEIS,UKRI - AHRC,19/11/2018,T&S UK - Subsistence,Communications,Unspecified,98338322,16.43,T&S UK - Subsistence
BEIS,UKRI - AHRC,19/11/2018,T&S UK - Subsistence,Communications,Unspecified,98338322,37.46,T&S UK - Subsistence
BEIS,UKRI - AHRC,19/11/2018,T&S UK - Subsistence,Communications,Unspecified,98338322,87.17,T&S UK - Subsistence
BEIS,UKRI - AHRC,19/11/2018,T&S UK - Subsistence,Communications,Unspecified,98338322,20.00,T&S UK - Subsistence
BEIS,UKRI - AHRC,20/11/2018,UK - Professional Memberships & Subscriptions,Finance,Unspecified,98338907,151.00,UK - Professional Memberships & Subscriptions
BEIS,UKRI - AHRC,20/11/2018,T&S UK - Public Transport,Newton Programme Delivery,Unspecified,98338908,9.00,T&S UK - Public Transport
BEIS,UKRI - AHRC,20/11/2018,T&S UK - Subsistence,Newton Programme Delivery,Unspecified,98338908,5.15,T&S UK - Subsistence
BEIS,UKRI - AHRC,20/11/2018,T&S UK - Subsistence,Newton Programme Delivery,Unspecified,98338908,14.95,T&S UK - Subsistence
BEIS,UKRI - AHRC,20/11/2018,T&S Overseas - Subsistence,Business Process & Analysis,Unspecified,98338909,16.56,T&S Overseas - Subsistence
BEIS,UKRI - AHRC,20/11/2018,T&S Overseas - Subsistence,Newton Programme Delivery,Unspecified,98338909,10.58,T&S Overseas - Subsistence
BEIS,UKRI - AHRC,20/11/2018,T&S Overseas - Subsistence,Newton Programme Delivery,Unspecified,98338909,3.41,T&S Overseas - Subsistence
BEIS,UKRI - AHRC,21/11/2018,T&S UK - Mileage,Communications,Unspecified,98339570,7.29,T&S UK - Mileage
BEIS,UKRI - AHRC,21/11/2018,T&S UK - Subsistence,"Histories,Culture & Heritage",Unspecified,98339571,21.30,T&S UK - Subsistence
BEIS,UKRI - AHRC,21/11/2018,T&S UK - Subsistence,"Histories,Culture & Heritage",Unspecified,98339571,1.75,T&S UK - Subsistence
BEIS,UKRI - AHRC,26/11/2018,UK - Professional Memberships & Subscriptions,HR,Unspecified,98335019,135.00,UK - Professional Memberships & Subscriptions
BEIS,UKRI - AHRC,27/11/2018,Marketing & PR,Communications,Unspecified,98343614,2500.00,Marketing & PR
BEIS,UKRI - AHRC,27/11/2018,Marketing & PR,Communications,Unspecified,98343615,2500.00,Marketing & PR
BEIS,UKRI - AHRC,27/11/2018,T&S UK - Public Transport,Communications,Unspecified,98343841,9.00,T&S UK - Public Transport
BEIS,UKRI - AHRC,27/11/2018,T&S UK - Subsistence,Communications,Unspecified,98343841,17.94,T&S UK - Subsistence
BEIS,UKRI - AHRC,27/11/2018,T&S UK - Public Transport,Skills,Unspecified,98343842,29.60,T&S UK - Public Transport
BEIS,UKRI - AHRC,27/11/2018,T&S UK - Mileage,SMT,Unspecified,98343844,74.70,T&S UK - Mileage
BEIS,UKRI - AHRC,27/11/2018,T&S UK - Parking Tolls Congestion Charges,SMT,Unspecified,98343844,84.00,T&S UK - Parking Tolls Congestion Charges
BEIS,UKRI - AHRC,27/11/2018,T&S UK - Public Transport,SMT,Unspecified,98343844,2.00,T&S UK - Public Transport
BEIS,UKRI - AHRC,27/11/2018,T&S UK - Public Transport,SMT,Unspecified,98343844,9.00,T&S UK - Public Transport
BEIS,UKRI - AHRC,27/11/2018,T&S UK - Public Transport,SMT,Unspecified,98343844,43.20,T&S UK - Public Transport
BEIS,UKRI - AHRC,27/11/2018,T&S UK - Subsistence,SMT,Unspecified,98343844,41.34,T&S UK - Subsistence
BEIS,UKRI - AHRC,27/11/2018,T&S UK - Subsistence,SMT,Unspecified,98343844,56.50,T&S UK - Subsistence
BEIS,UKRI - AHRC,27/11/2018,T&S UK - Subsistence,SMT,Unspecified,98343844,32.51,T&S UK - Subsistence
BEIS,UKRI - AHRC,27/11/2018,T&S UK - Subsistence,SMT,Unspecified,98343844,15.00,T&S UK - Subsistence
BEIS,UKRI - AHRC,27/11/2018,Health & Safety (inc. Medicals & Opticians),HR,Unspecified,98343845,36.90,Health & Safety (inc. Medicals & Opticians)
BEIS,UKRI - AHRC,27/11/2018,T&S UK - Subsistence,Creative Arts & Digital Humanities,Unspecified,98343846,8.15,T&S UK - Subsistence
BEIS,UKRI - AHRC,27/11/2018,T&S UK - Subsistence,Business Process & Analysis,Unspecified,98343848,23.00,T&S UK - Subsistence
BEIS,UKRI - AHRC,27/11/2018,T&S UK - Public Transport,"Histories,Culture & Heritage",Unspecified,98343849,19.76,T&S UK - Public Transport
BEIS,UKRI - AHRC,27/11/2018,T&S UK - Subsistence,"Histories,Culture & Heritage",Unspecified,98343849,12.82,T&S UK - Subsistence
BEIS,UKRI - AHRC,27/11/2018,T&S UK - Subsistence,"Histories,Culture & Heritage",Unspecified,98343849,6.78,T&S UK - Subsistence
BEIS,UKRI - AHRC,27/11/2018,T&S UK - Subsistence,"Histories,Culture & Heritage",Unspecified,98343849,17.90,T&S UK - Subsistence
BEIS,UKRI - AHRC,27/11/2018,T&S UK - Subsistence,SMT Strategic Leads,Unspecified,98343850,11.50,T&S UK - Subsistence
BEIS,UKRI - AHRC,27/11/2018,T&S UK - Parking Tolls Congestion Charges,Business Process & Analysis,Unspecified,98343851,1.30,T&S UK - Parking Tolls Congestion Charges
BEIS,UKRI - AHRC,27/11/2018,T&S UK - Subsistence,Business Process & Analysis,Unspecified,98343851,23.00,T&S UK - Subsistence
BEIS,UKRI - AHRC,27/11/2018,T&S UK - Vehicle Hire,Business Process & Analysis,Unspecified,98343851,34.00,T&S UK - Vehicle Hire
BEIS,UKRI - AHRC,28/11/2018,T&S UK - Public Transport,Creative Arts & Digital Humanities,Unspecified,98344651,2.50,T&S UK - Public Transport
BEIS,UKRI - AHRC,28/11/2018,T&S UK - Subsistence,Creative Arts & Digital Humanities,Unspecified,98344651,20.76,T&S UK - Subsistence
BEIS,UKRI - AHRC,28/11/2018,T&S UK - Mileage,Creative Arts & Digital Humanities,Unspecified,98344653,6.76,T&S UK - Mileage
BEIS,UKRI - AHRC,28/11/2018,T&S UK - Subsistence,Communications,Unspecified,98344654,20.76,T&S UK - Subsistence
BEIS,UKRI - AHRC,28/11/2018,T&S UK - Other Charges,Communications,Unspecified,98344655,7.05,T&S UK - Other Charges
BEIS,UKRI - AHRC,28/11/2018,T&S UK - Public Transport,Communications,Unspecified,98344655,13.60,T&S UK - Public Transport
BEIS,UKRI - AHRC,28/11/2018,T&S UK - Public Transport,Communications,Unspecified,98344655,96.90,T&S UK - Public Transport
BEIS,UKRI - AHRC,28/11/2018,T&S UK - Subsistence,Communications,Unspecified,98344655,7.50,T&S UK - Subsistence
BEIS,UKRI - AHRC,28/11/2018,T&S UK - Subsistence,Communications,Unspecified,98344655,55.48,T&S UK - Subsistence
BEIS,UKRI - AHRC,28/11/2018,T&S UK - Subsistence,Communications,Unspecified,98344655,12.20,T&S UK - Subsistence
BEIS,UKRI - AHRC,28/11/2018,T&S UK - Subsistence,Communications,Unspecified,98344655,14.08,T&S UK - Subsistence
BEIS,UKRI - AHRC,28/11/2018,T&S UK - Subsistence,Communications,Unspecified,98344655,25.00,T&S UK - Subsistence
BEIS,UKRI - AHRC,28/11/2018,T&S UK - Subsistence,Creative Arts & Digital Humanities,Unspecified,98344656,17.27,T&S UK - Subsistence
BEIS,UKRI - AHRC,29/11/2018,T&S UK - Subsistence,"Histories,Culture & Heritage",Unspecified,98337282,20.76,T&S UK - Subsistence
BEIS,UKRI - AHRC,29/11/2018,T&S UK - Mileage,Creative Arts & Digital Humanities,Unspecified,98346383,95.40,T&S UK - Mileage
BEIS,UKRI - AHRC,29/11/2018,T&S UK - Other Charges,Creative Arts & Digital Humanities,Unspecified,98346383,6.79,T&S UK - Other Charges
BEIS,UKRI - AHRC,29/11/2018,T&S UK - Parking Tolls Congestion Charges,Creative Arts & Digital Humanities,Unspecified,98346383,54.10,T&S UK - Parking Tolls Congestion Charges
BEIS,UKRI - AHRC,29/11/2018,T&S UK - Public Transport,Creative Arts & Digital Humanities,Unspecified,98346383,14.20,T&S UK - Public Transport
BEIS,UKRI - AHRC,29/11/2018,T&S UK - Subsistence,Creative Arts & Digital Humanities,Unspecified,98346383,3.95,T&S UK - Subsistence
BEIS,UKRI - AHRC,29/11/2018,T&S UK - Subsistence,Creative Arts & Digital Humanities,Unspecified,98346383,5.22,T&S UK - Subsistence
BEIS,UKRI - AHRC,29/11/2018,T&S UK - Subsistence,Creative Arts & Digital Humanities,Unspecified,98346383,10.00,T&S UK - Subsistence
BEIS,UKRI - AHRC,29/11/2018,T&S UK - Other Charges,Creative Arts & Digital Humanities,Unspecified,98346384,5.60,T&S UK - Other Charges
BEIS,UKRI - AHRC,29/11/2018,T&S UK - Public Transport,Creative Arts & Digital Humanities,Unspecified,98346384,34.30,T&S UK - Public Transport
BEIS,UKRI - AHRC,29/11/2018,T&S UK - Subsistence,Creative Arts & Digital Humanities,Unspecified,98346384,5.95,T&S UK - Subsistence
BEIS,UKRI - AHRC,29/11/2018,T&S UK - Subsistence,Creative Arts & Digital Humanities,Unspecified,98346384,38.70,T&S UK - Subsistence
BEIS,UKRI - AHRC,29/11/2018,T&S UK - Public Transport,Industrial Strategy Challenge Fund (ISCF) - Creative Clusters,Unspecified,98346385,26.53,T&S UK - Public Transport
BEIS,UKRI - AHRC,29/11/2018,T&S UK - Public Transport,Industrial Strategy Challenge Fund (ISCF) - Creative Clusters,Unspecified,98346385,75.50,T&S UK - Public Transport
BEIS,UKRI - AHRC,29/11/2018,T&S UK - Public Transport,"Languages,Literature & International Engagement",Unspecified,98346385,22.40,T&S UK - Public Transport
BEIS,UKRI - AHRC,29/11/2018,T&S UK - Subsistence,Industrial Strategy Challenge Fund (ISCF) - Creative Clusters,Unspecified,98346385,9.35,T&S UK - Subsistence
BEIS,UKRI - AHRC,29/11/2018,T&S UK - Subsistence,Industrial Strategy Challenge Fund (ISCF) - Creative Clusters,Unspecified,98346385,5.00,T&S UK - Subsistence
BEIS,UKRI - AHRC,29/11/2018,T&S UK - Subsistence,Industrial Strategy Challenge Fund (ISCF) - Creative Clusters,Unspecified,98346385,3.74,T&S UK - Subsistence
BEIS,UKRI - AHRC,29/11/2018,T&S UK - Subsistence,"Languages,Literature & International Engagement",Unspecified,98346385,6.80,T&S UK - Subsistence
BEIS,UKRI - AHRC,29/11/2018,T&S UK - Subsistence,"Languages,Literature & International Engagement",Unspecified,98346385,1.99,T&S UK - Subsistence
BEIS,UKRI - AHRC,29/11/2018,T&S UK - Mileage,HR,Unspecified,98346386,31.50,T&S UK - Mileage
BEIS,UKRI - AHRC,29/11/2018,T&S UK - Public Transport,"Histories,Culture & Heritage",Unspecified,98346387,37.79,T&S UK - Public Transport
BEIS,UKRI - AHRC,29/11/2018,T&S UK - Subsistence,"Histories,Culture & Heritage",Unspecified,98346387,18.90,T&S UK - Subsistence
BEIS,UKRI - AHRC,29/11/2018,T&S UK - Mileage,HR,Unspecified,98346388,31.10,T&S UK - Mileage
BEIS,UKRI - AHRC,30/11/2018,T&S UK - Public Transport,Secretariat,Unspecified,98348058,1.80,T&S UK - Public Transport
BEIS,UKRI - AHRC,30/11/2018,T&S UK - Subsistence,Secretariat,Unspecified,98348059,4.90,T&S UK - Subsistence
BEIS,UKRI - AHRC,30/11/2018,T&S UK - Public Transport,Secretariat,Unspecified,98348060,6.15,T&S UK - Public Transport
BEIS,UKRI - AHRC,30/11/2018,T&S UK - Public Transport,Secretariat,Unspecified,98348060,12.30,T&S UK - Public Transport
BEIS,UKRI - AHRC,30/11/2018,T&S UK - Subsistence,Secretariat,Unspecified,98348060,40.69,T&S UK - Subsistence
BEIS,UKRI - AHRC,30/11/2018,Health & Safety (inc. Medicals & Opticians),International,Unspecified,98348061,100.00,Health & Safety (inc. Medicals & Opticians)
BEIS,UKRI - AHRC,30/11/2018,T&S UK - Subsistence,SMT Strategic Leads,Unspecified,98348062,13.20,T&S UK - Subsistence
BEIS,UKRI - AHRC,30/11/2018,T&S UK - Parking Tolls Congestion Charges,"Histories,Culture & Heritage",Unspecified,98348063,16.80,T&S UK - Parking Tolls Congestion Charges
BEIS,UKRI - AHRC,30/11/2018,T&S UK - Public Transport,"Histories,Culture & Heritage",Unspecified,98348063,16.50,T&S UK - Public Transport
BEIS,UKRI - AHRC,30/11/2018,T&S UK - Subsistence,"Histories,Culture & Heritage",Unspecified,98348063,4.95,T&S UK - Subsistence
BEIS,UKRI - AHRC,14/11/2018,Recruitment Costs,HR,Warwick University Services Ltd,98330120,245.00,Recruitment Costs
BEIS,UKRI - AHRC,14/11/2018,Recruitment Costs,HR,Warwick University Services Ltd,98330121,245.00,Recruitment Costs
BEIS,UKRI - BBSRC,12/11/2018,Other Staff Benefits,PDG - Director,A POSITIVE MIND MATTERS,98328844,1280.00,Other Staff Benefits
BEIS,UKRI - BBSRC,12/11/2018,Other Staff Benefits,PDG - Director,A POSITIVE MIND MATTERS,98328847,3750.00,Other Staff Benefits
BEIS,UKRI - BBSRC,06/11/2018,Health & Safety (inc. Medicals & Opticians),JBOS Health and Safety,Abbey Business Equipment Ltd,98327329,60.00,Health & Safety (inc. Medicals & Opticians)
BEIS,UKRI - BBSRC,20/11/2018,Purchase of non capital equipment,JBOS - Maintenance,Abbey Business Equipment Ltd,98338857,3000.00,Purchase of non capital equipment
BEIS,UKRI - BBSRC,28/11/2018,Purchase of non capital equipment,JBOS - Maintenance,Abbey Business Equipment Ltd,98327067,14106.00,Purchase of non capital equipment
BEIS,UKRI - BBSRC,28/11/2018,Purchase of non capital equipment,JBOS - Maintenance,Abbey Business Equipment Ltd,98344441,756.00,Purchase of non capital equipment
BEIS,UKRI - BBSRC,29/11/2018,Non-Capital Building Construction,JBOS - Maintenance,Abbey Business Equipment Ltd,98347239,690.01,Non-Capital Building Construction
BEIS,UKRI - BBSRC,28/11/2018,Research Institutes - Capital Grants: Major Works,IBERS,ABERYSTWYTH INNOVATION AND ENTERPRISE CAMPUS LTD (AIEC),98344597,36521.44,Research Institutes - Capital Grants: Major Works
BEIS,UKRI - BBSRC,08/11/2018,Recruitment Costs,PDG - Director,Agenda Resource Management Ltd,98326696,89.34,Recruitment Costs
BEIS,UKRI - BBSRC,08/11/2018,Recruitment Costs,PDG - Director,Agenda Resource Management Ltd,98326696,134.09,Recruitment Costs
BEIS,UKRI - BBSRC,14/11/2018,Recruitment Costs,PDG - Director,Agenda Resource Management Ltd,98333394,155.91,Recruitment Costs
BEIS,UKRI - BBSRC,15/11/2018,Recruitment Costs,PDG - Director,Agenda Resource Management Ltd,98335228,155.91,Recruitment Costs
BEIS,UKRI - BBSRC,15/11/2018,Recruitment Costs,PDG - Director,Agenda Resource Management Ltd,98335275,99.80,Recruitment Costs
BEIS,UKRI - BBSRC,08/11/2018,Health & Safety (inc. Medicals & Opticians),PDG - Director,AM Health & Safety Ltd,98321750,279.00,Health & Safety (inc. Medicals & Opticians)
BEIS,UKRI - BBSRC,19/11/2018,Mechanical & Electrical Maintenance,JBOS - Maintenance,AR Electrical (Swindon) Ltd,98328043,3493.20,Mechanical & Electrical Maintenance
BEIS,UKRI - BBSRC,19/11/2018,Mechanical & Electrical Maintenance,JBOS - Maintenance,AR Electrical (Swindon) Ltd,98328043,1260.00,Mechanical & Electrical Maintenance
BEIS,UKRI - BBSRC,26/11/2018,Mechanical & Electrical Maintenance,JBOS - Maintenance,AR Electrical (Swindon) Ltd,98340943,570.00,Mechanical & Electrical Maintenance
BEIS,UKRI - BBSRC,29/11/2018,Non-Capital Building Construction,JBOS - Maintenance,AR Electrical (Swindon) Ltd,98346328,4020.00,Non-Capital Building Construction
BEIS,UKRI - BBSRC,21/11/2018,Catering Contracts,JBOS - Restaurant,Aramark Ltd,98337650,22371.47,Catering Contracts
BEIS,UKRI - BBSRC,21/11/2018,Catering Contracts,JBOS - Restaurant,Aramark Ltd,98337651,23948.12,Catering Contracts
BEIS,UKRI - BBSRC,21/11/2018,Catering Contracts,JBOS - Restaurant,Aramark Ltd,98337661,-6947.03,Catering Contracts
BEIS,UKRI - BBSRC,21/11/2018,Catering Contracts,JBOS - Restaurant,Aramark Ltd,98337664,-9166.99,Catering Contracts
BEIS,UKRI - BBSRC,21/11/2018,Catering Contracts,JBOS - Restaurant,Aramark Ltd,98337667,15734.60,Catering Contracts
BEIS,UKRI - BBSRC,01/11/2018,Printing & Stationery,CIMG - Director,Banner Group Ltd,98323819,43.78,Printing & Stationery
BEIS,UKRI - BBSRC,01/11/2018,Printing & Stationery,CIMG - Director,Banner Group Ltd,98323819,1.03,Printing & Stationery
BEIS,UKRI - BBSRC,05/11/2018,Printing & Stationery,CIMG - Director,Banner Group Ltd,98324582,24.96,Printing & Stationery
BEIS,UKRI - BBSRC,05/11/2018,Printing & Stationery,CIMG - Director,Banner Group Ltd,98324582,10.44,Printing & Stationery
BEIS,UKRI - BBSRC,05/11/2018,Printing & Stationery,CIMG - Director,Banner Group Ltd,98324582,29.52,Printing & Stationery
BEIS,UKRI - BBSRC,05/11/2018,Printing & Stationery,CIMG - Director,Banner Group Ltd,98324582,14.40,Printing & Stationery
BEIS,UKRI - BBSRC,05/11/2018,Printing & Stationery,CIMG - Director,Banner Group Ltd,98324582,14.16,Printing & Stationery
BEIS,UKRI - BBSRC,06/11/2018,Printing & Stationery,JBOS - Administration,Banner Group Ltd,98325094,20.52,Printing & Stationery
BEIS,UKRI - BBSRC,08/11/2018,Printing & Stationery,JBOS - Administration,Banner Group Ltd,98327924,7.56,Printing & Stationery
BEIS,UKRI - BBSRC,08/11/2018,Printing & Stationery,JBOS - Administration,Banner Group Ltd,98327924,6.05,Printing & Stationery
BEIS,UKRI - BBSRC,08/11/2018,Printing & Stationery,JBOS - Administration,Banner Group Ltd,98327924,9.07,Printing & Stationery
BEIS,UKRI - BBSRC,08/11/2018,Printing & Stationery,JBOS - Administration,Banner Group Ltd,98327924,38.76,Printing & Stationery
BEIS,UKRI - BBSRC,08/11/2018,Printing & Stationery,JBOS - Administration,Banner Group Ltd,98327924,5.10,Printing & Stationery
BEIS,UKRI - BBSRC,08/11/2018,Printing & Stationery,JBOS - Administration,Banner Group Ltd,98327924,39.54,Printing & Stationery
BEIS,UKRI - BBSRC,08/11/2018,Printing & Stationery,JBOS - Administration,Banner Group Ltd,98327924,34.20,Printing & Stationery
BEIS,UKRI - BBSRC,08/11/2018,Printing & Stationery,JBOS - Administration,Banner Group Ltd,98327924,6.84,Printing & Stationery
BEIS,UKRI - BBSRC,08/11/2018,Printing & Stationery,JBOS - Administration,Banner Group Ltd,98327924,7.20,Printing & Stationery
BEIS,UKRI - BBSRC,08/11/2018,Printing & Stationery,JBOS - Administration,Banner Group Ltd,98327924,9.48,Printing & Stationery
BEIS,UKRI - BBSRC,08/11/2018,Printing & Stationery,JBOS - Administration,Banner Group Ltd,98327924,2.99,Printing & Stationery
BEIS,UKRI - BBSRC,13/11/2018,Printing & Stationery,CIMG - Director,Banner Group Ltd,98330991,6.53,Printing & Stationery
BEIS,UKRI - BBSRC,20/11/2018,Health & Safety (inc. Medicals & Opticians),PDG - Director,Banner Group Ltd,98336567,5.38,Health & Safety (inc. Medicals & Opticians)
BEIS,UKRI - BBSRC,20/11/2018,Health & Safety (inc. Medicals & Opticians),PDG - Director,Banner Group Ltd,98336567,4.56,Health & Safety (inc. Medicals & Opticians)
BEIS,UKRI - BBSRC,27/11/2018,Printing & Stationery,JBOS - Administration,Banner Group Ltd,98337039,13.34,Printing & Stationery
BEIS,UKRI - BBSRC,27/11/2018,Health & Safety (inc. Medicals & Opticians),PDG - Director,Banner Group Ltd,98340685,56.88,Health & Safety (inc. Medicals & Opticians)
BEIS,UKRI - BBSRC,28/11/2018,Safety Materials & Equipment,JBOS Health and Safety,Banner Group Ltd,98343399,21.02,Safety Materials & Equipment
BEIS,UKRI - BBSRC,28/11/2018,Safety Materials & Equipment,JBOS Health and Safety,Banner Group Ltd,98343399,2.95,Safety Materials & Equipment
BEIS,UKRI - BBSRC,28/11/2018,Safety Materials & Equipment,JBOS Health and Safety,Banner Group Ltd,98343399,3.96,Safety Materials & Equipment
BEIS,UKRI - BBSRC,30/11/2018,Printing & Stationery,JBOS - Administration,Banner Group Ltd,98342998,66.86,Printing & Stationery
BEIS,UKRI - BBSRC,30/11/2018,Printing & Stationery,JBOS - Administration,Banner Group Ltd,98342998,12.48,Printing & Stationery
BEIS,UKRI - BBSRC,30/11/2018,Printing & Stationery,JBOS - Administration,Banner Group Ltd,98342998,2.40,Printing & Stationery
BEIS,UKRI - BBSRC,30/11/2018,Printing & Stationery,JBOS - Administration,Banner Group Ltd,98342998,41.04,Printing & Stationery
BEIS,UKRI - BBSRC,30/11/2018,Printing & Stationery,JBOS - Administration,Banner Group Ltd,98342998,6.00,Printing & Stationery
BEIS,UKRI - BBSRC,30/11/2018,Printing & Stationery,JBOS - Administration,Banner Group Ltd,98342998,21.60,Printing & Stationery
BEIS,UKRI - BBSRC,30/11/2018,Printing & Stationery,JBOS - Staff,Banner Group Ltd,98342998,15.12,Printing & Stationery
BEIS,UKRI - BBSRC,30/11/2018,Safety Materials & Equipment,JBOS Health and Safety,Banner Group Ltd,98342998,5.57,Safety Materials & Equipment
BEIS,UKRI - BBSRC,27/11/2018,Meetings & Catering,CE - IRU,Baxter Storey Ltd,98343729,178.92,Meetings & Catering
BEIS,UKRI - BBSRC,27/11/2018,Meetings & Catering,FG - Accounts & Business Planning,Baxter Storey Ltd,98343729,139.02,Meetings & Catering
BEIS,UKRI - BBSRC,27/11/2018,Meetings & Catering,Innovation and Skills Group,Baxter Storey Ltd,98343729,113.40,Meetings & Catering
BEIS,UKRI - BBSRC,27/11/2018,Meetings & Catering,RISD - UKRO,Baxter Storey Ltd,98343729,266.28,Meetings & Catering
BEIS,UKRI - BBSRC,21/11/2018,Non-staff travel and subsistance,Science Group - Delivery Function,BioVacc Consulting Ltd,98340408,204.00,Non-staff travel and subsistance
BEIS,UKRI - BBSRC,30/11/2018,Health & Safety (inc. Medicals & Opticians),PDG - Director,BMI Healthcare Limited,98342243,693.50,Health & Safety (inc. Medicals & Opticians)
BEIS,UKRI - BBSRC,28/11/2018,Staff Training,PDG - Director,Bray Leino Ltd,98344580,758.00,Staff Training
BEIS,UKRI - BBSRC,27/11/2018,UK - Professional Memberships & Subscriptions,FG - Estates,BSRIA Instruments Solutions,98339384,1254.00,UK - Professional Memberships & Subscriptions
BEIS,UKRI - BBSRC,26/11/2018,Telecoms - Tele/ Video conferencing,CE - Chief Executive,BT Conferencing,98340011,348.51,Telecoms - Tele/ Video conferencing
BEIS,UKRI - BBSRC,26/11/2018,Telecoms - Tele/ Video conferencing,FG - Director,BT Conferencing,98340011,264.92,Telecoms - Tele/ Video conferencing
BEIS,UKRI - BBSRC,26/11/2018,Telecoms - Tele/ Video conferencing,Innovation and Skills Group,BT Conferencing,98340011,253.07,Telecoms - Tele/ Video conferencing
BEIS,UKRI - BBSRC,26/11/2018,Telecoms - Tele/ Video conferencing,PDG - Director,BT Conferencing,98340011,83.48,Telecoms - Tele/ Video conferencing
BEIS,UKRI - BBSRC,01/11/2018,Other Programme Costs,Innovation and Skills Group,Calder Conference Ltd,98322829,27265.00,Other Programme Costs
BEIS,UKRI - BBSRC,01/11/2018,Other Programme Costs,Science Group,Calder Conference Ltd,98322830,1712.89,Other Programme Costs
BEIS,UKRI - BBSRC,02/11/2018,Other Programme Costs,Innovation and Skills Group CDSU,Calder Conference Ltd,98319344,10804.87,Other Programme Costs
BEIS,UKRI - BBSRC,02/11/2018,Staff Training,PDG - Director,Calder Conference Ltd,98325464,127.80,Staff Training
BEIS,UKRI - BBSRC,05/11/2018,Other Programme Costs,Science Group,Calder Conference Ltd,98325463,2861.00,Other Programme Costs
BEIS,UKRI - BBSRC,09/11/2018,Other Programme Costs,Science Group � Programme Function,Calder Conference Ltd,98307886,540.00,Other Programme Costs
BEIS,UKRI - BBSRC,09/11/2018,Conferences & Seminars,Science Group - Delivery Function,Calder Conference Ltd,98316710,47418.60,Conferences & Seminars
BEIS,UKRI - BBSRC,09/11/2018,Staff Training,PDG - Director,Calder Conference Ltd,98323315,1470.00,Staff Training
BEIS,UKRI - BBSRC,15/11/2018,Other Programme Costs,Science Group,Calder Conference Ltd,98335879,1346.00,Other Programme Costs
BEIS,UKRI - BBSRC,21/11/2018,Other Programme Costs,Science Group,Calder Conference Ltd,98338235,510.00,Other Programme Costs
BEIS,UKRI - BBSRC,27/11/2018,Other Programme Costs,CE - CPS,Calder Conference Ltd,98342287,1320.00,Other Programme Costs
BEIS,UKRI - BBSRC,27/11/2018,Other Programme Costs,CE - CPS,Calder Conference Ltd,98343763,870.00,Other Programme Costs
BEIS,UKRI - BBSRC,27/11/2018,Staff Training,PDG - Director,Calder Conference Ltd,98343764,810.00,Staff Training
BEIS,UKRI - BBSRC,12/11/2018,Water,JBOS - Maintenance,Castle Water Ltd,98329759,2209.45,Water
BEIS,UKRI - BBSRC,15/11/2018,Voluntary Deductions,Balance Sheet,Charities Aid Foundation - GAYE,98327609,570.83,Voluntary Deductions
BEIS,UKRI - BBSRC,15/11/2018,Voluntary Deductions,Balance Sheet,Civil Service Benevolent Fund,98328472,2.00,Voluntary Deductions
BEIS,UKRI - BBSRC,09/11/2018,Staff Training,PDG - Director,Civil Service College,98324419,900.00,Staff Training
BEIS,UKRI - BBSRC,19/11/2018,Gas,JBOS - Maintenance,Corona Energy,98337356,2300.66,Gas
BEIS,UKRI - BBSRC,16/11/2018,T&S UK - Vehicle Hire,CE - IRU,Corporate Airport Transfers,98303520,867.84,T&S UK - Vehicle Hire
BEIS,UKRI - BBSRC,16/11/2018,T&S UK - Vehicle Hire,CE - IRU,Corporate Airport Transfers,98317194,276.72,T&S UK - Vehicle Hire
BEIS,UKRI - BBSRC,16/11/2018,T&S UK - Vehicle Hire,CE - Chief Executive,Corporate Airport Transfers,98328739,628.32,T&S UK - Vehicle Hire
BEIS,UKRI - BBSRC,16/11/2018,T&S UK - Public Transport,CE - IRU,Corporate Airport Transfers,98328744,126.00,T&S UK - Public Transport
BEIS,UKRI - BBSRC,21/11/2018,T&S UK - Other Charges,Science Group,Corporate Airport Transfers,98337709,288.00,T&S UK - Other Charges
BEIS,UKRI - BBSRC,27/11/2018,T&S UK - Vehicle Hire,CE - IRU,Corporate Airport Transfers,98338167,304.80,T&S UK - Vehicle Hire
BEIS,UKRI - BBSRC,05/11/2018,Non-staff travel and subsistance,RISD - UKRO,Corporate Travel Management (North) Ltd,98324752,233.00,Non-staff travel and subsistance
BEIS,UKRI - BBSRC,05/11/2018,Non-staff travel and subsistance,RISD - UKRO,Corporate Travel Management (North) Ltd,98324752,124.00,Non-staff travel and subsistance
BEIS,UKRI - BBSRC,05/11/2018,Non-staff travel and subsistance,Science Group - Delivery Function,Corporate Travel Management (North) Ltd,98324752,72.80,Non-staff travel and subsistance
BEIS,UKRI - BBSRC,05/11/2018,Non-staff travel and subsistance,Science Group - Delivery Function,Corporate Travel Management (North) Ltd,98324752,189.26,Non-staff travel and subsistance
BEIS,UKRI - BBSRC,05/11/2018,T&S Overseas - Accommodation,CE - IRU,Corporate Travel Management (North) Ltd,98324752,0.50,T&S Overseas - Accommodation
BEIS,UKRI - BBSRC,05/11/2018,T&S Overseas - Accommodation,CE - IRU,Corporate Travel Management (North) Ltd,98324752,0.50,T&S Overseas - Accommodation
BEIS,UKRI - BBSRC,05/11/2018,T&S Overseas - Accommodation,CE - IRU,Corporate Travel Management (North) Ltd,98324752,0.50,T&S Overseas - Accommodation
BEIS,UKRI - BBSRC,05/11/2018,T&S Overseas - Accommodation,CE - IRU,Corporate Travel Management (North) Ltd,98324752,1.44,T&S Overseas - Accommodation
BEIS,UKRI - BBSRC,05/11/2018,T&S Overseas - Accommodation,CE - IRU,Corporate Travel Management (North) Ltd,98324752,0.50,T&S Overseas - Accommodation
BEIS,UKRI - BBSRC,05/11/2018,T&S Overseas - Accommodation,CE - IRU,Corporate Travel Management (North) Ltd,98324752,1.44,T&S Overseas - Accommodation
BEIS,UKRI - BBSRC,05/11/2018,T&S Overseas - Accommodation,CE - IRU,Corporate Travel Management (North) Ltd,98324752,0.39,T&S Overseas - Accommodation
BEIS,UKRI - BBSRC,05/11/2018,T&S Overseas - Accommodation,CE - IRU,Corporate Travel Management (North) Ltd,98324752,0.10,T&S Overseas - Accommodation
BEIS,UKRI - BBSRC,05/11/2018,T&S Overseas - Accommodation,CE - IRU,Corporate Travel Management (North) Ltd,98324752,0.39,T&S Overseas - Accommodation
BEIS,UKRI - BBSRC,05/11/2018,T&S Overseas - Accommodation,CE - IRU,Corporate Travel Management (North) Ltd,98324752,0.10,T&S Overseas - Accommodation
BEIS,UKRI - BBSRC,05/11/2018,T&S Overseas - Accommodation,European Initiatives,Corporate Travel Management (North) Ltd,98324752,0.50,T&S Overseas - Accommodation
BEIS,UKRI - BBSRC,05/11/2018,T&S Overseas - Accommodation,European Initiatives,Corporate Travel Management (North) Ltd,98324752,0.10,T&S Overseas - Accommodation
BEIS,UKRI - BBSRC,05/11/2018,T&S Overseas - Accommodation,RISD - UKRO,Corporate Travel Management (North) Ltd,98324752,1.00,T&S Overseas - Accommodation
BEIS,UKRI - BBSRC,05/11/2018,T&S Overseas - Accommodation,RISD - UKRO,Corporate Travel Management (North) Ltd,98324752,0.20,T&S Overseas - Accommodation
BEIS,UKRI - BBSRC,05/11/2018,T&S Overseas - Flights,CE - Chief Executive,Corporate Travel Management (North) Ltd,98324752,6.75,T&S Overseas - Flights
BEIS,UKRI - BBSRC,05/11/2018,T&S Overseas - Flights,CE - Chief Executive,Corporate Travel Management (North) Ltd,98324752,67.18,T&S Overseas - Flights
BEIS,UKRI - BBSRC,05/11/2018,T&S Overseas - Flights,CE - Chief Executive,Corporate Travel Management (North) Ltd,98324752,302.00,T&S Overseas - Flights
BEIS,UKRI - BBSRC,05/11/2018,T&S Overseas - Flights,CE - Chief Executive,Corporate Travel Management (North) Ltd,98324752,14.79,T&S Overseas - Flights
BEIS,UKRI - BBSRC,05/11/2018,T&S Overseas - Flights,CE - IRU,Corporate Travel Management (North) Ltd,98324752,193.00,T&S Overseas - Flights
BEIS,UKRI - BBSRC,05/11/2018,T&S Overseas - Flights,CE - IRU,Corporate Travel Management (North) Ltd,98324752,119.00,T&S Overseas - Flights
BEIS,UKRI - BBSRC,05/11/2018,T&S Overseas - Flights,CE - IRU,Corporate Travel Management (North) Ltd,98324752,1393.80,T&S Overseas - Flights
BEIS,UKRI - BBSRC,05/11/2018,T&S Overseas - Flights,CE - IRU,Corporate Travel Management (North) Ltd,98324752,144.30,T&S Overseas - Flights
BEIS,UKRI - BBSRC,05/11/2018,T&S Overseas - Flights,CE - IRU,Corporate Travel Management (North) Ltd,98324752,2893.81,T&S Overseas - Flights
BEIS,UKRI - BBSRC,05/11/2018,T&S Overseas - Flights,CE - IRU,Corporate Travel Management (North) Ltd,98324752,2.16,T&S Overseas - Flights
BEIS,UKRI - BBSRC,05/11/2018,T&S Overseas - Flights,CE - IRU,Corporate Travel Management (North) Ltd,98324752,4505.41,T&S Overseas - Flights
BEIS,UKRI - BBSRC,05/11/2018,T&S Overseas - Flights,CE - IRU,Corporate Travel Management (North) Ltd,98324752,2893.81,T&S Overseas - Flights
BEIS,UKRI - BBSRC,05/11/2018,T&S Overseas - Flights,CE - IRU,Corporate Travel Management (North) Ltd,98324752,947.61,T&S Overseas - Flights
BEIS,UKRI - BBSRC,05/11/2018,T&S Overseas - Flights,CE - IRU,Corporate Travel Management (North) Ltd,98324752,273.90,T&S Overseas - Flights
BEIS,UKRI - BBSRC,05/11/2018,T&S Overseas - Flights,CE - IRU,Corporate Travel Management (North) Ltd,98324752,803.31,T&S Overseas - Flights
BEIS,UKRI - BBSRC,05/11/2018,T&S Overseas - Flights,European Initiatives,Corporate Travel Management (North) Ltd,98324752,145.30,T&S Overseas - Flights
BEIS,UKRI - BBSRC,05/11/2018,T&S Overseas - Flights,European Initiatives,Corporate Travel Management (North) Ltd,98324752,107.30,T&S Overseas - Flights
BEIS,UKRI - BBSRC,05/11/2018,T&S Overseas - Flights,European Initiatives,Corporate Travel Management (North) Ltd,98324752,119.30,T&S Overseas - Flights
BEIS,UKRI - BBSRC,05/11/2018,T&S Overseas - Flights,European Initiatives,Corporate Travel Management (North) Ltd,98324752,83.00,T&S Overseas - Flights
BEIS,UKRI - BBSRC,05/11/2018,T&S Overseas - Flights,FG - RCUK Assurance,Corporate Travel Management (North) Ltd,98324752,2.16,T&S Overseas - Flights
BEIS,UKRI - BBSRC,05/11/2018,T&S Overseas - Flights,FG - RCUK Assurance,Corporate Travel Management (North) Ltd,98324752,1064.41,T&S Overseas - Flights
BEIS,UKRI - BBSRC,05/11/2018,T&S Overseas - Flights,RISD - UKRO,Corporate Travel Management (North) Ltd,98324752,82.15,T&S Overseas - Flights
BEIS,UKRI - BBSRC,05/11/2018,T&S Overseas - Flights,Science Group,Corporate Travel Management (North) Ltd,98324752,1343.91,T&S Overseas - Flights
BEIS,UKRI - BBSRC,05/11/2018,T&S Overseas - Flights,Science Group,Corporate Travel Management (North) Ltd,98324752,-9.00,T&S Overseas - Flights
BEIS,UKRI - BBSRC,05/11/2018,T&S Overseas - Flights,Science Group - Delivery Function,Corporate Travel Management (North) Ltd,98324752,6.75,T&S Overseas - Flights
BEIS,UKRI - BBSRC,05/11/2018,T&S Overseas - Flights,Science Group - Delivery Function,Corporate Travel Management (North) Ltd,98324752,147.50,T&S Overseas - Flights
BEIS,UKRI - BBSRC,05/11/2018,T&S Overseas - Flights,Science Group - Delivery Function,Corporate Travel Management (North) Ltd,98324752,85.00,T&S Overseas - Flights
BEIS,UKRI - BBSRC,05/11/2018,T&S Overseas - Flights,Science Group - Delivery Function,Corporate Travel Management (North) Ltd,98324752,30.85,T&S Overseas - Flights
BEIS,UKRI - BBSRC,05/11/2018,T&S Overseas - Public Transport,RISD - UKRO,Corporate Travel Management (North) Ltd,98324752,163.00,T&S Overseas - Public Transport
BEIS,UKRI - BBSRC,05/11/2018,T&S Overseas - Public Transport,RISD - UKRO,Corporate Travel Management (North) Ltd,98324752,192.60,T&S Overseas - Public Transport
BEIS,UKRI - BBSRC,05/11/2018,T&S Overseas - Public Transport,RISD - UKRO,Corporate Travel Management (North) Ltd,98324752,93.77,T&S Overseas - Public Transport
BEIS,UKRI - BBSRC,05/11/2018,T&S Overseas - Public Transport,RISD - UKRO,Corporate Travel Management (North) Ltd,98324752,101.00,T&S Overseas - Public Transport
BEIS,UKRI - BBSRC,05/11/2018,T&S Overseas - Public Transport,RISD - UKRO,Corporate Travel Management (North) Ltd,98324752,184.00,T&S Overseas - Public Transport
BEIS,UKRI - BBSRC,05/11/2018,T&S Overseas - Public Transport,RISD - UKRO,Corporate Travel Management (North) Ltd,98324752,88.00,T&S Overseas - Public Transport
BEIS,UKRI - BBSRC,05/11/2018,T&S Overseas - Public Transport,RISD - UKRO,Corporate Travel Management (North) Ltd,98324752,183.00,T&S Overseas - Public Transport
BEIS,UKRI - BBSRC,05/11/2018,T&S Overseas - Public Transport,RISD - UKRO,Corporate Travel Management (North) Ltd,98324752,105.00,T&S Overseas - Public Transport
BEIS,UKRI - BBSRC,05/11/2018,T&S Overseas - Public Transport,RISD - UKRO,Corporate Travel Management (North) Ltd,98324752,191.00,T&S Overseas - Public Transport
BEIS,UKRI - BBSRC,05/11/2018,T&S Overseas - Public Transport,RISD - UKRO,Corporate Travel Management (North) Ltd,98324752,2.16,T&S Overseas - Public Transport
BEIS,UKRI - BBSRC,05/11/2018,T&S Overseas - Public Transport,RISD - UKRO,Corporate Travel Management (North) Ltd,98324752,31.14,T&S Overseas - Public Transport
BEIS,UKRI - BBSRC,05/11/2018,T&S Overseas - Public Transport,RISD - UKRO,Corporate Travel Management (North) Ltd,98324752,147.00,T&S Overseas - Public Transport
BEIS,UKRI - BBSRC,05/11/2018,T&S Overseas - Public Transport,RISD - UKRO,Corporate Travel Management (North) Ltd,98324752,255.10,T&S Overseas - Public Transport
BEIS,UKRI - BBSRC,05/11/2018,T&S Overseas - Public Transport,RISD - UKRO,Corporate Travel Management (North) Ltd,98324752,2.16,T&S Overseas - Public Transport
BEIS,UKRI - BBSRC,05/11/2018,T&S Overseas - Public Transport,RISD - UKRO,Corporate Travel Management (North) Ltd,98324752,102.00,T&S Overseas - Public Transport
BEIS,UKRI - BBSRC,05/11/2018,T&S Overseas - Public Transport,RISD - UKRO,Corporate Travel Management (North) Ltd,98324752,130.00,T&S Overseas - Public Transport
BEIS,UKRI - BBSRC,05/11/2018,T&S Overseas - Public Transport,RISD - UKRO,Corporate Travel Management (North) Ltd,98324752,218.00,T&S Overseas - Public Transport
BEIS,UKRI - BBSRC,05/11/2018,T&S Overseas - Public Transport,RISD - UKRO,Corporate Travel Management (North) Ltd,98324752,139.00,T&S Overseas - Public Transport
BEIS,UKRI - BBSRC,05/11/2018,T&S Overseas - Public Transport,RISD - UKRO,Corporate Travel Management (North) Ltd,98324752,74.00,T&S Overseas - Public Transport
BEIS,UKRI - BBSRC,05/11/2018,T&S Overseas - Public Transport,RISD - UKRO,Corporate Travel Management (North) Ltd,98324752,67.00,T&S Overseas - Public Transport
BEIS,UKRI - BBSRC,05/11/2018,T&S Overseas - Public Transport,RISD - UKRO,Corporate Travel Management (North) Ltd,98324752,55.94,T&S Overseas - Public Transport
BEIS,UKRI - BBSRC,05/11/2018,T&S Overseas - Public Transport,RISD - UKRO,Corporate Travel Management (North) Ltd,98324752,67.00,T&S Overseas - Public Transport
BEIS,UKRI - BBSRC,05/11/2018,T&S Overseas - Public Transport,RISD - UKRO,Corporate Travel Management (North) Ltd,98324752,285.00,T&S Overseas - Public Transport
BEIS,UKRI - BBSRC,05/11/2018,T&S Overseas - Public Transport,RISD - UKRO,Corporate Travel Management (North) Ltd,98324752,168.00,T&S Overseas - Public Transport
BEIS,UKRI - BBSRC,05/11/2018,T&S Overseas - Public Transport,RISD - UKRO,Corporate Travel Management (North) Ltd,98324752,283.00,T&S Overseas - Public Transport
BEIS,UKRI - BBSRC,05/11/2018,T&S Overseas - Public Transport,RISD - UKRO,Corporate Travel Management (North) Ltd,98324752,127.00,T&S Overseas - Public Transport
BEIS,UKRI - BBSRC,05/11/2018,T&S UK - Accommodation,BBSRC Champions,Corporate Travel Management (North) Ltd,98324752,0.50,T&S UK - Accommodation
BEIS,UKRI - BBSRC,05/11/2018,T&S UK - Accommodation,BBSRC Champions,Corporate Travel Management (North) Ltd,98324752,1.44,T&S UK - Accommodation
BEIS,UKRI - BBSRC,05/11/2018,T&S UK - Accommodation,BBSRC Champions,Corporate Travel Management (North) Ltd,98324752,90.98,T&S UK - Accommodation
BEIS,UKRI - BBSRC,05/11/2018,T&S UK - Accommodation,BBSRC Champions,Corporate Travel Management (North) Ltd,98324752,0.39,T&S UK - Accommodation
BEIS,UKRI - BBSRC,05/11/2018,T&S UK - Accommodation,CE - CPS,Corporate Travel Management (North) Ltd,98324752,0.50,T&S UK - Accommodation
BEIS,UKRI - BBSRC,05/11/2018,T&S UK - Accommodation,CE - CPS,Corporate Travel Management (North) Ltd,98324752,105.00,T&S UK - Accommodation
BEIS,UKRI - BBSRC,05/11/2018,T&S UK - Accommodation,CE - CPS,Corporate Travel Management (North) Ltd,98324752,0.50,T&S UK - Accommodation
BEIS,UKRI - BBSRC,05/11/2018,T&S UK - Accommodation,CE - CPS,Corporate Travel Management (North) Ltd,98324752,0.50,T&S UK - Accommodation
BEIS,UKRI - BBSRC,05/11/2018,T&S UK - Accommodation,CE - CPS,Corporate Travel Management (North) Ltd,98324752,100.00,T&S UK - Accommodation
BEIS,UKRI - BBSRC,05/11/2018,T&S UK - Accommodation,CE - CPS,Corporate Travel Management (North) Ltd,98324752,0.20,T&S UK - Accommodation
BEIS,UKRI - BBSRC,05/11/2018,T&S UK - Accommodation,CE - CPS,Corporate Travel Management (North) Ltd,98324752,0.10,T&S UK - Accommodation
BEIS,UKRI - BBSRC,05/11/2018,T&S UK - Accommodation,CE - Chief Executive,Corporate Travel Management (North) Ltd,98324752,0.50,T&S UK - Accommodation
BEIS,UKRI - BBSRC,05/11/2018,T&S UK - Accommodation,CE - Chief Executive,Corporate Travel Management (North) Ltd,98324752,258.00,T&S UK - Accommodation
BEIS,UKRI - BBSRC,05/11/2018,T&S UK - Accommodation,CE - Chief Executive,Corporate Travel Management (North) Ltd,98324752,0.50,T&S UK - Accommodation
BEIS,UKRI - BBSRC,05/11/2018,T&S UK - Accommodation,CE - Chief Executive,Corporate Travel Management (North) Ltd,98324752,440.00,T&S UK - Accommodation
BEIS,UKRI - BBSRC,05/11/2018,T&S UK - Accommodation,CE - Chief Executive,Corporate Travel Management (North) Ltd,98324752,1.00,T&S UK - Accommodation
BEIS,UKRI - BBSRC,05/11/2018,T&S UK - Accommodation,CE - Chief Executive,Corporate Travel Management (North) Ltd,98324752,1.44,T&S UK - Accommodation
BEIS,UKRI - BBSRC,05/11/2018,T&S UK - Accommodation,CE - Chief Executive,Corporate Travel Management (North) Ltd,98324752,223.00,T&S UK - Accommodation
BEIS,UKRI - BBSRC,05/11/2018,T&S UK - Accommodation,CE - Chief Executive,Corporate Travel Management (North) Ltd,98324752,0.50,T&S UK - Accommodation
BEIS,UKRI - BBSRC,05/11/2018,T&S UK - Accommodation,CE - Chief Executive,Corporate Travel Management (North) Ltd,98324752,0.50,T&S UK - Accommodation
BEIS,UKRI - BBSRC,05/11/2018,T&S UK - Accommodation,CE - Chief Executive,Corporate Travel Management (North) Ltd,98324752,236.00,T&S UK - Accommodation
BEIS,UKRI - BBSRC,05/11/2018,T&S UK - Accommodation,CE - Chief Executive,Corporate Travel Management (North) Ltd,98324752,0.89,T&S UK - Accommodation
BEIS,UKRI - BBSRC,05/11/2018,T&S UK - Accommodation,CE - IRU,Corporate Travel Management (North) Ltd,98324752,0.50,T&S UK - Accommodation
BEIS,UKRI - BBSRC,05/11/2018,T&S UK - Accommodation,CE - IRU,Corporate Travel Management (North) Ltd,98324752,105.00,T&S UK - Accommodation
BEIS,UKRI - BBSRC,05/11/2018,T&S UK - Accommodation,CE - IRU,Corporate Travel Management (North) Ltd,98324752,0.50,T&S UK - Accommodation
BEIS,UKRI - BBSRC,05/11/2018,T&S UK - Accommodation,CE - IRU,Corporate Travel Management (North) Ltd,98324752,98.00,T&S UK - Accommodation
BEIS,UKRI - BBSRC,05/11/2018,T&S UK - Accommodation,CE - IRU,Corporate Travel Management (North) Ltd,98324752,0.50,T&S UK - Accommodation
BEIS,UKRI - BBSRC,05/11/2018,T&S UK - Accommodation,CE - IRU,Corporate Travel Management (North) Ltd,98324752,80.00,T&S UK - Accommodation
BEIS,UKRI - BBSRC,05/11/2018,T&S UK - Accommodation,CE - IRU,Corporate Travel Management (North) Ltd,98324752,0.30,T&S UK - Accommodation
BEIS,UKRI - BBSRC,05/11/2018,T&S UK - Accommodation,CIMG - Director,Corporate Travel Management (North) Ltd,98324752,0.50,T&S UK - Accommodation
BEIS,UKRI - BBSRC,05/11/2018,T&S UK - Accommodation,CIMG - Director,Corporate Travel Management (North) Ltd,98324752,92.00,T&S UK - Accommodation
BEIS,UKRI - BBSRC,05/11/2018,T&S UK - Accommodation,CIMG - Director,Corporate Travel Management (North) Ltd,98324752,0.10,T&S UK - Accommodation
BEIS,UKRI - BBSRC,05/11/2018,T&S UK - Accommodation,CIMG - External Relations,Corporate Travel Management (North) Ltd,98324752,0.50,T&S UK - Accommodation
BEIS,UKRI - BBSRC,05/11/2018,T&S UK - Accommodation,CIMG - External Relations,Corporate Travel Management (North) Ltd,98324752,0.50,T&S UK - Accommodation
BEIS,UKRI - BBSRC,05/11/2018,T&S UK - Accommodation,CIMG - External Relations,Corporate Travel Management (North) Ltd,98324752,75.00,T&S UK - Accommodation
BEIS,UKRI - BBSRC,05/11/2018,T&S UK - Accommodation,CIMG - External Relations,Corporate Travel Management (North) Ltd,98324752,0.50,T&S UK - Accommodation
BEIS,UKRI - BBSRC,05/11/2018,T&S UK - Accommodation,CIMG - External Relations,Corporate Travel Management (North) Ltd,98324752,103.55,T&S UK - Accommodation
BEIS,UKRI - BBSRC,05/11/2018,T&S UK - Accommodation,CIMG - External Relations,Corporate Travel Management (North) Ltd,98324752,0.50,T&S UK - Accommodation
BEIS,UKRI - BBSRC,05/11/2018,T&S UK - Accommodation,CIMG - External Relations,Corporate Travel Management (North) Ltd,98324752,103.55,T&S UK - Accommodation
BEIS,UKRI - BBSRC,05/11/2018,T&S UK - Accommodation,CIMG - External Relations,Corporate Travel Management (North) Ltd,98324752,0.40,T&S UK - Accommodation
BEIS,UKRI - BBSRC,05/11/2018,T&S UK - Accommodation,CIMG - Information Systems,Corporate Travel Management (North) Ltd,98324752,0.50,T&S UK - Accommodation
BEIS,UKRI - BBSRC,05/11/2018,T&S UK - Accommodation,CIMG - Information Systems,Corporate Travel Management (North) Ltd,98324752,129.00,T&S UK - Accommodation
BEIS,UKRI - BBSRC,05/11/2018,T&S UK - Accommodation,CIMG - Information Systems,Corporate Travel Management (North) Ltd,98324752,0.10,T&S UK - Accommodation
BEIS,UKRI - BBSRC,05/11/2018,T&S UK - Accommodation,CIMG - Programme Office,Corporate Travel Management (North) Ltd,98324752,0.50,T&S UK - Accommodation
BEIS,UKRI - BBSRC,05/11/2018,T&S UK - Accommodation,CIMG - Programme Office,Corporate Travel Management (North) Ltd,98324752,81.50,T&S UK - Accommodation
BEIS,UKRI - BBSRC,05/11/2018,T&S UK - Accommodation,CIMG - Programme Office,Corporate Travel Management (North) Ltd,98324752,0.50,T&S UK - Accommodation
BEIS,UKRI - BBSRC,05/11/2018,T&S UK - Accommodation,CIMG - Programme Office,Corporate Travel Management (North) Ltd,98324752,70.00,T&S UK - Accommodation
BEIS,UKRI - BBSRC,05/11/2018,T&S UK - Accommodation,CIMG - Programme Office,Corporate Travel Management (North) Ltd,98324752,0.20,T&S UK - Accommodation
BEIS,UKRI - BBSRC,05/11/2018,T&S UK - Accommodation,European Initiatives,Corporate Travel Management (North) Ltd,98324752,0.50,T&S UK - Accommodation
BEIS,UKRI - BBSRC,05/11/2018,T&S UK - Accommodation,European Initiatives,Corporate Travel Management (North) Ltd,98324752,166.67,T&S UK - Accommodation
BEIS,UKRI - BBSRC,05/11/2018,T&S UK - Accommodation,European Initiatives,Corporate Travel Management (North) Ltd,98324752,0.50,T&S UK - Accommodation
BEIS,UKRI - BBSRC,05/11/2018,T&S UK - Accommodation,European Initiatives,Corporate Travel Management (North) Ltd,98324752,0.50,T&S UK - Accommodation
BEIS,UKRI - BBSRC,05/11/2018,T&S UK - Accommodation,European Initiatives,Corporate Travel Management (North) Ltd,98324752,0.10,T&S UK - Accommodation
BEIS,UKRI - BBSRC,05/11/2018,T&S UK - Accommodation,European Initiatives,Corporate Travel Management (North) Ltd,98324752,0.20,T&S UK - Accommodation
BEIS,UKRI - BBSRC,05/11/2018,T&S UK - Accommodation,FG - Director,Corporate Travel Management (North) Ltd,98324752,0.50,T&S UK - Accommodation
BEIS,UKRI - BBSRC,05/11/2018,T&S UK - Accommodation,FG - Director,Corporate Travel Management (North) Ltd,98324752,77.00,T&S UK - Accommodation
BEIS,UKRI - BBSRC,05/11/2018,T&S UK - Accommodation,FG - Director,Corporate Travel Management (North) Ltd,98324752,0.50,T&S UK - Accommodation
BEIS,UKRI - BBSRC,05/11/2018,T&S UK - Accommodation,FG - Director,Corporate Travel Management (North) Ltd,98324752,0.50,T&S UK - Accommodation
BEIS,UKRI - BBSRC,05/11/2018,T&S UK - Accommodation,FG - Director,Corporate Travel Management (North) Ltd,98324752,0.50,T&S UK - Accommodation
BEIS,UKRI - BBSRC,05/11/2018,T&S UK - Accommodation,FG - Director,Corporate Travel Management (North) Ltd,98324752,95.00,T&S UK - Accommodation
BEIS,UKRI - BBSRC,05/11/2018,T&S UK - Accommodation,FG - Director,Corporate Travel Management (North) Ltd,98324752,0.50,T&S UK - Accommodation
BEIS,UKRI - BBSRC,05/11/2018,T&S UK - Accommodation,FG - Director,Corporate Travel Management (North) Ltd,98324752,0.50,T&S UK - Accommodation
BEIS,UKRI - BBSRC,05/11/2018,T&S UK - Accommodation,FG - Director,Corporate Travel Management (North) Ltd,98324752,187.20,T&S UK - Accommodation
BEIS,UKRI - BBSRC,05/11/2018,T&S UK - Accommodation,FG - Director,Corporate Travel Management (North) Ltd,98324752,0.50,T&S UK - Accommodation
BEIS,UKRI - BBSRC,05/11/2018,T&S UK - Accommodation,FG - Director,Corporate Travel Management (North) Ltd,98324752,240.00,T&S UK - Accommodation
BEIS,UKRI - BBSRC,05/11/2018,T&S UK - Accommodation,FG - Director,Corporate Travel Management (North) Ltd,98324752,0.50,T&S UK - Accommodation
BEIS,UKRI - BBSRC,05/11/2018,T&S UK - Accommodation,FG - Director,Corporate Travel Management (North) Ltd,98324752,87.00,T&S UK - Accommodation
BEIS,UKRI - BBSRC,05/11/2018,T&S UK - Accommodation,FG - Director,Corporate Travel Management (North) Ltd,98324752,0.50,T&S UK - Accommodation
BEIS,UKRI - BBSRC,05/11/2018,T&S UK - Accommodation,FG - Director,Corporate Travel Management (North) Ltd,98324752,0.50,T&S UK - Accommodation
BEIS,UKRI - BBSRC,05/11/2018,T&S UK - Accommodation,FG - Director,Corporate Travel Management (North) Ltd,98324752,72.00,T&S UK - Accommodation
BEIS,UKRI - BBSRC,05/11/2018,T&S UK - Accommodation,FG - Director,Corporate Travel Management (North) Ltd,98324752,1.00,T&S UK - Accommodation
BEIS,UKRI - BBSRC,05/11/2018,T&S UK - Accommodation,FG - Estates,Corporate Travel Management (North) Ltd,98324752,0.50,T&S UK - Accommodation
BEIS,UKRI - BBSRC,05/11/2018,T&S UK - Accommodation,FG - Estates,Corporate Travel Management (North) Ltd,98324752,73.50,T&S UK - Accommodation
BEIS,UKRI - BBSRC,05/11/2018,T&S UK - Accommodation,FG - Estates,Corporate Travel Management (North) Ltd,98324752,0.50,T&S UK - Accommodation
BEIS,UKRI - BBSRC,05/11/2018,T&S UK - Accommodation,FG - Estates,Corporate Travel Management (North) Ltd,98324752,99.00,T&S UK - Accommodation
BEIS,UKRI - BBSRC,05/11/2018,T&S UK - Accommodation,FG - Estates,Corporate Travel Management (North) Ltd,98324752,0.50,T&S UK - Accommodation
BEIS,UKRI - BBSRC,05/11/2018,T&S UK - Accommodation,FG - Estates,Corporate Travel Management (North) Ltd,98324752,73.50,T&S UK - Accommodation
BEIS,UKRI - BBSRC,05/11/2018,T&S UK - Accommodation,FG - Estates,Corporate Travel Management (North) Ltd,98324752,0.50,T&S UK - Accommodation
BEIS,UKRI - BBSRC,05/11/2018,T&S UK - Accommodation,FG - Estates,Corporate Travel Management (North) Ltd,98324752,70.00,T&S UK - Accommodation
BEIS,UKRI - BBSRC,05/11/2018,T&S UK - Accommodation,FG - Estates,Corporate Travel Management (North) Ltd,98324752,0.50,T&S UK - Accommodation
BEIS,UKRI - BBSRC,05/11/2018,T&S UK - Accommodation,FG - Estates,Corporate Travel Management (North) Ltd,98324752,147.00,T&S UK - Accommodation
BEIS,UKRI - BBSRC,05/11/2018,T&S UK - Accommodation,FG - Estates,Corporate Travel Management (North) Ltd,98324752,0.50,T&S UK - Accommodation
BEIS,UKRI - BBSRC,05/11/2018,T&S UK - Accommodation,FG - Estates,Corporate Travel Management (North) Ltd,98324752,175.00,T&S UK - Accommodation
BEIS,UKRI - BBSRC,05/11/2018,T&S UK - Accommodation,FG - Estates,Corporate Travel Management (North) Ltd,98324752,0.50,T&S UK - Accommodation
BEIS,UKRI - BBSRC,05/11/2018,T&S UK - Accommodation,FG - Estates,Corporate Travel Management (North) Ltd,98324752,70.00,T&S UK - Accommodation
BEIS,UKRI - BBSRC,05/11/2018,T&S UK - Accommodation,FG - Estates,Corporate Travel Management (North) Ltd,98324752,-73.50,T&S UK - Accommodation
BEIS,UKRI - BBSRC,05/11/2018,T&S UK - Accommodation,FG - Estates,Corporate Travel Management (North) Ltd,98324752,0.50,T&S UK - Accommodation
BEIS,UKRI - BBSRC,05/11/2018,T&S UK - Accommodation,FG - Estates,Corporate Travel Management (North) Ltd,98324752,121.50,T&S UK - Accommodation
BEIS,UKRI - BBSRC,05/11/2018,T&S UK - Accommodation,FG - Estates,Corporate Travel Management (North) Ltd,98324752,0.50,T&S UK - Accommodation
BEIS,UKRI - BBSRC,05/11/2018,T&S UK - Accommodation,FG - Estates,Corporate Travel Management (North) Ltd,98324752,0.50,T&S UK - Accommodation
BEIS,UKRI - BBSRC,05/11/2018,T&S UK - Accommodation,FG - Estates,Corporate Travel Management (North) Ltd,98324752,127.50,T&S UK - Accommodation
BEIS,UKRI - BBSRC,05/11/2018,T&S UK - Accommodation,FG - Estates,Corporate Travel Management (North) Ltd,98324752,0.50,T&S UK - Accommodation
BEIS,UKRI - BBSRC,05/11/2018,T&S UK - Accommodation,FG - Estates,Corporate Travel Management (North) Ltd,98324752,0.10,T&S UK - Accommodation
BEIS,UKRI - BBSRC,05/11/2018,T&S UK - Accommodation,FG - Estates,Corporate Travel Management (North) Ltd,98324752,1.00,T&S UK - Accommodation
BEIS,UKRI - BBSRC,05/11/2018,T&S UK - Accommodation,Innovation and Skills Group,Corporate Travel Management (North) Ltd,98324752,0.50,T&S UK - Accommodation
BEIS,UKRI - BBSRC,05/11/2018,T&S UK - Accommodation,Innovation and Skills Group,Corporate Travel Management (North) Ltd,98324752,0.50,T&S UK - Accommodation
BEIS,UKRI - BBSRC,05/11/2018,T&S UK - Accommodation,Innovation and Skills Group,Corporate Travel Management (North) Ltd,98324752,79.00,T&S UK - Accommodation
BEIS,UKRI - BBSRC,05/11/2018,T&S UK - Accommodation,Innovation and Skills Group,Corporate Travel Management (North) Ltd,98324752,0.50,T&S UK - Accommodation
BEIS,UKRI - BBSRC,05/11/2018,T&S UK - Accommodation,Innovation and Skills Group,Corporate Travel Management (North) Ltd,98324752,302.00,T&S UK - Accommodation
BEIS,UKRI - BBSRC,05/11/2018,T&S UK - Accommodation,Innovation and Skills Group,Corporate Travel Management (North) Ltd,98324752,0.50,T&S UK - Accommodation
BEIS,UKRI - BBSRC,05/11/2018,T&S UK - Accommodation,Innovation and Skills Group,Corporate Travel Management (North) Ltd,98324752,95.98,T&S UK - Accommodation
BEIS,UKRI - BBSRC,05/11/2018,T&S UK - Accommodation,Innovation and Skills Group,Corporate Travel Management (North) Ltd,98324752,0.50,T&S UK - Accommodation
BEIS,UKRI - BBSRC,05/11/2018,T&S UK - Accommodation,Innovation and Skills Group,Corporate Travel Management (North) Ltd,98324752,1.44,T&S UK - Accommodation
BEIS,UKRI - BBSRC,05/11/2018,T&S UK - Accommodation,Innovation and Skills Group,Corporate Travel Management (North) Ltd,98324752,0.50,T&S UK - Accommodation
BEIS,UKRI - BBSRC,05/11/2018,T&S UK - Accommodation,Innovation and Skills Group,Corporate Travel Management (North) Ltd,98324752,0.50,T&S UK - Accommodation
BEIS,UKRI - BBSRC,05/11/2018,T&S UK - Accommodation,Innovation and Skills Group,Corporate Travel Management (North) Ltd,98324752,148.00,T&S UK - Accommodation
BEIS,UKRI - BBSRC,05/11/2018,T&S UK - Accommodation,Innovation and Skills Group,Corporate Travel Management (North) Ltd,98324752,0.50,T&S UK - Accommodation
BEIS,UKRI - BBSRC,05/11/2018,T&S UK - Accommodation,Innovation and Skills Group,Corporate Travel Management (North) Ltd,98324752,169.50,T&S UK - Accommodation
BEIS,UKRI - BBSRC,05/11/2018,T&S UK - Accommodation,Innovation and Skills Group,Corporate Travel Management (North) Ltd,98324752,0.50,T&S UK - Accommodation
BEIS,UKRI - BBSRC,05/11/2018,T&S UK - Accommodation,Innovation and Skills Group,Corporate Travel Management (North) Ltd,98324752,87.00,T&S UK - Accommodation
BEIS,UKRI - BBSRC,05/11/2018,T&S UK - Accommodation,Innovation and Skills Group,Corporate Travel Management (North) Ltd,98324752,0.50,T&S UK - Accommodation
BEIS,UKRI - BBSRC,05/11/2018,T&S UK - Accommodation,Innovation and Skills Group,Corporate Travel Management (North) Ltd,98324752,93.50,T&S UK - Accommodation
BEIS,UKRI - BBSRC,05/11/2018,T&S UK - Accommodation,Innovation and Skills Group,Corporate Travel Management (North) Ltd,98324752,0.50,T&S UK - Accommodation
BEIS,UKRI - BBSRC,05/11/2018,T&S UK - Accommodation,Innovation and Skills Group,Corporate Travel Management (North) Ltd,98324752,120.00,T&S UK - Accommodation
BEIS,UKRI - BBSRC,05/11/2018,T&S UK - Accommodation,Innovation and Skills Group,Corporate Travel Management (North) Ltd,98324752,0.50,T&S UK - Accommodation
BEIS,UKRI - BBSRC,05/11/2018,T&S UK - Accommodation,Innovation and Skills Group,Corporate Travel Management (North) Ltd,98324752,73.50,T&S UK - Accommodation
BEIS,UKRI - BBSRC,05/11/2018,T&S UK - Accommodation,Innovation and Skills Group,Corporate Travel Management (North) Ltd,98324752,0.50,T&S UK - Accommodation
BEIS,UKRI - BBSRC,05/11/2018,T&S UK - Accommodation,Innovation and Skills Group,Corporate Travel Management (North) Ltd,98324752,62.00,T&S UK - Accommodation
BEIS,UKRI - BBSRC,05/11/2018,T&S UK - Accommodation,Innovation and Skills Group,Corporate Travel Management (North) Ltd,98324752,1.59,T&S UK - Accommodation
BEIS,UKRI - BBSRC,05/11/2018,T&S UK - Accommodation,Innovation and Skills Group CDSU,Corporate Travel Management (North) Ltd,98324752,0.50,T&S UK - Accommodation
BEIS,UKRI - BBSRC,05/11/2018,T&S UK - Accommodation,Innovation and Skills Group CDSU,Corporate Travel Management (North) Ltd,98324752,64.00,T&S UK - Accommodation
BEIS,UKRI - BBSRC,05/11/2018,T&S UK - Accommodation,Innovation and Skills Group CDSU,Corporate Travel Management (North) Ltd,98324752,0.50,T&S UK - Accommodation
BEIS,UKRI - BBSRC,05/11/2018,T&S UK - Accommodation,Innovation and Skills Group CDSU,Corporate Travel Management (North) Ltd,98324752,95.95,T&S UK - Accommodation
BEIS,UKRI - BBSRC,05/11/2018,T&S UK - Accommodation,Innovation and Skills Group CDSU,Corporate Travel Management (North) Ltd,98324752,0.50,T&S UK - Accommodation
BEIS,UKRI - BBSRC,05/11/2018,T&S UK - Accommodation,Innovation and Skills Group CDSU,Corporate Travel Management (North) Ltd,98324752,119.00,T&S UK - Accommodation
BEIS,UKRI - BBSRC,05/11/2018,T&S UK - Accommodation,Innovation and Skills Group CDSU,Corporate Travel Management (North) Ltd,98324752,0.30,T&S UK - Accommodation
BEIS,UKRI - BBSRC,05/11/2018,T&S UK - Accommodation,PDG - Director,Corporate Travel Management (North) Ltd,98324752,0.50,T&S UK - Accommodation
BEIS,UKRI - BBSRC,05/11/2018,T&S UK - Accommodation,PDG - Director,Corporate Travel Management (North) Ltd,98324752,125.11,T&S UK - Accommodation
BEIS,UKRI - BBSRC,05/11/2018,T&S UK - Accommodation,PDG - Director,Corporate Travel Management (North) Ltd,98324752,0.50,T&S UK - Accommodation
BEIS,UKRI - BBSRC,05/11/2018,T&S UK - Accommodation,PDG - Director,Corporate Travel Management (North) Ltd,98324752,129.00,T&S UK - Accommodation
BEIS,UKRI - BBSRC,05/11/2018,T&S UK - Accommodation,PDG - Director,Corporate Travel Management (North) Ltd,98324752,0.50,T&S UK - Accommodation
BEIS,UKRI - BBSRC,05/11/2018,T&S UK - Accommodation,PDG - Director,Corporate Travel Management (North) Ltd,98324752,150.00,T&S UK - Accommodation
BEIS,UKRI - BBSRC,05/11/2018,T&S UK - Accommodation,PDG - Director,Corporate Travel Management (North) Ltd,98324752,0.50,T&S UK - Accommodation
BEIS,UKRI - BBSRC,05/11/2018,T&S UK - Accommodation,PDG - Director,Corporate Travel Management (North) Ltd,98324752,75.00,T&S UK - Accommodation
BEIS,UKRI - BBSRC,05/11/2018,T&S UK - Accommodation,PDG - Director,Corporate Travel Management (North) Ltd,98324752,0.50,T&S UK - Accommodation
BEIS,UKRI - BBSRC,05/11/2018,T&S UK - Accommodation,PDG - Director,Corporate Travel Management (North) Ltd,98324752,0.50,T&S UK - Accommodation
BEIS,UKRI - BBSRC,05/11/2018,T&S UK - Accommodation,RISD - UKRO,Corporate Travel Management (North) Ltd,98324752,0.50,T&S UK - Accommodation
BEIS,UKRI - BBSRC,05/11/2018,T&S UK - Accommodation,RISD - UKRO,Corporate Travel Management (North) Ltd,98324752,94.00,T&S UK - Accommodation
BEIS,UKRI - BBSRC,05/11/2018,T&S UK - Accommodation,RISD - UKRO,Corporate Travel Management (North) Ltd,98324752,0.50,T&S UK - Accommodation
BEIS,UKRI - BBSRC,05/11/2018,T&S UK - Accommodation,RISD - UKRO,Corporate Travel Management (North) Ltd,98324752,155.00,T&S UK - Accommodation
BEIS,UKRI - BBSRC,05/11/2018,T&S UK - Accommodation,RISD - UKRO,Corporate Travel Management (North) Ltd,98324752,0.50,T&S UK - Accommodation
BEIS,UKRI - BBSRC,05/11/2018,T&S UK - Accommodation,RISD - UKRO,Corporate Travel Management (North) Ltd,98324752,184.00,T&S UK - Accommodation
BEIS,UKRI - BBSRC,05/11/2018,T&S UK - Accommodation,RISD - UKRO,Corporate Travel Management (North) Ltd,98324752,0.50,T&S UK - Accommodation
BEIS,UKRI - BBSRC,05/11/2018,T&S UK - Accommodation,RISD - UKRO,Corporate Travel Management (North) Ltd,98324752,95.00,T&S UK - Accommodation
BEIS,UKRI - BBSRC,05/11/2018,T&S UK - Accommodation,RISD - UKRO,Corporate Travel Management (North) Ltd,98324752,0.50,T&S UK - Accommodation
BEIS,UKRI - BBSRC,05/11/2018,T&S UK - Accommodation,RISD - UKRO,Corporate Travel Management (North) Ltd,98324752,135.00,T&S UK - Accommodation
BEIS,UKRI - BBSRC,05/11/2018,T&S UK - Accommodation,RISD - UKRO,Corporate Travel Management (North) Ltd,98324752,0.50,T&S UK - Accommodation
BEIS,UKRI - BBSRC,05/11/2018,T&S UK - Accommodation,RISD - UKRO,Corporate Travel Management (North) Ltd,98324752,155.00,T&S UK - Accommodation
BEIS,UKRI - BBSRC,05/11/2018,T&S UK - Accommodation,RISD - UKRO,Corporate Travel Management (North) Ltd,98324752,0.50,T&S UK - Accommodation
BEIS,UKRI - BBSRC,05/11/2018,T&S UK - Accommodation,RISD - UKRO,Corporate Travel Management (North) Ltd,98324752,164.00,T&S UK - Accommodation
BEIS,UKRI - BBSRC,05/11/2018,T&S UK - Accommodation,RISD - UKRO,Corporate Travel Management (North) Ltd,98324752,0.50,T&S UK - Accommodation
BEIS,UKRI - BBSRC,05/11/2018,T&S UK - Accommodation,RISD - UKRO,Corporate Travel Management (North) Ltd,98324752,0.20,T&S UK - Accommodation
BEIS,UKRI - BBSRC,05/11/2018,T&S UK - Accommodation,Science Group,Corporate Travel Management (North) Ltd,98324752,0.50,T&S UK - Accommodation
BEIS,UKRI - BBSRC,05/11/2018,T&S UK - Accommodation,Science Group,Corporate Travel Management (North) Ltd,98324752,131.00,T&S UK - Accommodation
BEIS,UKRI - BBSRC,05/11/2018,T&S UK - Accommodation,Science Group,Corporate Travel Management (North) Ltd,98324752,0.50,T&S UK - Accommodation
BEIS,UKRI - BBSRC,05/11/2018,T&S UK - Accommodation,Science Group,Corporate Travel Management (North) Ltd,98324752,204.85,T&S UK - Accommodation
BEIS,UKRI - BBSRC,05/11/2018,T&S UK - Accommodation,Science Group,Corporate Travel Management (North) Ltd,98324752,0.50,T&S UK - Accommodation
BEIS,UKRI - BBSRC,05/11/2018,T&S UK - Accommodation,Science Group,Corporate Travel Management (North) Ltd,98324752,85.00,T&S UK - Accommodation
BEIS,UKRI - BBSRC,05/11/2018,T&S UK - Accommodation,Science Group,Corporate Travel Management (North) Ltd,98324752,0.50,T&S UK - Accommodation
BEIS,UKRI - BBSRC,05/11/2018,T&S UK - Accommodation,Science Group,Corporate Travel Management (North) Ltd,98324752,64.00,T&S UK - Accommodation
BEIS,UKRI - BBSRC,05/11/2018,T&S UK - Accommodation,Science Group,Corporate Travel Management (North) Ltd,98324752,0.50,T&S UK - Accommodation
BEIS,UKRI - BBSRC,05/11/2018,T&S UK - Accommodation,Science Group,Corporate Travel Management (North) Ltd,98324752,96.50,T&S UK - Accommodation
BEIS,UKRI - BBSRC,05/11/2018,T&S UK - Accommodation,Science Group,Corporate Travel Management (North) Ltd,98324752,0.50,T&S UK - Accommodation
BEIS,UKRI - BBSRC,05/11/2018,T&S UK - Accommodation,Science Group,Corporate Travel Management (North) Ltd,98324752,145.00,T&S UK - Accommodation
BEIS,UKRI - BBSRC,05/11/2018,T&S UK - Accommodation,Science Group,Corporate Travel Management (North) Ltd,98324752,0.50,T&S UK - Accommodation
BEIS,UKRI - BBSRC,05/11/2018,T&S UK - Accommodation,Science Group,Corporate Travel Management (North) Ltd,98324752,1.44,T&S UK - Accommodation
BEIS,UKRI - BBSRC,05/11/2018,T&S UK - Accommodation,Science Group,Corporate Travel Management (North) Ltd,98324752,74.50,T&S UK - Accommodation
BEIS,UKRI - BBSRC,05/11/2018,T&S UK - Accommodation,Science Group,Corporate Travel Management (North) Ltd,98324752,-96.50,T&S UK - Accommodation
BEIS,UKRI - BBSRC,05/11/2018,T&S UK - Accommodation,Science Group,Corporate Travel Management (North) Ltd,98324752,0.50,T&S UK - Accommodation
BEIS,UKRI - BBSRC,05/11/2018,T&S UK - Accommodation,Science Group,Corporate Travel Management (North) Ltd,98324752,120.00,T&S UK - Accommodation
BEIS,UKRI - BBSRC,05/11/2018,T&S UK - Accommodation,Science Group,Corporate Travel Management (North) Ltd,98324752,0.50,T&S UK - Accommodation
BEIS,UKRI - BBSRC,05/11/2018,T&S UK - Accommodation,Science Group,Corporate Travel Management (North) Ltd,98324752,165.00,T&S UK - Accommodation
BEIS,UKRI - BBSRC,05/11/2018,T&S UK - Accommodation,Science Group,Corporate Travel Management (North) Ltd,98324752,0.50,T&S UK - Accommodation
BEIS,UKRI - BBSRC,05/11/2018,T&S UK - Accommodation,Science Group,Corporate Travel Management (North) Ltd,98324752,155.00,T&S UK - Accommodation
BEIS,UKRI - BBSRC,05/11/2018,T&S UK - Accommodation,Science Group,Corporate Travel Management (North) Ltd,98324752,0.50,T&S UK - Accommodation
BEIS,UKRI - BBSRC,05/11/2018,T&S UK - Accommodation,Science Group,Corporate Travel Management (North) Ltd,98324752,118.70,T&S UK - Accommodation
BEIS,UKRI - BBSRC,05/11/2018,T&S UK - Accommodation,Science Group,Corporate Travel Management (North) Ltd,98324752,0.50,T&S UK - Accommodation
BEIS,UKRI - BBSRC,05/11/2018,T&S UK - Accommodation,Science Group,Corporate Travel Management (North) Ltd,98324752,237.40,T&S UK - Accommodation
BEIS,UKRI - BBSRC,05/11/2018,T&S UK - Accommodation,Science Group,Corporate Travel Management (North) Ltd,98324752,0.50,T&S UK - Accommodation
BEIS,UKRI - BBSRC,05/11/2018,T&S UK - Accommodation,Science Group,Corporate Travel Management (North) Ltd,98324752,57.00,T&S UK - Accommodation
BEIS,UKRI - BBSRC,05/11/2018,T&S UK - Accommodation,Science Group,Corporate Travel Management (North) Ltd,98324752,0.69,T&S UK - Accommodation
BEIS,UKRI - BBSRC,05/11/2018,T&S UK - Accommodation,Science Group,Corporate Travel Management (North) Ltd,98324752,0.80,T&S UK - Accommodation
BEIS,UKRI - BBSRC,05/11/2018,T&S UK - Accommodation,Science Group,Corporate Travel Management (North) Ltd,98324752,0.10,T&S UK - Accommodation
BEIS,UKRI - BBSRC,05/11/2018,T&S UK - Accommodation,Science Group - Delivery Function,Corporate Travel Management (North) Ltd,98324752,0.50,T&S UK - Accommodation
BEIS,UKRI - BBSRC,05/11/2018,T&S UK - Accommodation,Science Group - Delivery Function,Corporate Travel Management (North) Ltd,98324752,439.00,T&S UK - Accommodation
BEIS,UKRI - BBSRC,05/11/2018,T&S UK - Accommodation,Science Group - Delivery Function,Corporate Travel Management (North) Ltd,98324752,0.50,T&S UK - Accommodation
BEIS,UKRI - BBSRC,05/11/2018,T&S UK - Accommodation,Science Group - Delivery Function,Corporate Travel Management (North) Ltd,98324752,119.00,T&S UK - Accommodation
BEIS,UKRI - BBSRC,05/11/2018,T&S UK - Accommodation,Science Group - Delivery Function,Corporate Travel Management (North) Ltd,98324752,0.50,T&S UK - Accommodation
BEIS,UKRI - BBSRC,05/11/2018,T&S UK - Accommodation,Science Group - Delivery Function,Corporate Travel Management (North) Ltd,98324752,78.50,T&S UK - Accommodation
BEIS,UKRI - BBSRC,05/11/2018,T&S UK - Accommodation,Science Group - Delivery Function,Corporate Travel Management (North) Ltd,98324752,0.50,T&S UK - Accommodation
BEIS,UKRI - BBSRC,05/11/2018,T&S UK - Accommodation,Science Group - Delivery Function,Corporate Travel Management (North) Ltd,98324752,87.00,T&S UK - Accommodation
BEIS,UKRI - BBSRC,05/11/2018,T&S UK - Accommodation,Science Group - Delivery Function,Corporate Travel Management (North) Ltd,98324752,0.50,T&S UK - Accommodation
BEIS,UKRI - BBSRC,05/11/2018,T&S UK - Accommodation,Science Group - Delivery Function,Corporate Travel Management (North) Ltd,98324752,87.00,T&S UK - Accommodation
BEIS,UKRI - BBSRC,05/11/2018,T&S UK - Accommodation,Science Group - Delivery Function,Corporate Travel Management (North) Ltd,98324752,0.50,T&S UK - Accommodation
BEIS,UKRI - BBSRC,05/11/2018,T&S UK - Flights,CIMG - Director,Corporate Travel Management (North) Ltd,98324752,2.16,T&S UK - Flights
BEIS,UKRI - BBSRC,05/11/2018,T&S UK - Flights,CIMG - Director,Corporate Travel Management (North) Ltd,98324752,131.79,T&S UK - Flights
BEIS,UKRI - BBSRC,05/11/2018,T&S UK - Flights,European Initiatives,Corporate Travel Management (North) Ltd,98324752,218.00,T&S UK - Flights
BEIS,UKRI - BBSRC,05/11/2018,T&S UK - Flights,European Initiatives,Corporate Travel Management (North) Ltd,98324752,179.69,T&S UK - Flights
BEIS,UKRI - BBSRC,05/11/2018,T&S UK - Flights,European Initiatives,Corporate Travel Management (North) Ltd,98324752,2.16,T&S UK - Flights
BEIS,UKRI - BBSRC,05/11/2018,T&S UK - Flights,European Initiatives,Corporate Travel Management (North) Ltd,98324752,179.69,T&S UK - Flights
BEIS,UKRI - BBSRC,05/11/2018,T&S UK - Flights,FG - RCUK Assurance,Corporate Travel Management (North) Ltd,98324752,358.83,T&S UK - Flights
BEIS,UKRI - BBSRC,05/11/2018,T&S UK - Flights,Innovation and Skills Group,Corporate Travel Management (North) Ltd,98324752,317.24,T&S UK - Flights
BEIS,UKRI - BBSRC,05/11/2018,T&S UK - Flights,Innovation and Skills Group,Corporate Travel Management (North) Ltd,98324752,173.30,T&S UK - Flights
BEIS,UKRI - BBSRC,05/11/2018,T&S UK - Flights,Innovation and Skills Group,Corporate Travel Management (North) Ltd,98324752,132.94,T&S UK - Flights
BEIS,UKRI - BBSRC,05/11/2018,T&S UK - Flights,Innovation and Skills Group CDSU,Corporate Travel Management (North) Ltd,98324752,151.32,T&S UK - Flights
BEIS,UKRI - BBSRC,05/11/2018,T&S UK - Flights,Science Group,Corporate Travel Management (North) Ltd,98324752,151.32,T&S UK - Flights
BEIS,UKRI - BBSRC,05/11/2018,T&S UK - Flights,Science Group - Delivery Function,Corporate Travel Management (North) Ltd,98324752,2.16,T&S UK - Flights
BEIS,UKRI - BBSRC,05/11/2018,T&S UK - Flights,Science Group - Delivery Function,Corporate Travel Management (North) Ltd,98324752,719.60,T&S UK - Flights
BEIS,UKRI - BBSRC,05/11/2018,T&S UK - Other Charges,CE - IRU,Corporate Travel Management (North) Ltd,98324752,6.75,T&S UK - Other Charges
BEIS,UKRI - BBSRC,05/11/2018,T&S UK - Other Charges,CE - IRU,Corporate Travel Management (North) Ltd,98324752,189.45,T&S UK - Other Charges
BEIS,UKRI - BBSRC,05/11/2018,T&S UK - Other Charges,CE - IRU,Corporate Travel Management (North) Ltd,98324752,100.00,T&S UK - Other Charges
BEIS,UKRI - BBSRC,05/11/2018,T&S UK - Other Charges,CE - IRU,Corporate Travel Management (North) Ltd,98324752,39.24,T&S UK - Other Charges
BEIS,UKRI - BBSRC,05/11/2018,T&S UK - Public Transport,CE - CPS,Corporate Travel Management (North) Ltd,98324752,100.70,T&S UK - Public Transport
BEIS,UKRI - BBSRC,05/11/2018,T&S UK - Public Transport,CE - CPS,Corporate Travel Management (North) Ltd,98324752,100.70,T&S UK - Public Transport
BEIS,UKRI - BBSRC,05/11/2018,T&S UK - Public Transport,CE - CPS,Corporate Travel Management (North) Ltd,98324752,72.10,T&S UK - Public Transport
BEIS,UKRI - BBSRC,05/11/2018,T&S UK - Public Transport,CE - CPS,Corporate Travel Management (North) Ltd,98324752,46.10,T&S UK - Public Transport
BEIS,UKRI - BBSRC,05/11/2018,T&S UK - Public Transport,CE - CPS,Corporate Travel Management (North) Ltd,98324752,46.10,T&S UK - Public Transport
BEIS,UKRI - BBSRC,05/11/2018,T&S UK - Public Transport,CE - CPS,Corporate Travel Management (North) Ltd,98324752,50.00,T&S UK - Public Transport
BEIS,UKRI - BBSRC,05/11/2018,T&S UK - Public Transport,CE - CPS,Corporate Travel Management (North) Ltd,98324752,127.60,T&S UK - Public Transport
BEIS,UKRI - BBSRC,05/11/2018,T&S UK - Public Transport,CE - CPS,Corporate Travel Management (North) Ltd,98324752,100.70,T&S UK - Public Transport
BEIS,UKRI - BBSRC,05/11/2018,T&S UK - Public Transport,CE - CPS,Corporate Travel Management (North) Ltd,98324752,100.70,T&S UK - Public Transport
BEIS,UKRI - BBSRC,05/11/2018,T&S UK - Public Transport,CE - CPS,Corporate Travel Management (North) Ltd,98324752,11.60,T&S UK - Public Transport
BEIS,UKRI - BBSRC,05/11/2018,T&S UK - Public Transport,CE - CPS,Corporate Travel Management (North) Ltd,98324752,202.80,T&S UK - Public Transport
BEIS,UKRI - BBSRC,05/11/2018,T&S UK - Public Transport,CE - CPS,Corporate Travel Management (North) Ltd,98324752,30.90,T&S UK - Public Transport
BEIS,UKRI - BBSRC,05/11/2018,T&S UK - Public Transport,CE - CPS,Corporate Travel Management (North) Ltd,98324752,100.70,T&S UK - Public Transport
BEIS,UKRI - BBSRC,05/11/2018,T&S UK - Public Transport,CE - CPS,Corporate Travel Management (North) Ltd,98324752,139.60,T&S UK - Public Transport
BEIS,UKRI - BBSRC,05/11/2018,T&S UK - Public Transport,CE - CPS,Corporate Travel Management (North) Ltd,98324752,72.10,T&S UK - Public Transport
BEIS,UKRI - BBSRC,05/11/2018,T&S UK - Public Transport,CE - CPS,Corporate Travel Management (North) Ltd,98324752,139.60,T&S UK - Public Transport
BEIS,UKRI - BBSRC,05/11/2018,T&S UK - Public Transport,CE - CPS,Corporate Travel Management (North) Ltd,98324752,139.60,T&S UK - Public Transport
BEIS,UKRI - BBSRC,05/11/2018,T&S UK - Public Transport,CE - CPS,Corporate Travel Management (North) Ltd,98324752,100.70,T&S UK - Public Transport
BEIS,UKRI - BBSRC,05/11/2018,T&S UK - Public Transport,CE - CPS,Corporate Travel Management (North) Ltd,98324752,111.00,T&S UK - Public Transport
BEIS,UKRI - BBSRC,05/11/2018,T&S UK - Public Transport,CE - CPS,Corporate Travel Management (North) Ltd,98324752,11.10,T&S UK - Public Transport
BEIS,UKRI - BBSRC,05/11/2018,T&S UK - Public Transport,CE - CPS,Corporate Travel Management (North) Ltd,98324752,69.80,T&S UK - Public Transport
BEIS,UKRI - BBSRC,05/11/2018,T&S UK - Public Transport,CE - CPS,Corporate Travel Management (North) Ltd,98324752,30.90,T&S UK - Public Transport
BEIS,UKRI - BBSRC,05/11/2018,T&S UK - Public Transport,CE - CPS,Corporate Travel Management (North) Ltd,98324752,11.10,T&S UK - Public Transport
BEIS,UKRI - BBSRC,05/11/2018,T&S UK - Public Transport,CE - CPS,Corporate Travel Management (North) Ltd,98324752,60.20,T&S UK - Public Transport
BEIS,UKRI - BBSRC,05/11/2018,T&S UK - Public Transport,CE - CPS,Corporate Travel Management (North) Ltd,98324752,-11.60,T&S UK - Public Transport
BEIS,UKRI - BBSRC,05/11/2018,T&S UK - Public Transport,CE - CPS,Corporate Travel Management (North) Ltd,98324752,148.00,T&S UK - Public Transport
BEIS,UKRI - BBSRC,05/11/2018,T&S UK - Public Transport,CE - CPS,Corporate Travel Management (North) Ltd,98324752,5.00,T&S UK - Public Transport
BEIS,UKRI - BBSRC,05/11/2018,T&S UK - Public Transport,CE - CPS,Corporate Travel Management (North) Ltd,98324752,-90.70,T&S UK - Public Transport
BEIS,UKRI - BBSRC,05/11/2018,T&S UK - Public Transport,CE - CPS,Corporate Travel Management (North) Ltd,98324752,-41.10,T&S UK - Public Transport
BEIS,UKRI - BBSRC,05/11/2018,T&S UK - Public Transport,CE - CPS,Corporate Travel Management (North) Ltd,98324752,45.20,T&S UK - Public Transport
BEIS,UKRI - BBSRC,05/11/2018,T&S UK - Public Transport,CE - CPS,Corporate Travel Management (North) Ltd,98324752,19.00,T&S UK - Public Transport
BEIS,UKRI - BBSRC,05/11/2018,T&S UK - Public Transport,CE - CPS,Corporate Travel Management (North) Ltd,98324752,19.00,T&S UK - Public Transport
BEIS,UKRI - BBSRC,05/11/2018,T&S UK - Public Transport,CE - CPS,Corporate Travel Management (North) Ltd,98324752,13.40,T&S UK - Public Transport
BEIS,UKRI - BBSRC,05/11/2018,T&S UK - Public Transport,CE - CPS,Corporate Travel Management (North) Ltd,98324752,-152.00,T&S UK - Public Transport
BEIS,UKRI - BBSRC,05/11/2018,T&S UK - Public Transport,CE - CPS,Corporate Travel Management (North) Ltd,98324752,-44.00,T&S UK - Public Transport
BEIS,UKRI - BBSRC,05/11/2018,T&S UK - Public Transport,CE - CPS,Corporate Travel Management (North) Ltd,98324752,-32.40,T&S UK - Public Transport
BEIS,UKRI - BBSRC,05/11/2018,T&S UK - Public Transport,CE - CPS,Corporate Travel Management (North) Ltd,98324752,100.40,T&S UK - Public Transport
BEIS,UKRI - BBSRC,05/11/2018,T&S UK - Public Transport,CE - CPS,Corporate Travel Management (North) Ltd,98324752,100.70,T&S UK - Public Transport
BEIS,UKRI - BBSRC,05/11/2018,T&S UK - Public Transport,CE - CPS,Corporate Travel Management (North) Ltd,98324752,-59.40,T&S UK - Public Transport
BEIS,UKRI - BBSRC,05/11/2018,T&S UK - Public Transport,CE - CPS,Corporate Travel Management (North) Ltd,98324752,11.60,T&S UK - Public Transport
BEIS,UKRI - BBSRC,05/11/2018,T&S UK - Public Transport,CE - CPS,Corporate Travel Management (North) Ltd,98324752,101.40,T&S UK - Public Transport
BEIS,UKRI - BBSRC,05/11/2018,T&S UK - Public Transport,CE - CPS,Corporate Travel Management (North) Ltd,98324752,69.80,T&S UK - Public Transport
BEIS,UKRI - BBSRC,05/11/2018,T&S UK - Public Transport,CE - CPS,Corporate Travel Management (North) Ltd,98324752,279.20,T&S UK - Public Transport
BEIS,UKRI - BBSRC,05/11/2018,T&S UK - Public Transport,CE - CPS,Corporate Travel Management (North) Ltd,98324752,111.00,T&S UK - Public Transport
BEIS,UKRI - BBSRC,05/11/2018,T&S UK - Public Transport,CE - CPS,Corporate Travel Management (North) Ltd,98324752,11.60,T&S UK - Public Transport
BEIS,UKRI - BBSRC,05/11/2018,T&S UK - Public Transport,CE - CPS,Corporate Travel Management (North) Ltd,98324752,80.00,T&S UK - Public Transport
BEIS,UKRI - BBSRC,05/11/2018,T&S UK - Public Transport,CE - CPS,Corporate Travel Management (North) Ltd,98324752,5.90,T&S UK - Public Transport
BEIS,UKRI - BBSRC,05/11/2018,T&S UK - Public Transport,CE - Chief Executive,Corporate Travel Management (North) Ltd,98324752,86.00,T&S UK - Public Transport
BEIS,UKRI - BBSRC,05/11/2018,T&S UK - Public Transport,CE - Chief Executive,Corporate Travel Management (North) Ltd,98324752,38.20,T&S UK - Public Transport
BEIS,UKRI - BBSRC,05/11/2018,T&S UK - Public Transport,CE - Chief Executive,Corporate Travel Management (North) Ltd,98324752,38.20,T&S UK - Public Transport
BEIS,UKRI - BBSRC,05/11/2018,T&S UK - Public Transport,CE - Chief Executive,Corporate Travel Management (North) Ltd,98324752,66.80,T&S UK - Public Transport
BEIS,UKRI - BBSRC,05/11/2018,T&S UK - Public Transport,CE - Chief Executive,Corporate Travel Management (North) Ltd,98324752,172.00,T&S UK - Public Transport
BEIS,UKRI - BBSRC,05/11/2018,T&S UK - Public Transport,CE - Chief Executive,Corporate Travel Management (North) Ltd,98324752,30.90,T&S UK - Public Transport
BEIS,UKRI - BBSRC,05/11/2018,T&S UK - Public Transport,CE - Chief Executive,Corporate Travel Management (North) Ltd,98324752,89.00,T&S UK - Public Transport
BEIS,UKRI - BBSRC,05/11/2018,T&S UK - Public Transport,CE - Chief Executive,Corporate Travel Management (North) Ltd,98324752,30.90,T&S UK - Public Transport
BEIS,UKRI - BBSRC,05/11/2018,T&S UK - Public Transport,CE - Chief Executive,Corporate Travel Management (North) Ltd,98324752,29.50,T&S UK - Public Transport
BEIS,UKRI - BBSRC,05/11/2018,T&S UK - Public Transport,CE - Chief Executive,Corporate Travel Management (North) Ltd,98324752,-20.00,T&S UK - Public Transport
BEIS,UKRI - BBSRC,05/11/2018,T&S UK - Public Transport,CE - Chief Executive,Corporate Travel Management (North) Ltd,98324752,-173.00,T&S UK - Public Transport
BEIS,UKRI - BBSRC,05/11/2018,T&S UK - Public Transport,CE - Chief Executive,Corporate Travel Management (North) Ltd,98324752,139.60,T&S UK - Public Transport
BEIS,UKRI - BBSRC,05/11/2018,T&S UK - Public Transport,CE - Chief Executive,Corporate Travel Management (North) Ltd,98324752,178.00,T&S UK - Public Transport
BEIS,UKRI - BBSRC,05/11/2018,T&S UK - Public Transport,CE - Chief Executive,Corporate Travel Management (North) Ltd,98324752,13.40,T&S UK - Public Transport
BEIS,UKRI - BBSRC,05/11/2018,T&S UK - Public Transport,CE - IRU,Corporate Travel Management (North) Ltd,98324752,37.90,T&S UK - Public Transport
BEIS,UKRI - BBSRC,05/11/2018,T&S UK - Public Transport,CE - IRU,Corporate Travel Management (North) Ltd,98324752,100.70,T&S UK - Public Transport
BEIS,UKRI - BBSRC,05/11/2018,T&S UK - Public Transport,CE - IRU,Corporate Travel Management (North) Ltd,98324752,72.10,T&S UK - Public Transport
BEIS,UKRI - BBSRC,05/11/2018,T&S UK - Public Transport,CE - IRU,Corporate Travel Management (North) Ltd,98324752,72.10,T&S UK - Public Transport
BEIS,UKRI - BBSRC,05/11/2018,T&S UK - Public Transport,CE - IRU,Corporate Travel Management (North) Ltd,98324752,-73.80,T&S UK - Public Transport
BEIS,UKRI - BBSRC,05/11/2018,T&S UK - Public Transport,CE - IRU,Corporate Travel Management (North) Ltd,98324752,69.80,T&S UK - Public Transport
BEIS,UKRI - BBSRC,05/11/2018,T&S UK - Public Transport,CE - IRU,Corporate Travel Management (North) Ltd,98324752,222.00,T&S UK - Public Transport
BEIS,UKRI - BBSRC,05/11/2018,T&S UK - Public Transport,CE - IRU,Corporate Travel Management (North) Ltd,98324752,127.70,T&S UK - Public Transport
BEIS,UKRI - BBSRC,05/11/2018,T&S UK - Public Transport,CE - IRU,Corporate Travel Management (North) Ltd,98324752,13.60,T&S UK - Public Transport
BEIS,UKRI - BBSRC,05/11/2018,T&S UK - Public Transport,CIMG - Council Secretariat,Corporate Travel Management (North) Ltd,98324752,100.70,T&S UK - Public Transport
BEIS,UKRI - BBSRC,05/11/2018,T&S UK - Public Transport,CIMG - Council Secretariat,Corporate Travel Management (North) Ltd,98324752,5.00,T&S UK - Public Transport
BEIS,UKRI - BBSRC,05/11/2018,T&S UK - Public Transport,CIMG - Council Secretariat,Corporate Travel Management (North) Ltd,98324752,-90.70,T&S UK - Public Transport
BEIS,UKRI - BBSRC,05/11/2018,T&S UK - Public Transport,CIMG - Director,Corporate Travel Management (North) Ltd,98324752,22.90,T&S UK - Public Transport
BEIS,UKRI - BBSRC,05/11/2018,T&S UK - Public Transport,CIMG - External Relations,Corporate Travel Management (North) Ltd,98324752,93.60,T&S UK - Public Transport
BEIS,UKRI - BBSRC,05/11/2018,T&S UK - Public Transport,CIMG - External Relations,Corporate Travel Management (North) Ltd,98324752,93.60,T&S UK - Public Transport
BEIS,UKRI - BBSRC,05/11/2018,T&S UK - Public Transport,CIMG - External Relations,Corporate Travel Management (North) Ltd,98324752,139.60,T&S UK - Public Transport
BEIS,UKRI - BBSRC,05/11/2018,T&S UK - Public Transport,CIMG - External Relations,Corporate Travel Management (North) Ltd,98324752,111.00,T&S UK - Public Transport
BEIS,UKRI - BBSRC,05/11/2018,T&S UK - Public Transport,CIMG - External Relations,Corporate Travel Management (North) Ltd,98324752,52.60,T&S UK - Public Transport
BEIS,UKRI - BBSRC,05/11/2018,T&S UK - Public Transport,CIMG - External Relations,Corporate Travel Management (North) Ltd,98324752,52.60,T&S UK - Public Transport
BEIS,UKRI - BBSRC,05/11/2018,T&S UK - Public Transport,CIMG - External Relations,Corporate Travel Management (North) Ltd,98324752,100.70,T&S UK - Public Transport
BEIS,UKRI - BBSRC,05/11/2018,T&S UK - Public Transport,CIMG - External Relations,Corporate Travel Management (North) Ltd,98324752,67.90,T&S UK - Public Transport
BEIS,UKRI - BBSRC,05/11/2018,T&S UK - Public Transport,CIMG - External Relations,Corporate Travel Management (North) Ltd,98324752,103.30,T&S UK - Public Transport
BEIS,UKRI - BBSRC,05/11/2018,T&S UK - Public Transport,CIMG - External Relations,Corporate Travel Management (North) Ltd,98324752,39.80,T&S UK - Public Transport
BEIS,UKRI - BBSRC,05/11/2018,T&S UK - Public Transport,CIMG - External Relations,Corporate Travel Management (North) Ltd,98324752,30.90,T&S UK - Public Transport
BEIS,UKRI - BBSRC,05/11/2018,T&S UK - Public Transport,CIMG - External Relations,Corporate Travel Management (North) Ltd,98324752,37.30,T&S UK - Public Transport
BEIS,UKRI - BBSRC,05/11/2018,T&S UK - Public Transport,CIMG - External Relations,Corporate Travel Management (North) Ltd,98324752,86.40,T&S UK - Public Transport
BEIS,UKRI - BBSRC,05/11/2018,T&S UK - Public Transport,CIMG - External Relations,Corporate Travel Management (North) Ltd,98324752,61.80,T&S UK - Public Transport
BEIS,UKRI - BBSRC,05/11/2018,T&S UK - Public Transport,CIMG - External Relations,Corporate Travel Management (North) Ltd,98324752,-11.90,T&S UK - Public Transport
BEIS,UKRI - BBSRC,05/11/2018,T&S UK - Public Transport,CIMG - External Relations,Corporate Travel Management (North) Ltd,98324752,-11.90,T&S UK - Public Transport
BEIS,UKRI - BBSRC,05/11/2018,T&S UK - Public Transport,CIMG - Information Management,Corporate Travel Management (North) Ltd,98324752,-52.50,T&S UK - Public Transport
BEIS,UKRI - BBSRC,05/11/2018,T&S UK - Public Transport,CIMG - Programme Office,Corporate Travel Management (North) Ltd,98324752,92.15,T&S UK - Public Transport
BEIS,UKRI - BBSRC,05/11/2018,T&S UK - Public Transport,CIMG - Programme Office,Corporate Travel Management (North) Ltd,98324752,96.40,T&S UK - Public Transport
BEIS,UKRI - BBSRC,05/11/2018,T&S UK - Public Transport,CIMG - Programme Office,Corporate Travel Management (North) Ltd,98324752,96.40,T&S UK - Public Transport
BEIS,UKRI - BBSRC,05/11/2018,T&S UK - Public Transport,European Initiatives,Corporate Travel Management (North) Ltd,98324752,82.40,T&S UK - Public Transport
BEIS,UKRI - BBSRC,05/11/2018,T&S UK - Public Transport,European Initiatives,Corporate Travel Management (North) Ltd,98324752,82.40,T&S UK - Public Transport
BEIS,UKRI - BBSRC,05/11/2018,T&S UK - Public Transport,European Initiatives,Corporate Travel Management (North) Ltd,98324752,30.90,T&S UK - Public Transport
BEIS,UKRI - BBSRC,05/11/2018,T&S UK - Public Transport,European Initiatives,Corporate Travel Management (North) Ltd,98324752,30.90,T&S UK - Public Transport
BEIS,UKRI - BBSRC,05/11/2018,T&S UK - Public Transport,European Initiatives,Corporate Travel Management (North) Ltd,98324752,139.60,T&S UK - Public Transport
BEIS,UKRI - BBSRC,05/11/2018,T&S UK - Public Transport,European Initiatives,Corporate Travel Management (North) Ltd,98324752,160.00,T&S UK - Public Transport
BEIS,UKRI - BBSRC,05/11/2018,T&S UK - Public Transport,European Initiatives,Corporate Travel Management (North) Ltd,98324752,160.00,T&S UK - Public Transport
BEIS,UKRI - BBSRC,05/11/2018,T&S UK - Public Transport,European Initiatives,Corporate Travel Management (North) Ltd,98324752,84.90,T&S UK - Public Transport
BEIS,UKRI - BBSRC,05/11/2018,T&S UK - Public Transport,FG - Director,Corporate Travel Management (North) Ltd,98324752,89.80,T&S UK - Public Transport
BEIS,UKRI - BBSRC,05/11/2018,T&S UK - Public Transport,FG - Director,Corporate Travel Management (North) Ltd,98324752,108.80,T&S UK - Public Transport
BEIS,UKRI - BBSRC,05/11/2018,T&S UK - Public Transport,FG - Director,Corporate Travel Management (North) Ltd,98324752,84.40,T&S UK - Public Transport
BEIS,UKRI - BBSRC,05/11/2018,T&S UK - Public Transport,FG - Estates,Corporate Travel Management (North) Ltd,98324752,109.50,T&S UK - Public Transport
BEIS,UKRI - BBSRC,05/11/2018,T&S UK - Public Transport,FG - Estates,Corporate Travel Management (North) Ltd,98324752,69.20,T&S UK - Public Transport
BEIS,UKRI - BBSRC,05/11/2018,T&S UK - Public Transport,FG - Estates,Corporate Travel Management (North) Ltd,98324752,84.80,T&S UK - Public Transport
BEIS,UKRI - BBSRC,05/11/2018,T&S UK - Public Transport,FG - Estates,Corporate Travel Management (North) Ltd,98324752,84.80,T&S UK - Public Transport
BEIS,UKRI - BBSRC,05/11/2018,T&S UK - Public Transport,FG - Estates,Corporate Travel Management (North) Ltd,98324752,84.80,T&S UK - Public Transport
BEIS,UKRI - BBSRC,05/11/2018,T&S UK - Public Transport,FG - Estates,Corporate Travel Management (North) Ltd,98324752,84.80,T&S UK - Public Transport
BEIS,UKRI - BBSRC,05/11/2018,T&S UK - Public Transport,FG - RCUK Assurance,Corporate Travel Management (North) Ltd,98324752,11.60,T&S UK - Public Transport
BEIS,UKRI - BBSRC,05/11/2018,T&S UK - Public Transport,FG - RCUK Assurance,Corporate Travel Management (North) Ltd,98324752,31.30,T&S UK - Public Transport
BEIS,UKRI - BBSRC,05/11/2018,T&S UK - Public Transport,Innovation and Skills Group,Corporate Travel Management (North) Ltd,98324752,81.30,T&S UK - Public Transport
BEIS,UKRI - BBSRC,05/11/2018,T&S UK - Public Transport,Innovation and Skills Group,Corporate Travel Management (North) Ltd,98324752,155.00,T&S UK - Public Transport
BEIS,UKRI - BBSRC,05/11/2018,T&S UK - Public Transport,Innovation and Skills Group,Corporate Travel Management (North) Ltd,98324752,140.30,T&S UK - Public Transport
BEIS,UKRI - BBSRC,05/11/2018,T&S UK - Public Transport,Innovation and Skills Group,Corporate Travel Management (North) Ltd,98324752,98.90,T&S UK - Public Transport
BEIS,UKRI - BBSRC,05/11/2018,T&S UK - Public Transport,Innovation and Skills Group,Corporate Travel Management (North) Ltd,98324752,50.60,T&S UK - Public Transport
BEIS,UKRI - BBSRC,05/11/2018,T&S UK - Public Transport,Innovation and Skills Group,Corporate Travel Management (North) Ltd,98324752,27.40,T&S UK - Public Transport
BEIS,UKRI - BBSRC,05/11/2018,T&S UK - Public Transport,Innovation and Skills Group,Corporate Travel Management (North) Ltd,98324752,140.30,T&S UK - Public Transport
BEIS,UKRI - BBSRC,05/11/2018,T&S UK - Public Transport,Innovation and Skills Group,Corporate Travel Management (North) Ltd,98324752,140.30,T&S UK - Public Transport
BEIS,UKRI - BBSRC,05/11/2018,T&S UK - Public Transport,Innovation and Skills Group,Corporate Travel Management (North) Ltd,98324752,139.60,T&S UK - Public Transport
BEIS,UKRI - BBSRC,05/11/2018,T&S UK - Public Transport,Innovation and Skills Group,Corporate Travel Management (North) Ltd,98324752,70.70,T&S UK - Public Transport
BEIS,UKRI - BBSRC,05/11/2018,T&S UK - Public Transport,Innovation and Skills Group,Corporate Travel Management (North) Ltd,98324752,111.00,T&S UK - Public Transport
BEIS,UKRI - BBSRC,05/11/2018,T&S UK - Public Transport,Innovation and Skills Group,Corporate Travel Management (North) Ltd,98324752,90.00,T&S UK - Public Transport
BEIS,UKRI - BBSRC,05/11/2018,T&S UK - Public Transport,Innovation and Skills Group,Corporate Travel Management (North) Ltd,98324752,-134.60,T&S UK - Public Transport
BEIS,UKRI - BBSRC,05/11/2018,T&S UK - Public Transport,Innovation and Skills Group,Corporate Travel Management (North) Ltd,98324752,139.60,T&S UK - Public Transport
BEIS,UKRI - BBSRC,05/11/2018,T&S UK - Public Transport,Innovation and Skills Group,Corporate Travel Management (North) Ltd,98324752,100.70,T&S UK - Public Transport
BEIS,UKRI - BBSRC,05/11/2018,T&S UK - Public Transport,Innovation and Skills Group,Corporate Travel Management (North) Ltd,98324752,111.00,T&S UK - Public Transport
BEIS,UKRI - BBSRC,05/11/2018,T&S UK - Public Transport,Innovation and Skills Group,Corporate Travel Management (North) Ltd,98324752,-41.40,T&S UK - Public Transport
BEIS,UKRI - BBSRC,05/11/2018,T&S UK - Public Transport,Innovation and Skills Group,Corporate Travel Management (North) Ltd,98324752,139.60,T&S UK - Public Transport
BEIS,UKRI - BBSRC,05/11/2018,T&S UK - Public Transport,Innovation and Skills Group,Corporate Travel Management (North) Ltd,98324752,139.60,T&S UK - Public Transport
BEIS,UKRI - BBSRC,05/11/2018,T&S UK - Public Transport,Innovation and Skills Group,Corporate Travel Management (North) Ltd,98324752,67.90,T&S UK - Public Transport
BEIS,UKRI - BBSRC,05/11/2018,T&S UK - Public Transport,Innovation and Skills Group,Corporate Travel Management (North) Ltd,98324752,65.10,T&S UK - Public Transport
BEIS,UKRI - BBSRC,05/11/2018,T&S UK - Public Transport,Innovation and Skills Group,Corporate Travel Management (North) Ltd,98324752,70.60,T&S UK - Public Transport
BEIS,UKRI - BBSRC,05/11/2018,T&S UK - Public Transport,Innovation and Skills Group,Corporate Travel Management (North) Ltd,98324752,202.80,T&S UK - Public Transport
BEIS,UKRI - BBSRC,05/11/2018,T&S UK - Public Transport,Innovation and Skills Group,Corporate Travel Management (North) Ltd,98324752,175.35,T&S UK - Public Transport
BEIS,UKRI - BBSRC,05/11/2018,T&S UK - Public Transport,Innovation and Skills Group,Corporate Travel Management (North) Ltd,98324752,107.60,T&S UK - Public Transport
BEIS,UKRI - BBSRC,05/11/2018,T&S UK - Public Transport,Innovation and Skills Group,Corporate Travel Management (North) Ltd,98324752,85.80,T&S UK - Public Transport
BEIS,UKRI - BBSRC,05/11/2018,T&S UK - Public Transport,Innovation and Skills Group,Corporate Travel Management (North) Ltd,98324752,93.00,T&S UK - Public Transport
BEIS,UKRI - BBSRC,05/11/2018,T&S UK - Public Transport,Innovation and Skills Group,Corporate Travel Management (North) Ltd,98324752,140.30,T&S UK - Public Transport
BEIS,UKRI - BBSRC,05/11/2018,T&S UK - Public Transport,Innovation and Skills Group,Corporate Travel Management (North) Ltd,98324752,87.90,T&S UK - Public Transport
BEIS,UKRI - BBSRC,05/11/2018,T&S UK - Public Transport,Innovation and Skills Group,Corporate Travel Management (North) Ltd,98324752,81.30,T&S UK - Public Transport
BEIS,UKRI - BBSRC,05/11/2018,T&S UK - Public Transport,Innovation and Skills Group,Corporate Travel Management (North) Ltd,98324752,26.50,T&S UK - Public Transport
BEIS,UKRI - BBSRC,05/11/2018,T&S UK - Public Transport,Innovation and Skills Group,Corporate Travel Management (North) Ltd,98324752,11.60,T&S UK - Public Transport
BEIS,UKRI - BBSRC,05/11/2018,T&S UK - Public Transport,Innovation and Skills Group,Corporate Travel Management (North) Ltd,98324752,28.00,T&S UK - Public Transport
BEIS,UKRI - BBSRC,05/11/2018,T&S UK - Public Transport,Innovation and Skills Group,Corporate Travel Management (North) Ltd,98324752,139.60,T&S UK - Public Transport
BEIS,UKRI - BBSRC,05/11/2018,T&S UK - Public Transport,Innovation and Skills Group,Corporate Travel Management (North) Ltd,98324752,38.20,T&S UK - Public Transport
BEIS,UKRI - BBSRC,05/11/2018,T&S UK - Public Transport,Innovation and Skills Group,Corporate Travel Management (North) Ltd,98324752,12.70,T&S UK - Public Transport
BEIS,UKRI - BBSRC,05/11/2018,T&S UK - Public Transport,Innovation and Skills Group,Corporate Travel Management (North) Ltd,98324752,27.90,T&S UK - Public Transport
BEIS,UKRI - BBSRC,05/11/2018,T&S UK - Public Transport,Innovation and Skills Group,Corporate Travel Management (North) Ltd,98324752,67.90,T&S UK - Public Transport
BEIS,UKRI - BBSRC,05/11/2018,T&S UK - Public Transport,Innovation and Skills Group,Corporate Travel Management (North) Ltd,98324752,12.70,T&S UK - Public Transport
BEIS,UKRI - BBSRC,05/11/2018,T&S UK - Public Transport,Innovation and Skills Group,Corporate Travel Management (North) Ltd,98324752,6.40,T&S UK - Public Transport
BEIS,UKRI - BBSRC,05/11/2018,T&S UK - Public Transport,Innovation and Skills Group,Corporate Travel Management (North) Ltd,98324752,140.30,T&S UK - Public Transport
BEIS,UKRI - BBSRC,05/11/2018,T&S UK - Public Transport,Innovation and Skills Group,Corporate Travel Management (North) Ltd,98324752,148.20,T&S UK - Public Transport
BEIS,UKRI - BBSRC,05/11/2018,T&S UK - Public Transport,Innovation and Skills Group,Corporate Travel Management (North) Ltd,98324752,57.60,T&S UK - Public Transport
BEIS,UKRI - BBSRC,05/11/2018,T&S UK - Public Transport,Innovation and Skills Group,Corporate Travel Management (North) Ltd,98324752,100.70,T&S UK - Public Transport
BEIS,UKRI - BBSRC,05/11/2018,T&S UK - Public Transport,Innovation and Skills Group,Corporate Travel Management (North) Ltd,98324752,139.60,T&S UK - Public Transport
BEIS,UKRI - BBSRC,05/11/2018,T&S UK - Public Transport,Innovation and Skills Group,Corporate Travel Management (North) Ltd,98324752,79.20,T&S UK - Public Transport
BEIS,UKRI - BBSRC,05/11/2018,T&S UK - Public Transport,Innovation and Skills Group,Corporate Travel Management (North) Ltd,98324752,70.60,T&S UK - Public Transport
BEIS,UKRI - BBSRC,05/11/2018,T&S UK - Public Transport,Innovation and Skills Group,Corporate Travel Management (North) Ltd,98324752,160.00,T&S UK - Public Transport
BEIS,UKRI - BBSRC,05/11/2018,T&S UK - Public Transport,Innovation and Skills Group,Corporate Travel Management (North) Ltd,98324752,155.00,T&S UK - Public Transport
BEIS,UKRI - BBSRC,05/11/2018,T&S UK - Public Transport,Innovation and Skills Group,Corporate Travel Management (North) Ltd,98324752,-41.80,T&S UK - Public Transport
BEIS,UKRI - BBSRC,05/11/2018,T&S UK - Public Transport,Innovation and Skills Group,Corporate Travel Management (North) Ltd,98324752,12.90,T&S UK - Public Transport
BEIS,UKRI - BBSRC,05/11/2018,T&S UK - Public Transport,Innovation and Skills Group,Corporate Travel Management (North) Ltd,98324752,28.00,T&S UK - Public Transport
BEIS,UKRI - BBSRC,05/11/2018,T&S UK - Public Transport,Innovation and Skills Group,Corporate Travel Management (North) Ltd,98324752,25.00,T&S UK - Public Transport
BEIS,UKRI - BBSRC,05/11/2018,T&S UK - Public Transport,Innovation and Skills Group,Corporate Travel Management (North) Ltd,98324752,54.40,T&S UK - Public Transport
BEIS,UKRI - BBSRC,05/11/2018,T&S UK - Public Transport,Innovation and Skills Group,Corporate Travel Management (North) Ltd,98324752,95.10,T&S UK - Public Transport
BEIS,UKRI - BBSRC,05/11/2018,T&S UK - Public Transport,Innovation and Skills Group,Corporate Travel Management (North) Ltd,98324752,50.60,T&S UK - Public Transport
BEIS,UKRI - BBSRC,05/11/2018,T&S UK - Public Transport,Innovation and Skills Group CDSU,Corporate Travel Management (North) Ltd,98324752,139.60,T&S UK - Public Transport
BEIS,UKRI - BBSRC,05/11/2018,T&S UK - Public Transport,Innovation and Skills Group CDSU,Corporate Travel Management (North) Ltd,98324752,139.60,T&S UK - Public Transport
BEIS,UKRI - BBSRC,05/11/2018,T&S UK - Public Transport,Innovation and Skills Group CDSU,Corporate Travel Management (North) Ltd,98324752,146.30,T&S UK - Public Transport
BEIS,UKRI - BBSRC,05/11/2018,T&S UK - Public Transport,Innovation and Skills Group CDSU,Corporate Travel Management (North) Ltd,98324752,146.30,T&S UK - Public Transport
BEIS,UKRI - BBSRC,05/11/2018,T&S UK - Public Transport,Innovation and Skills Group CDSU,Corporate Travel Management (North) Ltd,98324752,30.00,T&S UK - Public Transport
BEIS,UKRI - BBSRC,05/11/2018,T&S UK - Public Transport,Innovation and Skills Group CDSU,Corporate Travel Management (North) Ltd,98324752,47.00,T&S UK - Public Transport
BEIS,UKRI - BBSRC,05/11/2018,T&S UK - Public Transport,Innovation and Skills Group CDSU,Corporate Travel Management (North) Ltd,98324752,143.00,T&S UK - Public Transport
BEIS,UKRI - BBSRC,05/11/2018,T&S UK - Public Transport,Innovation and Skills Group CDSU,Corporate Travel Management (North) Ltd,98324752,118.10,T&S UK - Public Transport
BEIS,UKRI - BBSRC,05/11/2018,T&S UK - Public Transport,Innovation and Skills Group CDSU,Corporate Travel Management (North) Ltd,98324752,111.00,T&S UK - Public Transport
BEIS,UKRI - BBSRC,05/11/2018,T&S UK - Public Transport,Innovation and Skills Group CDSU,Corporate Travel Management (North) Ltd,98324752,193.00,T&S UK - Public Transport
BEIS,UKRI - BBSRC,05/11/2018,T&S UK - Public Transport,JBOS - Staff,Corporate Travel Management (North) Ltd,98324752,139.60,T&S UK - Public Transport
BEIS,UKRI - BBSRC,05/11/2018,T&S UK - Public Transport,PDG - Director,Corporate Travel Management (North) Ltd,98324752,139.60,T&S UK - Public Transport
BEIS,UKRI - BBSRC,05/11/2018,T&S UK - Public Transport,PDG - Director,Corporate Travel Management (North) Ltd,98324752,84.70,T&S UK - Public Transport
BEIS,UKRI - BBSRC,05/11/2018,T&S UK - Public Transport,PDG - Director,Corporate Travel Management (North) Ltd,98324752,23.00,T&S UK - Public Transport
BEIS,UKRI - BBSRC,05/11/2018,T&S UK - Public Transport,PDG - Director,Corporate Travel Management (North) Ltd,98324752,46.80,T&S UK - Public Transport
BEIS,UKRI - BBSRC,05/11/2018,T&S UK - Public Transport,PDG - Director,Corporate Travel Management (North) Ltd,98324752,23.00,T&S UK - Public Transport
BEIS,UKRI - BBSRC,05/11/2018,T&S UK - Public Transport,RISD - UKRO,Corporate Travel Management (North) Ltd,98324752,1.00,T&S UK - Public Transport
BEIS,UKRI - BBSRC,05/11/2018,T&S UK - Public Transport,RISD - UKRO,Corporate Travel Management (North) Ltd,98324752,66.50,T&S UK - Public Transport
BEIS,UKRI - BBSRC,05/11/2018,T&S UK - Public Transport,RISD - UKRO,Corporate Travel Management (North) Ltd,98324752,1.00,T&S UK - Public Transport
BEIS,UKRI - BBSRC,05/11/2018,T&S UK - Public Transport,RISD - UKRO,Corporate Travel Management (North) Ltd,98324752,263.00,T&S UK - Public Transport
BEIS,UKRI - BBSRC,05/11/2018,T&S UK - Public Transport,RISD - UKRO,Corporate Travel Management (North) Ltd,98324752,1.00,T&S UK - Public Transport
BEIS,UKRI - BBSRC,05/11/2018,T&S UK - Public Transport,RISD - UKRO,Corporate Travel Management (North) Ltd,98324752,6.50,T&S UK - Public Transport
BEIS,UKRI - BBSRC,05/11/2018,T&S UK - Public Transport,RISD - UKRO,Corporate Travel Management (North) Ltd,98324752,1.00,T&S UK - Public Transport
BEIS,UKRI - BBSRC,05/11/2018,T&S UK - Public Transport,RISD - UKRO,Corporate Travel Management (North) Ltd,98324752,39.00,T&S UK - Public Transport
BEIS,UKRI - BBSRC,05/11/2018,T&S UK - Public Transport,RISD - UKRO,Corporate Travel Management (North) Ltd,98324752,1.00,T&S UK - Public Transport
BEIS,UKRI - BBSRC,05/11/2018,T&S UK - Public Transport,RISD - UKRO,Corporate Travel Management (North) Ltd,98324752,85.80,T&S UK - Public Transport
BEIS,UKRI - BBSRC,05/11/2018,T&S UK - Public Transport,RISD - UKRO,Corporate Travel Management (North) Ltd,98324752,1.00,T&S UK - Public Transport
BEIS,UKRI - BBSRC,05/11/2018,T&S UK - Public Transport,RISD - UKRO,Corporate Travel Management (North) Ltd,98324752,100.70,T&S UK - Public Transport
BEIS,UKRI - BBSRC,05/11/2018,T&S UK - Public Transport,RISD - UKRO,Corporate Travel Management (North) Ltd,98324752,1.00,T&S UK - Public Transport
BEIS,UKRI - BBSRC,05/11/2018,T&S UK - Public Transport,RISD - UKRO,Corporate Travel Management (North) Ltd,98324752,186.50,T&S UK - Public Transport
BEIS,UKRI - BBSRC,05/11/2018,T&S UK - Public Transport,RISD - UKRO,Corporate Travel Management (North) Ltd,98324752,1.00,T&S UK - Public Transport
BEIS,UKRI - BBSRC,05/11/2018,T&S UK - Public Transport,RISD - UKRO,Corporate Travel Management (North) Ltd,98324752,66.50,T&S UK - Public Transport
BEIS,UKRI - BBSRC,05/11/2018,T&S UK - Public Transport,RISD - UKRO,Corporate Travel Management (North) Ltd,98324752,3.16,T&S UK - Public Transport
BEIS,UKRI - BBSRC,05/11/2018,T&S UK - Public Transport,RISD - UKRO,Corporate Travel Management (North) Ltd,98324752,45.60,T&S UK - Public Transport
BEIS,UKRI - BBSRC,05/11/2018,T&S UK - Public Transport,RISD - UKRO,Corporate Travel Management (North) Ltd,98324752,1.00,T&S UK - Public Transport
BEIS,UKRI - BBSRC,05/11/2018,T&S UK - Public Transport,RISD - UKRO,Corporate Travel Management (North) Ltd,98324752,187.30,T&S UK - Public Transport
BEIS,UKRI - BBSRC,05/11/2018,T&S UK - Public Transport,RISD - UKRO,Corporate Travel Management (North) Ltd,98324752,1.00,T&S UK - Public Transport
BEIS,UKRI - BBSRC,05/11/2018,T&S UK - Public Transport,RISD - UKRO,Corporate Travel Management (North) Ltd,98324752,128.00,T&S UK - Public Transport
BEIS,UKRI - BBSRC,05/11/2018,T&S UK - Public Transport,RISD - UKRO,Corporate Travel Management (North) Ltd,98324752,1.00,T&S UK - Public Transport
BEIS,UKRI - BBSRC,05/11/2018,T&S UK - Public Transport,RISD - UKRO,Corporate Travel Management (North) Ltd,98324752,9.50,T&S UK - Public Transport
BEIS,UKRI - BBSRC,05/11/2018,T&S UK - Public Transport,RISD - UKRO,Corporate Travel Management (North) Ltd,98324752,1.00,T&S UK - Public Transport
BEIS,UKRI - BBSRC,05/11/2018,T&S UK - Public Transport,RISD - UKRO,Corporate Travel Management (North) Ltd,98324752,18.00,T&S UK - Public Transport
BEIS,UKRI - BBSRC,05/11/2018,T&S UK - Public Transport,RISD - UKRO,Corporate Travel Management (North) Ltd,98324752,5.00,T&S UK - Public Transport
BEIS,UKRI - BBSRC,05/11/2018,T&S UK - Public Transport,RISD - UKRO,Corporate Travel Management (North) Ltd,98324752,-22.90,T&S UK - Public Transport
BEIS,UKRI - BBSRC,05/11/2018,T&S UK - Public Transport,RISD - UKRO,Corporate Travel Management (North) Ltd,98324752,1.00,T&S UK - Public Transport
BEIS,UKRI - BBSRC,05/11/2018,T&S UK - Public Transport,RISD - UKRO,Corporate Travel Management (North) Ltd,98324752,43.00,T&S UK - Public Transport
BEIS,UKRI - BBSRC,05/11/2018,T&S UK - Public Transport,RISD - UKRO,Corporate Travel Management (North) Ltd,98324752,1.00,T&S UK - Public Transport
BEIS,UKRI - BBSRC,05/11/2018,T&S UK - Public Transport,RISD - UKRO,Corporate Travel Management (North) Ltd,98324752,18.20,T&S UK - Public Transport
BEIS,UKRI - BBSRC,05/11/2018,T&S UK - Public Transport,RISD - UKRO,Corporate Travel Management (North) Ltd,98324752,1.00,T&S UK - Public Transport
BEIS,UKRI - BBSRC,05/11/2018,T&S UK - Public Transport,RISD - UKRO,Corporate Travel Management (North) Ltd,98324752,92.00,T&S UK - Public Transport
BEIS,UKRI - BBSRC,05/11/2018,T&S UK - Public Transport,RISD - UKRO,Corporate Travel Management (North) Ltd,98324752,2.00,T&S UK - Public Transport
BEIS,UKRI - BBSRC,05/11/2018,T&S UK - Public Transport,RISD - UKRO,Corporate Travel Management (North) Ltd,98324752,53.90,T&S UK - Public Transport
BEIS,UKRI - BBSRC,05/11/2018,T&S UK - Public Transport,RISD - UKRO,Corporate Travel Management (North) Ltd,98324752,8.20,T&S UK - Public Transport
BEIS,UKRI - BBSRC,05/11/2018,T&S UK - Public Transport,RISD - UKRO,Corporate Travel Management (North) Ltd,98324752,1.00,T&S UK - Public Transport
BEIS,UKRI - BBSRC,05/11/2018,T&S UK - Public Transport,RISD - UKRO,Corporate Travel Management (North) Ltd,98324752,85.80,T&S UK - Public Transport
BEIS,UKRI - BBSRC,05/11/2018,T&S UK - Public Transport,RISD - UKRO,Corporate Travel Management (North) Ltd,98324752,1.00,T&S UK - Public Transport
BEIS,UKRI - BBSRC,05/11/2018,T&S UK - Public Transport,RISD - UKRO,Corporate Travel Management (North) Ltd,98324752,18.00,T&S UK - Public Transport
BEIS,UKRI - BBSRC,05/11/2018,T&S UK - Public Transport,RISD - UKRO,Corporate Travel Management (North) Ltd,98324752,1.00,T&S UK - Public Transport
BEIS,UKRI - BBSRC,05/11/2018,T&S UK - Public Transport,RISD - UKRO,Corporate Travel Management (North) Ltd,98324752,32.80,T&S UK - Public Transport
BEIS,UKRI - BBSRC,05/11/2018,T&S UK - Public Transport,RISD - UKRO,Corporate Travel Management (North) Ltd,98324752,1.00,T&S UK - Public Transport
BEIS,UKRI - BBSRC,05/11/2018,T&S UK - Public Transport,RISD - UKRO,Corporate Travel Management (North) Ltd,98324752,20.40,T&S UK - Public Transport
BEIS,UKRI - BBSRC,05/11/2018,T&S UK - Public Transport,RISD - UKRO,Corporate Travel Management (North) Ltd,98324752,1.00,T&S UK - Public Transport
BEIS,UKRI - BBSRC,05/11/2018,T&S UK - Public Transport,RISD - UKRO,Corporate Travel Management (North) Ltd,98324752,10.50,T&S UK - Public Transport
BEIS,UKRI - BBSRC,05/11/2018,T&S UK - Public Transport,RISD - UKRO,Corporate Travel Management (North) Ltd,98324752,1.00,T&S UK - Public Transport
BEIS,UKRI - BBSRC,05/11/2018,T&S UK - Public Transport,RISD - UKRO,Corporate Travel Management (North) Ltd,98324752,4.70,T&S UK - Public Transport
BEIS,UKRI - BBSRC,05/11/2018,T&S UK - Public Transport,Science Group,Corporate Travel Management (North) Ltd,98324752,72.10,T&S UK - Public Transport
BEIS,UKRI - BBSRC,05/11/2018,T&S UK - Public Transport,Science Group,Corporate Travel Management (North) Ltd,98324752,72.10,T&S UK - Public Transport
BEIS,UKRI - BBSRC,05/11/2018,T&S UK - Public Transport,Science Group,Corporate Travel Management (North) Ltd,98324752,139.60,T&S UK - Public Transport
BEIS,UKRI - BBSRC,05/11/2018,T&S UK - Public Transport,Science Group,Corporate Travel Management (North) Ltd,98324752,217.40,T&S UK - Public Transport
BEIS,UKRI - BBSRC,05/11/2018,T&S UK - Public Transport,Science Group,Corporate Travel Management (North) Ltd,98324752,34.90,T&S UK - Public Transport
BEIS,UKRI - BBSRC,05/11/2018,T&S UK - Public Transport,Science Group,Corporate Travel Management (North) Ltd,98324752,140.30,T&S UK - Public Transport
BEIS,UKRI - BBSRC,05/11/2018,T&S UK - Public Transport,Science Group,Corporate Travel Management (North) Ltd,98324752,97.90,T&S UK - Public Transport
BEIS,UKRI - BBSRC,05/11/2018,T&S UK - Public Transport,Science Group,Corporate Travel Management (North) Ltd,98324752,12.70,T&S UK - Public Transport
BEIS,UKRI - BBSRC,05/11/2018,T&S UK - Public Transport,Science Group,Corporate Travel Management (North) Ltd,98324752,92.20,T&S UK - Public Transport
BEIS,UKRI - BBSRC,05/11/2018,T&S UK - Public Transport,Science Group,Corporate Travel Management (North) Ltd,98324752,69.80,T&S UK - Public Transport
BEIS,UKRI - BBSRC,05/11/2018,T&S UK - Public Transport,Science Group,Corporate Travel Management (North) Ltd,98324752,111.00,T&S UK - Public Transport
BEIS,UKRI - BBSRC,05/11/2018,T&S UK - Public Transport,Science Group,Corporate Travel Management (North) Ltd,98324752,52.90,T&S UK - Public Transport
BEIS,UKRI - BBSRC,05/11/2018,T&S UK - Public Transport,Science Group,Corporate Travel Management (North) Ltd,98324752,140.30,T&S UK - Public Transport
BEIS,UKRI - BBSRC,05/11/2018,T&S UK - Public Transport,Science Group,Corporate Travel Management (North) Ltd,98324752,71.30,T&S UK - Public Transport
BEIS,UKRI - BBSRC,05/11/2018,T&S UK - Public Transport,Science Group,Corporate Travel Management (North) Ltd,98324752,54.40,T&S UK - Public Transport
BEIS,UKRI - BBSRC,05/11/2018,T&S UK - Public Transport,Science Group,Corporate Travel Management (North) Ltd,98324752,140.30,T&S UK - Public Transport
BEIS,UKRI - BBSRC,05/11/2018,T&S UK - Public Transport,Science Group,Corporate Travel Management (North) Ltd,98324752,27.90,T&S UK - Public Transport
BEIS,UKRI - BBSRC,05/11/2018,T&S UK - Public Transport,Science Group,Corporate Travel Management (North) Ltd,98324752,69.40,T&S UK - Public Transport
BEIS,UKRI - BBSRC,05/11/2018,T&S UK - Public Transport,Science Group,Corporate Travel Management (North) Ltd,98324752,133.60,T&S UK - Public Transport
BEIS,UKRI - BBSRC,05/11/2018,T&S UK - Public Transport,Science Group,Corporate Travel Management (North) Ltd,98324752,66.80,T&S UK - Public Transport
BEIS,UKRI - BBSRC,05/11/2018,T&S UK - Public Transport,Science Group,Corporate Travel Management (North) Ltd,98324752,1.00,T&S UK - Public Transport
BEIS,UKRI - BBSRC,05/11/2018,T&S UK - Public Transport,Science Group,Corporate Travel Management (North) Ltd,98324752,223.60,T&S UK - Public Transport
BEIS,UKRI - BBSRC,05/11/2018,T&S UK - Public Transport,Science Group,Corporate Travel Management (North) Ltd,98324752,1.00,T&S UK - Public Transport
BEIS,UKRI - BBSRC,05/11/2018,T&S UK - Public Transport,Science Group,Corporate Travel Management (North) Ltd,98324752,139.60,T&S UK - Public Transport
BEIS,UKRI - BBSRC,05/11/2018,T&S UK - Public Transport,Science Group,Corporate Travel Management (North) Ltd,98324752,139.60,T&S UK - Public Transport
BEIS,UKRI - BBSRC,05/11/2018,T&S UK - Public Transport,Science Group,Corporate Travel Management (North) Ltd,98324752,64.60,T&S UK - Public Transport
BEIS,UKRI - BBSRC,05/11/2018,T&S UK - Public Transport,Science Group,Corporate Travel Management (North) Ltd,98324752,178.70,T&S UK - Public Transport
BEIS,UKRI - BBSRC,05/11/2018,T&S UK - Public Transport,Science Group,Corporate Travel Management (North) Ltd,98324752,37.50,T&S UK - Public Transport
BEIS,UKRI - BBSRC,05/11/2018,T&S UK - Public Transport,Science Group,Corporate Travel Management (North) Ltd,98324752,9.20,T&S UK - Public Transport
BEIS,UKRI - BBSRC,05/11/2018,T&S UK - Public Transport,Science Group,Corporate Travel Management (North) Ltd,98324752,1.00,T&S UK - Public Transport
BEIS,UKRI - BBSRC,05/11/2018,T&S UK - Public Transport,Science Group,Corporate Travel Management (North) Ltd,98324752,202.80,T&S UK - Public Transport
BEIS,UKRI - BBSRC,05/11/2018,T&S UK - Public Transport,Science Group,Corporate Travel Management (North) Ltd,98324752,111.00,T&S UK - Public Transport
BEIS,UKRI - BBSRC,05/11/2018,T&S UK - Public Transport,Science Group,Corporate Travel Management (North) Ltd,98324752,116.50,T&S UK - Public Transport
BEIS,UKRI - BBSRC,05/11/2018,T&S UK - Public Transport,Science Group,Corporate Travel Management (North) Ltd,98324752,140.30,T&S UK - Public Transport
BEIS,UKRI - BBSRC,05/11/2018,T&S UK - Public Transport,Science Group,Corporate Travel Management (North) Ltd,98324752,30.90,T&S UK - Public Transport
BEIS,UKRI - BBSRC,05/11/2018,T&S UK - Public Transport,Science Group,Corporate Travel Management (North) Ltd,98324752,108.70,T&S UK - Public Transport
BEIS,UKRI - BBSRC,05/11/2018,T&S UK - Public Transport,Science Group,Corporate Travel Management (North) Ltd,98324752,117.70,T&S UK - Public Transport
BEIS,UKRI - BBSRC,05/11/2018,T&S UK - Public Transport,Science Group,Corporate Travel Management (North) Ltd,98324752,117.30,T&S UK - Public Transport
BEIS,UKRI - BBSRC,05/11/2018,T&S UK - Public Transport,Science Group,Corporate Travel Management (North) Ltd,98324752,140.30,T&S UK - Public Transport
BEIS,UKRI - BBSRC,05/11/2018,T&S UK - Public Transport,Science Group,Corporate Travel Management (North) Ltd,98324752,54.40,T&S UK - Public Transport
BEIS,UKRI - BBSRC,05/11/2018,T&S UK - Public Transport,Science Group,Corporate Travel Management (North) Ltd,98324752,140.30,T&S UK - Public Transport
BEIS,UKRI - BBSRC,05/11/2018,T&S UK - Public Transport,Science Group,Corporate Travel Management (North) Ltd,98324752,52.90,T&S UK - Public Transport
BEIS,UKRI - BBSRC,05/11/2018,T&S UK - Public Transport,Science Group,Corporate Travel Management (North) Ltd,98324752,136.90,T&S UK - Public Transport
BEIS,UKRI - BBSRC,05/11/2018,T&S UK - Public Transport,Science Group,Corporate Travel Management (North) Ltd,98324752,160.00,T&S UK - Public Transport
BEIS,UKRI - BBSRC,05/11/2018,T&S UK - Public Transport,Science Group,Corporate Travel Management (North) Ltd,98324752,101.40,T&S UK - Public Transport
BEIS,UKRI - BBSRC,05/11/2018,T&S UK - Public Transport,Science Group,Corporate Travel Management (North) Ltd,98324752,30.90,T&S UK - Public Transport
BEIS,UKRI - BBSRC,05/11/2018,T&S UK - Public Transport,Science Group,Corporate Travel Management (North) Ltd,98324752,202.80,T&S UK - Public Transport
BEIS,UKRI - BBSRC,05/11/2018,T&S UK - Public Transport,Science Group,Corporate Travel Management (North) Ltd,98324752,140.30,T&S UK - Public Transport
BEIS,UKRI - BBSRC,05/11/2018,T&S UK - Public Transport,Science Group,Corporate Travel Management (North) Ltd,98324752,139.60,T&S UK - Public Transport
BEIS,UKRI - BBSRC,05/11/2018,T&S UK - Public Transport,Science Group,Corporate Travel Management (North) Ltd,98324752,11.60,T&S UK - Public Transport
BEIS,UKRI - BBSRC,05/11/2018,T&S UK - Public Transport,Science Group,Corporate Travel Management (North) Ltd,98324752,88.50,T&S UK - Public Transport
BEIS,UKRI - BBSRC,05/11/2018,T&S UK - Public Transport,Science Group,Corporate Travel Management (North) Ltd,98324752,93.20,T&S UK - Public Transport
BEIS,UKRI - BBSRC,05/11/2018,T&S UK - Public Transport,Science Group,Corporate Travel Management (North) Ltd,98324752,202.80,T&S UK - Public Transport
BEIS,UKRI - BBSRC,05/11/2018,T&S UK - Public Transport,Science Group,Corporate Travel Management (North) Ltd,98324752,134.30,T&S UK - Public Transport
BEIS,UKRI - BBSRC,05/11/2018,T&S UK - Public Transport,Science Group,Corporate Travel Management (North) Ltd,98324752,100.70,T&S UK - Public Transport
BEIS,UKRI - BBSRC,05/11/2018,T&S UK - Public Transport,Science Group,Corporate Travel Management (North) Ltd,98324752,111.00,T&S UK - Public Transport
BEIS,UKRI - BBSRC,05/11/2018,T&S UK - Public Transport,Science Group,Corporate Travel Management (North) Ltd,98324752,174.20,T&S UK - Public Transport
BEIS,UKRI - BBSRC,05/11/2018,T&S UK - Public Transport,Science Group,Corporate Travel Management (North) Ltd,98324752,133.60,T&S UK - Public Transport
BEIS,UKRI - BBSRC,05/11/2018,T&S UK - Public Transport,Science Group,Corporate Travel Management (North) Ltd,98324752,133.60,T&S UK - Public Transport
BEIS,UKRI - BBSRC,05/11/2018,T&S UK - Public Transport,Science Group,Corporate Travel Management (North) Ltd,98324752,134.80,T&S UK - Public Transport
BEIS,UKRI - BBSRC,05/11/2018,T&S UK - Public Transport,Science Group,Corporate Travel Management (North) Ltd,98324752,87.30,T&S UK - Public Transport
BEIS,UKRI - BBSRC,05/11/2018,T&S UK - Public Transport,Science Group,Corporate Travel Management (North) Ltd,98324752,47.90,T&S UK - Public Transport
BEIS,UKRI - BBSRC,05/11/2018,T&S UK - Public Transport,Science Group,Corporate Travel Management (North) Ltd,98324752,140.30,T&S UK - Public Transport
BEIS,UKRI - BBSRC,05/11/2018,T&S UK - Public Transport,Science Group,Corporate Travel Management (North) Ltd,98324752,23.90,T&S UK - Public Transport
BEIS,UKRI - BBSRC,05/11/2018,T&S UK - Public Transport,Science Group,Corporate Travel Management (North) Ltd,98324752,140.30,T&S UK - Public Transport
BEIS,UKRI - BBSRC,05/11/2018,T&S UK - Public Transport,Science Group,Corporate Travel Management (North) Ltd,98324752,140.30,T&S UK - Public Transport
BEIS,UKRI - BBSRC,05/11/2018,T&S UK - Public Transport,Science Group,Corporate Travel Management (North) Ltd,98324752,116.20,T&S UK - Public Transport
BEIS,UKRI - BBSRC,05/11/2018,T&S UK - Public Transport,Science Group,Corporate Travel Management (North) Ltd,98324752,101.20,T&S UK - Public Transport
BEIS,UKRI - BBSRC,05/11/2018,T&S UK - Public Transport,Science Group,Corporate Travel Management (North) Ltd,98324752,153.60,T&S UK - Public Transport
BEIS,UKRI - BBSRC,05/11/2018,T&S UK - Public Transport,Science Group,Corporate Travel Management (North) Ltd,98324752,133.60,T&S UK - Public Transport
BEIS,UKRI - BBSRC,05/11/2018,T&S UK - Public Transport,Science Group,Corporate Travel Management (North) Ltd,98324752,29.70,T&S UK - Public Transport
BEIS,UKRI - BBSRC,05/11/2018,T&S UK - Public Transport,Science Group,Corporate Travel Management (North) Ltd,98324752,10.50,T&S UK - Public Transport
BEIS,UKRI - BBSRC,05/11/2018,T&S UK - Public Transport,Science Group,Corporate Travel Management (North) Ltd,98324752,10.50,T&S UK - Public Transport
